Workbook

Sheet Main
B10: 2019-01-04
B12: Sheet No. | C12: Template Name | D12: Summary
B13: 1 | C13: Future Intra | D13: For Intraday trading in F&O segment
B14: 2 | C14: Cash Intra | D14: For Intraday trading in cash market segment
B15: 3 | C15: Mid-cap Intra | D15: For Intraday trading in Mid-cap stocks
B16: 4 | C16: Bulk Deals | D16: Reveals Bulk Deals carried on NSE & BSE
B17: 5 | C17: Call Tracker

Sheet Future Intra
M5: Back to Main Page
A6: FOR INTRA DAY TRADING | L6: =Main!B10 -> 2019-01-04
A9: Sr.no | B9: Sector | C9: Scrip | D9: CLOSE RATE | E9: Pivot Point | F9: Supports | I9: Resistances
B10: Sector | D10: Point | E10: Point | F10: S1 | G10: S2 | H10: S3 | I10: R1 | J10: R2 | K10: R3 | L10: HIGH | M10: LOW | N10: OI | O10: % Change in OI
A11: 1 | B11: Index | C11: BANKNIFTY | D11: 27097.45 | E11: 27159.72 | F11: 27000.03 | G11: 26902.62 | H11: 26742.93 | I11: 27257.13 | J11: 27416.82 | K11: 27514.23 | L11: 27319.4 | M11: 27062.3 | N11: 1419500 | O11: -8.53%
A12: 2 | B12: Index | C12: NIFTY | D12: 10718.50 | E12: 10762.83 | F12: 10665.72 | G12: 10612.93 | H12: 10515.82 | I12: 10815.62 | J12: 10912.73 | K12: 10965.52 | L12: 10859.95 | M12: 10710.05 | N12: 26150850 | O12: 4.82%
A13: 3 | B13: Index | C13: NIFTYIT | D13: 14355.00 | E13: 14417.33 | F13: 14257.67 | G13: 14160.33 | H13: 14000.67 | I13: 14514.67 | J13: 14674.33 | K13: 14771.67 | L13: 14577 | M13: 14320 | N13: 22650 | O13: 13.25%
A14: 4 | B14: Cement | C14: ACC | D14: 1456.85 | E14: 1469.18 | F14: 1439.47 | G14: 1422.08 | H14: 1392.37 | I14: 1486.57 | J14: 1516.28 | K14: 1533.67 | L14: 1498.9 | M14: 1451.8 | N14: 1299600 | O14: 1.63%
A15: 5 | B15: Others | C15: ADANIENT | D15: 152.95 | E15: 153.47 | F15: 150.18 | G15: 147.42 | H15: 144.13 | I15: 156.23 | J15: 159.52 | K15: 162.28 | L15: 156.75 | M15: 150.7 | N15: 34768000 | O15: 1.14%
A16: 6 | B16: Others | C16: ADANIPORTS | D16: 380.40 | E16: 382.25 | F16: 377.30 | G16: 374.20 | H16: 369.25 | I16: 385.35 | J16: 390.30 | K16: 393.40 | L16: 387.2 | M16: 379.15 | N16: 22955000 | O16: 0.04%
A17: 7 | B17: Power | C17: ADANIPOWER | D17: 50.90 | E17: 50.48 | F17: 49.42 | G17: 47.93 | H17: 46.87 | I17: 51.97 | J17: 53.03 | K17: 54.52 | L17: 51.55 | M17: 49 | N17: 160240000 | O17: -0.04%
A18: 8 | B18: Pharma | C18: AJANTPHARM | D18: 1154.00 | E18: 1160.38 | F18: 1143.72 | G18: 1133.43 | H18: 1116.77 | I18: 1170.67 | J18: 1187.33 | K18: 1197.62 | L18: 1177.05 | M18: 1150.1 | N18: 606000 | O18: 5.12%
A19: 9 | B19: Banking | C19: ALBK | D19: 44.85 | E19: 45.10 | F19: 44.40 | G19: 43.95 | H19: 43.25 | I19: 45.55 | J19: 46.25 | K19: 46.70 | L19: 45.8 | M19: 44.65 | N19: 18915000 | O19: 0.14%
A20: 10 | B20: Automobile | C20: AMARAJABAT | D20: 717.55 | E20: 721.90 | F20: 707.80 | G20: 698.05 | H20: 683.95 | I20: 731.65 | J20: 745.75 | K20: 755.50 | L20: 736 | M20: 712.15 | N20: 1027600 | O20: -4.24%
A21: 11 | B21: Cement | C21: AMBUJACEM | D21: 214.80 | E21: 216.80 | F21: 212.15 | G21: 209.50 | H21: 204.85 | I21: 219.45 | J21: 224.10 | K21: 226.75 | L21: 221.45 | M21: 214.15 | N21: 15467500 | O21: 5.81%
A22: 12 | B22: Others | C22: APOLLOHOSP | D22: 1267.50 | E22: 1267.48 | F22: 1257.42 | G22: 1247.33 | H22: 1237.27 | I22: 1277.57 | J22: 1287.63 | K22: 1297.72 | L22: 1277.55 | M22: 1257.4 | N22: 841000 | O22: 0.66%
A23: 13 | B23: Automobile | C23: APOLLOTYRE | D23: 228.55 | E23: 230.00 | F23: 226.55 | G23: 224.55 | H23: 221.10 | I23: 232.00 | J23: 235.45 | K23: 237.45 | L23: 233.45 | M23: 228 | N23: 9774000 | O23: 1.46%
A24: 14 | B24: Textile | C24: ARVIND | D24: 95.50 | E24: 96.08 | F24: 94.52 | G24: 93.53 | H24: 91.97 | I24: 97.07 | J24: 98.63 | K24: 99.62 | L24: 97.65 | M24: 95.1 | N24: 5970000 | O24: 1.05%
A25: 15 | B25: Automobile | C25: ASHOKLEY | D25: 98.65 | E25: 99.23 | F25: 97.72 | G25: 96.78 | H25: 95.27 | I25: 100.17 | J25: 101.68 | K25: 102.62 | L25: 100.75 | M25: 98.3 | N25: 68208000 | O25: 1.61%
A26: 16 | B26: FMCG | C26: ASIANPAINT | D26: 1391.95 | E26: 1392.13 | F26: 1384.77 | G26: 1377.58 | H26: 1370.22 | I26: 1399.32 | J26: 1406.68 | K26: 1413.87 | L26: 1399.5 | M26: 1384.95 | N26: 5522400 | O26: 1.93%
A27: 17 | B27: Pharma | C27: AUROPHARMA | D27: 716.90 | E27: 718.80 | F27: 710.60 | G27: 704.30 | H27: 696.10 | I27: 725.10 | J27: 733.30 | K27: 739.60 | L27: 727 | M27: 712.5 | N27: 20605000 | O27: -0.67%
A28: 18 | B28: Banking | C28: AXISBANK | D28: 611.85 | E28: 614.85 | F28: 605.00 | G28: 598.15 | H28: 588.30 | I28: 621.70 | J28: 631.55 | K28: 638.40 | L28: 624.7 | M28: 608 | N28: 36380400 | O28: 5.04%
A29: 19 | B29: Automobile | C29: BAJAJ-AUTO | D29: 2707.60 | E29: 2712.15 | F29: 2687.30 | G29: 2667.00 | H29: 2642.15 | I29: 2732.45 | J29: 2757.30 | K29: 2777.60 | L29: 2737 | M29: 2691.85 | N29: 2285000 | O29: -1.94%
A30: 20 | B30: Others | C30: BAJAJFINSV | D30: 6411.55 | E30: 6429.10 | F30: 6344.15 | G30: 6276.75 | H30: 6191.80 | I30: 6496.50 | J30: 6581.45 | K30: 6648.85 | L30: 6514.05 | M30: 6361.7 | N30: 698250 | O30: 4.72%
A31: 21 | B31: Finance | C31: BAJFINANCE | D31: 2597.75 | E31: 2614.70 | F31: 2571.40 | G31: 2545.05 | H31: 2501.75 | I31: 2641.05 | J31: 2684.35 | K31: 2710.70 | L31: 2658 | M31: 2588.35 | N31: 5780750 | O31: 0.62%
A32: 22 | B32: Others | C32: BALKRISIND | D32: 903.55 | E32: 910.05 | F32: 895.80 | G32: 888.05 | H32: 873.80 | I32: 917.80 | J32: 932.05 | K32: 939.80 | L32: 924.3 | M32: 902.3 | N32: 2574400 | O32: 0.03%
A33: 23 | B33: Banking | C33: BANKBARODA | D33: 119.95 | E33: 120.78 | F33: 117.77 | G33: 115.58 | H33: 112.57 | I33: 122.97 | J33: 125.98 | K33: 128.17 | L33: 123.8 | M33: 118.6 | N33: 63484000 | O33: 9.42%
A34: 24 | B34: Banking | C34: BANKINDIA | D34: 106.45 | E34: 106.20 | F34: 104.65 | G34: 102.85 | H34: 101.30 | I34: 108.00 | J34: 109.55 | K34: 111.35 | L34: 107.75 | M34: 104.4 | N34: 27810000 | O34: 6.14%
A35: 25 | B35: FMCG | C35: BATAINDIA | D35: 1112.35 | E35: 1114.63 | F35: 1103.57 | G35: 1094.78 | H35: 1083.72 | I35: 1123.42 | J35: 1134.48 | K35: 1143.27 | L35: 1125.7 | M35: 1105.85 | N35: 2046000 | O35: -1.95%
A36: 26 | B36: Capital_Goods | C36: BEL | D36: 88.00 | E36: 88.40 | F36: 86.90 | G36: 85.80 | H36: 84.30 | I36: 89.50 | J36: 91.00 | K36: 92.10 | L36: 89.9 | M36: 87.3 | N36: 35610000 | O36: 0.42%
A37: 27 | B37: Infrastructure | C37: BEML | D37: 890.60 | E37: 902.43 | F37: 870.87 | G37: 851.13 | H37: 819.57 | I37: 922.17 | J37: 953.73 | K37: 973.47 | L37: 934 | M37: 882.7 | N37: 1531600 | O37: -11.20%
A38: 28 | B38: Others | C38: BERGEPAINT | D38: 326.90 | E38: 328.12 | F38: 324.13 | G38: 321.37 | H38: 317.38 | I38: 330.88 | J38: 334.87 | K38: 337.63 | L38: 332.1 | M38: 325.35 | N38: 2549800 | O38: 11.44%
A39: 29 | B39: Finance | C39: BHARATFIN | D39: 996.90 | E39: 1000.12 | F39: 990.58 | G39: 984.27 | H39: 974.73 | I39: 1006.43 | J39: 1015.97 | K39: 1022.28 | L39: 1009.65 | M39: 993.8 | N39: 4294000 | O39: -0.80%
A40: 30 | B40: Automobile | C40: BHARATFORG | D40: 490.20 | E40: 493.70 | F40: 484.60 | G40: 479.00 | H40: 469.90 | I40: 499.30 | J40: 508.40 | K40: 514.00 | L40: 502.8 | M40: 488.1 | N40: 11833200 | O40: 3.16%
A41: 31 | B41: Telecom | C41: BHARTIARTL | D41: 315.15 | E41: 313.82 | F41: 310.43 | G41: 305.72 | H41: 302.33 | I41: 318.53 | J41: 321.92 | K41: 326.63 | L41: 317.2 | M41: 309.1 | N41: 34115600 | O41: 1.35%
A42: 32 | B42: Capital_Goods | C42: BHEL | D42: 71.00 | E42: 71.57 | F42: 70.13 | G42: 69.27 | H42: 67.83 | I42: 72.43 | J42: 73.87 | K42: 74.73 | L42: 73 | M42: 70.7 | N42: 43732500 | O42: -1.57%
A43: 33 | B43: Pharma | C43: BIOCON | D43: 616.10 | E43: 620.23 | F43: 610.47 | G43: 604.83 | H43: 595.07 | I43: 625.87 | J43: 635.63 | K43: 641.27 | L43: 630 | M43: 614.6 | N43: 5397300 | O43: 1.75%
A44: 34 | B44: Automobile | C44: BOSCHLTD | D44: 19419.10 | E44: 19515.70 | F44: 19231.40 | G44: 19043.70 | H44: 18759.40 | I44: 19703.40 | J44: 19987.70 | K44: 20175.40 | L44: 19800 | M44: 19328 | N44: 140940 | O44: 3.89%
A45: 35 | B45: Oil_Gas | C45: BPCL | D45: 348.30 | E45: 347.60 | F45: 344.20 | G45: 340.10 | H45: 336.70 | I45: 351.70 | J45: 355.10 | K45: 359.20 | L45: 351 | M45: 343.5 | N45: 10195200 | O45: 1.58%
A46: 36 | B46: FMCG | C46: BRITANNIA | D46: 3153.15 | E46: 3154.17 | F46: 3114.33 | G46: 3075.52 | H46: 3035.68 | I46: 3192.98 | J46: 3232.82 | K46: 3271.63 | L46: 3194 | M46: 3115.35 | N46: 2800600 | O46: 0.60%
A47: 37 | B47: Pharma | C47: CADILAHC | D47: 344.75 | E47: 346.05 | F47: 342.25 | G47: 339.75 | H47: 335.95 | I47: 348.55 | J47: 352.35 | K47: 354.85 | L47: 349.85 | M47: 343.55 | N47: 8144000 | O47: 0.20%
A48: 38 | B48: Banking | C48: CANBK | D48: 277.85 | E48: 277.60 | F48: 275.00 | G48: 272.15 | H48: 269.55 | I48: 280.45 | J48: 283.05 | K48: 285.90 | L48: 280.2 | M48: 274.75 | N48: 10862000 | O48: 1.46%
A49: 39 | B49: Others | C49: CANFINHOME | D49: 278.30 | E49: 280.32 | F49: 275.03 | G49: 271.77 | H49: 266.48 | I49: 283.58 | J49: 288.87 | K49: 292.13 | L49: 285.6 | M49: 277.05 | N49: 4449600 | O49: 0.20%
A50: 40 | B50: Oil_Gas | C50: CASTROLIND | D50: 147.35 | E50: 147.82 | F50: 146.13 | G50: 144.92 | H50: 143.23 | I50: 149.03 | J50: 150.72 | K50: 151.93 | L50: 149.5 | M50: 146.6 | N50: 7480000 | O50: -1.30%
A51: 41 | B51: Automobile | C51: CEATLTD | D51: 1290.15 | E51: 1296.87 | F51: 1280.28 | G51: 1270.42 | H51: 1253.83 | I51: 1306.73 | J51: 1323.32 | K51: 1333.18 | L51: 1313.45 | M51: 1287 | N51: 675200 | O51: -0.30%
A52: 42 | B52: Textile | C52: CENTURYTEX | D52: 901.30 | E52: 907.17 | F52: 890.73 | G52: 880.17 | H52: 863.73 | I52: 917.73 | J52: 934.17 | K52: 944.73 | L52: 923.6 | M52: 896.6 | N52: 4514400 | O52: 1.66%
A53: 43 | B53: Power | C53: CESC | D53: 656.20 | E53: 660.90 | F53: 649.30 | G53: 642.40 | H53: 630.80 | I53: 667.80 | J53: 679.40 | K53: 686.30 | L53: 672.5 | M53: 654 | N53: 2186800 | O53: 5.52%
A54: 44 | B54: Power | C54: CGPOWER | D54: 43.65 | E54: 43.87 | F54: 42.88 | G54: 42.12 | H54: 41.13 | I54: 44.63 | J54: 45.62 | K54: 46.38 | L54: 44.85 | M54: 43.1 | N54: 40488000 | O54: 0.99%
A55: 45 | B55: Others | C55: CHENNPETRO | D55: 279.40 | E55: 279.37 | F55: 275.98 | G55: 272.57 | H55: 269.18 | I55: 282.78 | J55: 286.17 | K55: 289.58 | L55: 282.75 | M55: 275.95 | N55: 1177200 | O55: -0.91%
A56: 46 | B56: Others | C56: CHOLAFIN | D56: 1203.10 | E56: 1217.75 | F56: 1184.35 | G56: 1165.60 | H56: 1132.20 | I56: 1236.50 | J56: 1269.90 | K56: 1288.65 | L56: 1251.15 | M56: 1199 | N56: 1125500 | O56: -3.35%
A57: 47 | B57: Pharma | C57: CIPLA | D57: 514.35 | E57: 516.42 | F57: 511.08 | G57: 507.82 | H57: 502.48 | I57: 519.68 | J57: 525.02 | K57: 528.28 | L57: 521.75 | M57: 513.15 | N57: 8689000 | O57: 2.51%
A58: 48 | B58: Others | C58: COALINDIA | D58: 235.10 | E58: 235.37 | F58: 232.93 | G58: 230.77 | H58: 228.33 | I58: 237.53 | J58: 239.97 | K58: 242.13 | L58: 237.8 | M58: 233.2 | N58: 31182800 | O58: -0.74%
A59: 49 | B59: FMCG | C59: COLPAL | D59: 1316.85 | E59: 1310.05 | F59: 1300.50 | G59: 1284.15 | H59: 1274.60 | I59: 1326.40 | J59: 1335.95 | K59: 1352.30 | L59: 1319.6 | M59: 1293.7 | N59: 1328600 | O59: 0.58%
A60: 50 | B60: Others | C60: CONCOR | D60: 671.05 | E60: 671.53 | F60: 668.67 | G60: 666.28 | H60: 663.42 | I60: 673.92 | J60: 676.78 | K60: 679.17 | L60: 674.4 | M60: 669.15 | N60: 2342500 | O60: -0.95%
A61: 51 | B61: Capital_Goods | C61: CUMMINSIND | D61: 837.25 | E61: 843.33 | F61: 827.97 | G61: 818.68 | H61: 803.32 | I61: 852.62 | J61: 867.98 | K61: 877.27 | L61: 858.7 | M61: 834.05 | N61: 1445500 | O61: -3.68%
A62: 52 | B62: FMCG | C62: DABUR | D62: 423.80 | E62: 422.05 | F62: 416.20 | G62: 408.60 | H62: 402.75 | I62: 429.65 | J62: 435.50 | K62: 443.10 | L62: 427.9 | M62: 414.45 | N62: 11415000 | O62: -2.75%
A63: 53 | B63: Banking | C63: DCBBANK | D63: 169.15 | E63: 169.65 | F63: 168.20 | G63: 167.25 | H63: 165.80 | I63: 170.60 | J63: 172.05 | K63: 173.00 | L63: 171.1 | M63: 168.7 | N63: 4104000 | O63: 1.90%
A64: 54 | B64: Finance | C64: DHFL | D64: 235.10 | E64: 237.65 | F64: 231.10 | G64: 227.10 | H64: 220.55 | I64: 241.65 | J64: 248.20 | K64: 252.20 | L64: 244.2 | M64: 233.65 | N64: 18046500 | O64: 0.37%
A65: 55 | B65: Media | C65: DISHTV | D65: 37.90 | E65: 38.15 | F65: 37.25 | G65: 36.60 | H65: 35.70 | I65: 38.80 | J65: 39.70 | K65: 40.35 | L65: 39.05 | M65: 37.5 | N65: 52824000 | O65: 0.53%
A66: 56 | B66: Pharma | C66: DIVISLAB | D66: 1445.80 | E66: 1458.52 | F66: 1428.78 | G66: 1411.77 | H66: 1382.03 | I66: 1475.53 | J66: 1505.27 | K66: 1522.28 | L66: 1488.25 | M66: 1441.5 | N66: 3110000 | O66: 0.86%
A67: 57 | B67: Realty | C67: DLF | D67: 173.00 | E67: 173.50 | F67: 171.15 | G67: 169.30 | H67: 166.95 | I67: 175.35 | J67: 177.70 | K67: 179.55 | L67: 175.85 | M67: 171.65 | N67: 25295400 | O67: -1.82%
A68: 58 | B68: Pharma | C68: DRREDDY | D68: 2594.30 | E68: 2601.45 | F68: 2573.90 | G68: 2553.50 | H68: 2525.95 | I68: 2621.85 | J68: 2649.40 | K68: 2669.80 | L68: 2629 | M68: 2581.05 | N68: 4102500 | O68: 5.71%
A69: 59 | B69: Automobile | C69: EICHERMOT | D69: 20347.35 | E69: 20580.70 | F69: 20046.65 | G69: 19745.95 | H69: 19211.90 | I69: 20881.40 | J69: 21415.45 | K69: 21716.15 | L69: 21114.75 | M69: 20280 | N69: 398950 | O69: 16.81%
A70: 60 | B70: Infrastructure | C70: ENGINERSIN | D70: 124.10 | E70: 124.45 | F70: 123.50 | G70: 122.90 | H70: 121.95 | I70: 125.05 | J70: 126.00 | K70: 126.60 | L70: 125.4 | M70: 123.85 | N70: 8040100 | O70: 0.51%
A71: 61 | B71: Finance | C71: EQUITAS | D71: 123.65 | E71: 123.68 | F71: 121.67 | G71: 119.68 | H71: 117.67 | I71: 125.67 | J71: 127.68 | K71: 129.67 | L71: 125.7 | M71: 121.7 | N71: 8492000 | O71: 4.53%
A72: 62 | B72: Automobile | C72: ESCORTS | D72: 724.70 | E72: 722.70 | F72: 713.30 | G72: 701.90 | H72: 692.50 | I72: 734.10 | J72: 743.50 | K72: 754.90 | L72: 732.1 | M72: 711.3 | N72: 4215200 | O72: -5.34%
A73: 63 | B73: Automobile | C73: EXIDEIND | D73: 258.70 | E73: 260.18 | F73: 256.52 | G73: 254.33 | H73: 250.67 | I73: 262.37 | J73: 266.03 | K73: 268.22 | L73: 263.85 | M73: 258 | N73: 5020000 | O73: 1.74%
A74: 64 | B74: Banking | C74: FEDERALBNK | D74: 92.40 | E74: 93.38 | F74: 91.02 | G74: 89.63 | H74: 87.27 | I74: 94.77 | J74: 97.13 | K74: 98.52 | L74: 95.75 | M74: 92 | N74: 44499000 | O74: -4.48%
A75: 65 | B75: Oil_Gas | C75: GAIL | D75: 348.90 | E75: 348.67 | F75: 346.03 | G75: 343.17 | H75: 340.53 | I75: 351.53 | J75: 354.17 | K75: 357.03 | L75: 351.3 | M75: 345.8 | N75: 12004167 | O75: 1.10%
A76: 66 | B76: Pharma | C76: GLENMARK | D76: 665.35 | E76: 671.28 | F76: 656.37 | G76: 647.38 | H76: 632.47 | I76: 680.27 | J76: 695.18 | K76: 704.17 | L76: 686.2 | M76: 662.3 | N76: 3822000 | O76: -0.23%
A77: 67 | B77: Infrastructure | C77: GMRINFRA | D77: 15.70 | E77: 15.83 | F77: 15.52 | G77: 15.33 | H77: 15.02 | I77: 16.02 | J77: 16.33 | K77: 16.52 | L77: 16.15 | M77: 15.65 | N77: 170550000 | O77: 1.17%
A78: 68 | B78: Others | C78: GODFRYPHLP | D78: 879.25 | E78: 876.47 | F78: 869.93 | G78: 860.62 | H78: 854.08 | I78: 885.78 | J78: 892.32 | K78: 901.63 | L78: 883 | M78: 867.15 | N78: 542500 | O78: 2.92%
A79: 69 | B79: FMCG | C79: GODREJCP | D79: 817.70 | E79: 813.43 | F79: 799.47 | G79: 781.23 | H79: 767.27 | I79: 831.67 | J79: 845.63 | K79: 863.87 | L79: 827.4 | M79: 795.2 | N79: 4244400 | O79: 0.26%
A80: 70 | B80: FMCG | C80: GODREJIND | D80: 534.55 | E80: 537.40 | F80: 528.80 | G80: 523.05 | H80: 514.45 | I80: 543.15 | J80: 551.75 | K80: 557.50 | L80: 546 | M80: 531.65 | N80: 1870500 | O80: -0.40%
A81: 71 | B81: Cement | C81: GRASIM | D81: 803.80 | E81: 809.47 | F81: 796.48 | G81: 789.17 | H81: 776.18 | I81: 816.78 | J81: 829.77 | K81: 837.08 | L81: 822.45 | M81: 802.15 | N81: 9948000 | O81: 2.35%
A82: 72 | B82: Others | C82: GSFC | D82: 110.80 | E82: 111.55 | F82: 109.80 | G82: 108.80 | H82: 107.05 | I82: 112.55 | J82: 114.30 | K82: 115.30 | L82: 113.3 | M82: 110.55 | N82: 14875500 | O82: -0.63%
A83: 73 | B83: Others | C83: HAVELLS | D83: 685.20 | E83: 688.60 | F83: 678.10 | G83: 671.00 | H83: 660.50 | I83: 695.70 | J83: 706.20 | K83: 713.30 | L83: 699.1 | M83: 681.5 | N83: 4706000 | O83: 2.55%
A84: 74 | B84: Technology | C84: HCLTECH | D84: 950.95 | E84: 953.47 | F84: 944.13 | G84: 937.32 | H84: 927.98 | I84: 960.28 | J84: 969.62 | K84: 976.43 | L84: 962.8 | M84: 946.65 | N84: 9567600 | O84: 0.08%
A85: 75 | B85: Finance | C85: HDFC | D85: 1949.40 | E85: 1963.02 | F85: 1930.03 | G85: 1910.67 | H85: 1877.68 | I85: 1982.38 | J85: 2015.37 | K85: 2034.73 | L85: 1996 | M85: 1943.65 | N85: 26530500 | O85: 2.12%
A86: 76 | B86: Banking | C86: HDFCBANK | D86: 2123.70 | E86: 2125.17 | F86: 2113.13 | G86: 2102.57 | H86: 2090.53 | I86: 2135.73 | J86: 2147.77 | K86: 2158.33 | L86: 2137.2 | M86: 2114.6 | N86: 12411750 | O86: -1.69%
A87: 77 | B87: Automobile | C87: HEROMOTOCO | D87: 3024.75 | E87: 3045.28 | F87: 2997.22 | G87: 2969.68 | H87: 2921.62 | I87: 3072.82 | J87: 3120.88 | K87: 3148.42 | L87: 3093.35 | M87: 3017.75 | N87: 1548400 | O87: 5.45%
A88: 78 | B88: Technology | C88: HEXAWARE | D88: 330.70 | E88: 331.08 | F88: 327.57 | G88: 324.43 | H88: 320.92 | I88: 334.22 | J88: 337.73 | K88: 340.87 | L88: 334.6 | M88: 327.95 | N88: 2739000 | O88: -1.35%
A89: 79 | B89: Metals | C89: HINDALCO | D89: 210.05 | E89: 211.98 | F89: 207.47 | G89: 204.88 | H89: 200.37 | I89: 214.57 | J89: 219.08 | K89: 221.67 | L89: 216.5 | M89: 209.4 | N89: 35619500 | O89: 8.38%
A90: 80 | B90: Oil_Gas | C90: HINDPETRO | D90: 245.15 | E90: 245.90 | F90: 241.85 | G90: 238.55 | H90: 234.50 | I90: 249.20 | J90: 253.25 | K90: 256.55 | L90: 249.95 | M90: 242.6 | N90: 15810900 | O90: 0.09%
A91: 81 | B91: FMCG | C91: HINDUNILVR | D91: 1799.10 | E91: 1801.77 | F91: 1789.73 | G91: 1780.37 | H91: 1768.33 | I91: 1811.13 | J91: 1823.17 | K91: 1832.53 | L91: 1813.8 | M91: 1792.4 | N91: 10270800 | O91: 1.23%
A92: 82 | B92: Metals | C92: HINDZINC | D92: 269.90 | E92: 270.85 | F92: 267.70 | G92: 265.50 | H92: 262.35 | I92: 273.05 | J92: 276.20 | K92: 278.40 | L92: 274 | M92: 268.65 | N92: 5785600 | O92: 1.63%
A93: 83 | B93: Finance | C93: IBULHSGFIN | D93: 812.50 | E93: 822.02 | F93: 799.23 | G93: 785.97 | H93: 763.18 | I93: 835.28 | J93: 858.07 | K93: 871.33 | L93: 844.8 | M93: 808.75 | N93: 12340000 | O93: 0.29%
A94: 84 | B94: Banking | C94: ICICIBANK | D94: 363.85 | E94: 365.10 | F94: 361.75 | G94: 359.65 | H94: 356.30 | I94: 367.20 | J94: 370.55 | K94: 372.65 | L94: 368.45 | M94: 363 | N94: 79582250 | O94: 1.18%
A95: 85 | B95: Others | C95: ICICIPRULI | D95: 316.95 | E95: 318.32 | F95: 314.63 | G95: 312.32 | H95: 308.63 | I95: 320.63 | J95: 324.32 | K95: 326.63 | L95: 322 | M95: 316 | N95: 3736500 | O95: 1.76%
A96: 86 | B96: Banking | C96: IDBI | D96: 61.45 | E96: 61.45 | F96: 61.30 | G96: 61.15 | H96: 61.00 | I96: 61.60 | J96: 61.75 | K96: 61.90 | L96: 61.6 | M96: 61.3 | N96: 29890000 | O96: -1.90%
A97: 87 | B97: Telecom | C97: IDEA | D97: 36.20 | E97: 35.90 | F97: 35.35 | G97: 34.50 | H97: 33.95 | I97: 36.75 | J97: 37.30 | K97: 38.15 | L97: 36.45 | M97: 35.05 | N97: 135552000 | O97: 1.30%
A98: 88 | B98: Finance | C98: IDFC | D98: 42.45 | E98: 42.65 | F98: 42.00 | G98: 41.55 | H98: 40.90 | I98: 43.10 | J98: 43.75 | K98: 44.20 | L98: 43.3 | M98: 42.2 | N98: 96241200 | O98: -1.54%
A99: 89 | B99: Banking | C99: IDFCBANK | D99: 43.00 | E99: 42.93 | F99: 42.47 | G99: 41.93 | H99: 41.47 | I99: 43.47 | J99: 43.93 | K99: 44.47 | L99: 43.4 | M99: 42.4 | N99: 156000000 | O99: -1.12%
A100: 90 | B100: Finance | C100: IFCI | D100: 14.45 | E100: 14.52 | F100: 14.28 | G100: 14.12 | H100: 13.88 | I100: 14.68 | J100: 14.92 | K100: 15.08 | L100: 14.75 | M100: 14.35 | N100: 54110000 | O100: 0.59%
A101: 91 | B101: Oil_Gas | C101: IGL | D101: 274.30 | E101: 274.22 | F101: 272.43 | G101: 270.57 | H101: 268.78 | I101: 276.08 | J101: 277.87 | K101: 279.73 | L101: 276 | M101: 272.35 | N101: 5214000 | O101: 1.01%
A102: 92 | B102: Cement | C102: INDIACEM | D102: 90.95 | E102: 92.15 | F102: 89.10 | G102: 87.25 | H102: 84.20 | I102: 94.00 | J102: 97.05 | K102: 98.90 | L102: 95.2 | M102: 90.3 | N102: 17203500 | O102: 9.98%
A103: 93 | B103: Banking | C103: INDIANB | D103: 245.85 | E103: 246.73 | F103: 243.47 | G103: 241.08 | H103: 237.82 | I103: 249.12 | J103: 252.38 | K103: 254.77 | L103: 250 | M103: 244.35 | N103: 4072000 | O103: -1.64%
A104: 94 | B104: Others | C104: INDIGO | D104: 1162.55 | E104: 1164.40 | F104: 1150.90 | G104: 1139.25 | H104: 1125.75 | I104: 1176.05 | J104: 1189.55 | K104: 1201.20 | L104: 1177.9 | M104: 1152.75 | N104: 2676600 | O104: 4.40%
A105: 95 | B105: Banking | C105: INDUSINDBK | D105: 1570.45 | E105: 1575.05 | F105: 1560.75 | G105: 1551.05 | H105: 1536.75 | I105: 1584.75 | J105: 1599.05 | K105: 1608.75 | L105: 1589.35 | M105: 1565.35 | N105: 6432900 | O105: 1.12%
A106: 96 | B106: Technology | C106: INFIBEAM | D106: 45.60 | E106: 45.82 | F106: 45.08 | G106: 44.57 | H106: 43.83 | I106: 46.33 | J106: 47.07 | K106: 47.58 | L106: 46.55 | M106: 45.3 | N106: 11864000 | O106: 3.02%
A107: 97 | B107: Telecom | C107: INFRATEL | D107: 272.50 | E107: 270.60 | F107: 267.45 | G107: 262.40 | H107: 259.25 | I107: 275.65 | J107: 278.80 | K107: 283.85 | L107: 273.75 | M107: 265.55 | N107: 8910000 | O107: 5.92%
A108: 98 | B108: Technology | C108: INFY | D108: 671.10 | E108: 671.82 | F108: 664.93 | G108: 658.77 | H108: 651.88 | I108: 677.98 | J108: 684.87 | K108: 691.03 | L108: 678.7 | M108: 665.65 | N108: 43002000 | O108: -0.91%
A109: 99 | B109: Oil_Gas | C109: IOC | D109: 133.30 | E109: 134.45 | F109: 131.65 | G109: 130.00 | H109: 127.20 | I109: 136.10 | J109: 138.90 | K109: 140.55 | L109: 137.25 | M109: 132.8 | N109: 55240500 | O109: 2.77%
A110: 100 | B110: Infrastructure | C110: IRB | D110: 156.50 | E110: 157.63 | F110: 154.42 | G110: 152.33 | H110: 149.12 | I110: 159.72 | J110: 162.93 | K110: 165.02 | L110: 160.85 | M110: 155.55 | N110: 6492800 | O110: -2.97%
A111: 101 | B111: FMCG | C111: ITC | D111: 280.30 | E111: 281.03 | F111: 278.77 | G111: 277.23 | H111: 274.97 | I111: 282.57 | J111: 284.83 | K111: 286.37 | L111: 283.3 | M111: 279.5 | N111: 77956800 | O111: 0.84%
A112: 102 | B112: Others | C112: JETAIRWAYS | D112: 233.80 | E112: 238.82 | F112: 226.23 | G112: 218.67 | H112: 206.08 | I112: 246.38 | J112: 258.97 | K112: 266.53 | L112: 251.4 | M112: 231.25 | N112: 8844000 | O112: 33.29%
A113: 103 | B113: Metals | C113: JINDALSTEL | D113: 147.20 | E113: 150.37 | F113: 143.03 | G113: 138.87 | H113: 131.53 | I113: 154.53 | J113: 161.87 | K113: 166.03 | L113: 157.7 | M113: 146.2 | N113: 24507000 | O113: 10.78%
A114: 104 | B114: Others | C114: JISLJALEQS | D114: 65.25 | E114: 66.35 | F114: 63.90 | G114: 62.55 | H114: 60.10 | I114: 67.70 | J114: 70.15 | K114: 71.50 | L114: 68.8 | M114: 65 | N114: 37143000 | O114: 9.64%
A115: 105 | B115: Realty | C115: JPASSOCIAT | D115: 7.35 | E115: 7.35 | F115: 7.25 | G115: 7.15 | H115: 7.05 | I115: 7.45 | J115: 7.55 | K115: 7.65 | L115: 7.45 | M115: 7.25 | N115: 113630000 | O115: 1.87%
A116: 106 | B116: Metals | C116: JSWSTEEL | D116: 284.60 | E116: 286.25 | F116: 280.60 | G116: 276.60 | H116: 270.95 | I116: 290.25 | J116: 295.90 | K116: 299.90 | L116: 291.9 | M116: 282.25 | N116: 48525000 | O116: 1.02%
A117: 107 | B117: Others | C117: JUBLFOOD | D117: 1246.85 | E117: 1250.72 | F117: 1237.23 | G117: 1227.62 | H117: 1214.13 | I117: 1260.33 | J117: 1273.82 | K117: 1283.43 | L117: 1264.2 | M117: 1241.1 | N117: 2768500 | O117: 0.00%
A118: 108 | B118: Others | C118: JUSTDIAL | D118: 483.95 | E118: 488.37 | F118: 477.73 | G118: 471.52 | H118: 460.88 | I118: 494.58 | J118: 505.22 | K118: 511.43 | L118: 499 | M118: 482.15 | N118: 2185400 | O118: 2.09%
A119: 109 | B119: Others | C119: KAJARIACER | D119: 502.05 | E119: 500.87 | F119: 494.78 | G119: 487.52 | H119: 481.43 | I119: 508.13 | J119: 514.22 | K119: 521.48 | L119: 506.95 | M119: 493.6 | N119: 2427100 | O119: -3.11%
A120: 110 | B120: Banking | C120: KOTAKBANK | D120: 1242.55 | E120: 1244.55 | F120: 1233.10 | G120: 1223.65 | H120: 1212.20 | I120: 1254.00 | J120: 1265.45 | K120: 1274.90 | L120: 1256 | M120: 1235.1 | N120: 11287200 | O120: -0.70%
A121: 111 | B121: Technology | C121: KPIT | D121: 211.60 | E121: 213.47 | F121: 208.53 | G121: 205.47 | H121: 200.53 | I121: 216.53 | J121: 221.47 | K121: 224.53 | L121: 218.4 | M121: 210.4 | N121: 5220000 | O121: 3.94%
A122: 112 | B122: Others | C122: KSCL | D122: 557.65 | E122: 560.48 | F122: 550.77 | G122: 543.88 | H122: 534.17 | I122: 567.37 | J122: 577.08 | K122: 583.97 | L122: 570.2 | M122: 553.6 | N122: 1072500 | O122: -0.42%
A123: 113 | B123: Banking | C123: KTKBANK | D123: 110.60 | E123: 111.35 | F123: 109.50 | G123: 108.40 | H123: 106.55 | I123: 112.45 | J123: 114.30 | K123: 115.40 | L123: 113.2 | M123: 110.25 | N123: 15148100 | O123: -0.71%
A124: 114 | B124: Finance | C124: L&TFH | D124: 146.05 | E124: 147.65 | F124: 143.80 | G124: 141.55 | H124: 137.70 | I124: 149.90 | J124: 153.75 | K124: 156.00 | L124: 151.5 | M124: 145.4 | N124: 19426500 | O124: 4.91%
A125: 115 | B125: Finance | C125: LICHSGFIN | D125: 472.80 | E125: 476.02 | F125: 467.78 | G125: 462.77 | H125: 454.53 | I125: 481.03 | J125: 489.27 | K125: 494.28 | L125: 484.25 | M125: 471 | N125: 8355600 | O125: 2.90%
A126: 116 | B126: Capital_Goods | C126: LT | D126: 1402.95 | E126: 1412.00 | F126: 1389.60 | G126: 1376.25 | H126: 1353.85 | I126: 1425.35 | J126: 1447.75 | K126: 1461.10 | L126: 1434.4 | M126: 1398.65 | N126: 9970125 | O126: 3.79%
A127: 117 | B127: Pharma | C127: LUPIN | D127: 825.05 | E127: 830.57 | F127: 817.13 | G127: 809.22 | H127: 795.78 | I127: 838.48 | J127: 851.92 | K127: 859.83 | L127: 844 | M127: 822.65 | N127: 8782900 | O127: 3.25%
A128: 118 | B128: Automobile | C128: M&M | D128: 723.15 | E128: 730.90 | F128: 712.90 | G128: 702.65 | H128: 684.65 | I128: 741.15 | J128: 759.15 | K128: 769.40 | L128: 748.9 | M128: 720.65 | N128: 17624000 | O128: 14.35%
A129: 119 | B129: Finance | C129: M&MFIN | D129: 459.40 | E129: 463.72 | F129: 451.48 | G129: 443.57 | H129: 431.33 | I129: 471.63 | J129: 483.87 | K129: 491.78 | L129: 475.95 | M129: 455.8 | N129: 9435000 | O129: -0.03%
A130: 120 | B130: Others | C130: MANAPPURAM | D130: 93.05 | E130: 93.38 | F130: 92.12 | G130: 91.18 | H130: 89.92 | I130: 94.32 | J130: 95.58 | K130: 96.52 | L130: 94.65 | M130: 92.45 | N130: 11838000 | O130: -1.20%
A131: 121 | B131: FMCG | C131: MARICO | D131: 379.25 | E131: 378.77 | F131: 375.53 | G131: 371.82 | H131: 368.58 | I131: 382.48 | J131: 385.72 | K131: 389.43 | L131: 382 | M131: 375.05 | N131: 8052200 | O131: 0.42%
A132: 122 | B132: Automobile | C132: MARUTI | D132: 7246.10 | E132: 7292.88 | F132: 7188.22 | G132: 7130.33 | H132: 7025.67 | I132: 7350.77 | J132: 7455.43 | K132: 7513.32 | L132: 7397.55 | M132: 7235 | N132: 2515875 | O132: 3.57%
A133: 123 | B133: FMCG | C133: MCDOWELL-N | D133: 621.80 | E133: 622.53 | F133: 617.82 | G133: 613.83 | H133: 609.12 | I133: 626.52 | J133: 631.23 | K133: 635.22 | L133: 627.25 | M133: 618.55 | N133: 10745000 | O133: -0.73%
A134: 124 | B134: Others | C134: MCX | D134: 726.00 | E134: 730.30 | F134: 718.90 | G134: 711.80 | H134: 700.40 | I134: 737.40 | J134: 748.80 | K134: 755.90 | L134: 741.7 | M134: 723.2 | N134: 2517200 | O134: 4.20%
A135: 125 | B135: Finance | C135: MFSL | D135: 425.85 | E135: 428.18 | F135: 420.37 | G135: 414.88 | H135: 407.07 | I135: 433.67 | J135: 441.48 | K135: 446.97 | L135: 436 | M135: 422.7 | N135: 2217600 | O135: 0.60%
A136: 126 | B136: Others | C136: MGL | D136: 888.50 | E136: 892.00 | F136: 882.00 | G136: 875.50 | H136: 865.50 | I136: 898.50 | J136: 908.50 | K136: 915.00 | L136: 902 | M136: 885.5 | N136: 690600 | O136: -1.12%
A137: 127 | B137: Technology | C137: MINDTREE | D137: 834.55 | E137: 843.33 | F137: 818.87 | G137: 803.18 | H137: 778.72 | I137: 859.02 | J137: 883.48 | K137: 899.17 | L137: 867.8 | M137: 827.65 | N137: 2241000 | O137: 4.68%
A138: 128 | B138: Automobile | C138: MOTHERSUMI | D138: 162.05 | E138: 163.18 | F138: 159.82 | G138: 157.58 | H138: 154.22 | I138: 165.42 | J138: 168.78 | K138: 171.02 | L138: 166.55 | M138: 160.95 | N138: 22301250 | O138: 2.19%
A139: 129 | B139: Automobile | C139: MRF | D139: 67147.85 | E139: 67215.95 | F139: 66581.90 | G139: 66015.95 | H139: 65381.90 | I139: 67781.90 | J139: 68415.95 | K139: 68981.90 | L139: 67850 | M139: 66650 | N139: 23540 | O139: -3.21%
A140: 130 | B140: Others | C140: MRPL | D140: 72.15 | E140: 72.55 | F140: 71.35 | G140: 70.55 | H140: 69.35 | I140: 73.35 | J140: 74.55 | K140: 75.35 | L140: 73.75 | M140: 71.75 | N140: 5796000 | O140: 1.35%
A141: 131 | B141: Finance | C141: MUTHOOTFIN | D141: 497.45 | E141: 500.40 | F141: 493.45 | G141: 489.45 | H141: 482.50 | I141: 504.40 | J141: 511.35 | K141: 515.35 | L141: 507.35 | M141: 496.4 | N141: 2017500 | O141: -1.47%
A142: 132 | B142: Others | C142: NATIONALUM | D142: 62.00 | E142: 62.32 | F142: 61.43 | G142: 60.87 | H142: 59.98 | I142: 62.88 | J142: 63.77 | K142: 64.33 | L142: 63.2 | M142: 61.75 | N142: 25000000 | O142: 2.36%
A143: 133 | B143: Others | C143: NBCC | D143: 58.15 | E143: 58.33 | F143: 57.52 | G143: 56.88 | H143: 56.07 | I143: 58.97 | J143: 59.78 | K143: 60.42 | L143: 59.15 | M143: 57.7 | N143: 37384000 | O143: -0.85%
A144: 134 | B144: Infrastructure | C144: NCC | D144: 89.10 | E144: 89.67 | F144: 87.93 | G144: 86.77 | H144: 85.03 | I144: 90.83 | J144: 92.57 | K144: 93.73 | L144: 91.4 | M144: 88.5 | N144: 45328000 | O144: -2.83%
A145: 135 | B145: Others | C145: NESTLEIND | D145: 11245.35 | E145: 11301.50 | F145: 11054.85 | G145: 10864.35 | H145: 10617.70 | I145: 11492.00 | J145: 11738.65 | K145: 11929.15 | L145: 11548.15 | M145: 11111 | N145: 289150 | O145: 1.56%
A146: 136 | B146: Power | C146: NHPC | D146: 25.20 | E146: 25.27 | F146: 25.03 | G146: 24.87 | H146: 24.63 | I146: 25.43 | J146: 25.67 | K146: 25.83 | L146: 25.5 | M146: 25.1 | N146: 21573000 | O146: -1.84%
A147: 137 | B147: Technology | C147: NIITTECH | D147: 1138.95 | E147: 1146.68 | F147: 1126.77 | G147: 1114.58 | H147: 1094.67 | I147: 1158.87 | J147: 1178.78 | K147: 1190.97 | L147: 1166.6 | M147: 1134.5 | N147: 1488750 | O147: -0.25%
A148: 138 | B148: Metals | C148: NMDC | D148: 92.55 | E148: 93.63 | F148: 91.07 | G148: 89.58 | H148: 87.02 | I148: 95.12 | J148: 97.68 | K148: 99.17 | L148: 96.2 | M148: 92.15 | N148: 22374000 | O148: 6.36%
A149: 139 | B149: Power | C149: NTPC | D149: 143.40 | E149: 144.13 | F149: 142.12 | G149: 140.83 | H149: 138.82 | I149: 145.42 | J149: 147.43 | K149: 148.72 | L149: 146.15 | M149: 142.85 | N149: 41824000 | O149: -0.01%
A150: 140 | B150: Technology | C150: OFSS | D150: 3616.80 | E150: 3654.70 | F150: 3565.50 | G150: 3514.20 | H150: 3425.00 | I150: 3706.00 | J150: 3795.20 | K150: 3846.50 | L150: 3743.9 | M150: 3603.4 | N150: 107250 | O150: 3.03%
A151: 141 | B151: Oil_Gas | C151: OIL | D151: 170.10 | E151: 170.53 | F151: 169.22 | G151: 168.33 | H151: 167.02 | I151: 171.42 | J151: 172.73 | K151: 173.62 | L151: 171.85 | M151: 169.65 | N151: 8687844 | O151: -1.99%
A152: 142 | B152: Oil_Gas | C152: ONGC | D152: 143.15 | E152: 143.73 | F152: 141.72 | G152: 140.28 | H152: 138.27 | I152: 145.17 | J152: 147.18 | K152: 148.62 | L152: 145.75 | M152: 142.3 | N152: 47880000 | O152: -2.57%
A153: 143 | B153: Banking | C153: ORIENTBANK | D153: 96.10 | E153: 96.05 | F153: 94.85 | G153: 93.60 | H153: 92.40 | I153: 97.30 | J153: 98.50 | K153: 99.75 | L153: 97.25 | M153: 94.8 | N153: 12460000 | O153: -2.57%
A154: 144 | B154: Textile | C154: PAGEIND | D154: 23688.90 | E154: 24034.63 | F154: 23269.27 | G154: 22849.63 | H154: 22084.27 | I154: 24454.27 | J154: 25219.63 | K154: 25639.27 | L154: 24800 | M154: 23615 | N154: 126250 | O154: 1.10%
A155: 145 | B155: Others | C155: PCJEWELLER | D155: 82.65 | E155: 83.47 | F155: 81.28 | G155: 79.92 | H155: 77.73 | I155: 84.83 | J155: 87.02 | K155: 88.38 | L155: 85.65 | M155: 82.1 | N155: 9789000 | O155: -0.53%
A156: 146 | B156: Pharma | C156: PEL | D156: 2302.85 | E156: 2319.83 | F156: 2264.97 | G156: 2227.08 | H156: 2172.22 | I156: 2357.72 | J156: 2412.58 | K156: 2450.47 | L156: 2374.7 | M156: 2281.95 | N156: 2639178 | O156: 0.29%
A157: 147 | B157: Oil_Gas | C157: PETRONET | D157: 229.75 | E157: 229.70 | F157: 227.55 | G157: 225.35 | H157: 223.20 | I157: 231.90 | J157: 234.05 | K157: 236.25 | L157: 231.85 | M157: 227.5 | N157: 11223000 | O157: 0.81%
A158: 148 | B158: Finance | C158: PFC | D158: 105.50 | E158: 105.75 | F158: 103.40 | G158: 101.30 | H158: 98.95 | I158: 107.85 | J158: 110.20 | K158: 112.30 | L158: 108.1 | M158: 103.65 | N158: 34031800 | O158: 0.40%
A159: 149 | B159: FMCG | C159: PIDILITIND | D159: 1113.85 | E159: 1114.97 | F159: 1105.23 | G159: 1096.62 | H159: 1086.88 | I159: 1123.58 | J159: 1133.32 | K159: 1141.93 | L159: 1124.7 | M159: 1106.35 | N159: 2779500 | O159: -1.19%
A160: 150 | B160: Banking | C160: PNB | D160: 78.35 | E160: 78.38 | F160: 77.32 | G160: 76.28 | H160: 75.22 | I160: 79.42 | J160: 80.48 | K160: 81.52 | L160: 79.45 | M160: 77.35 | N160: 113771000 | O160: 0.54%
A161: 151 | B161: Power | C161: POWERGRID | D161: 192.95 | E161: 193.53 | F161: 192.07 | G161: 191.18 | H161: 189.72 | I161: 194.42 | J161: 195.88 | K161: 196.77 | L161: 195 | M161: 192.65 | N161: 26824000 | O161: 4.83%
A162: 152 | B162: Power | C162: PTC | D162: 89.75 | E162: 90.58 | F162: 88.42 | G162: 87.08 | H162: 84.92 | I162: 91.92 | J162: 94.08 | K162: 95.42 | L162: 92.75 | M162: 89.25 | N162: 6352000 | O162: 3.12%
A163: 153 | B163: Others | C163: PVR | D163: 1538.10 | E163: 1559.40 | F163: 1501.30 | G163: 1464.50 | H163: 1406.40 | I163: 1596.20 | J163: 1654.30 | K163: 1691.10 | L163: 1617.5 | M163: 1522.6 | N163: 1429200 | O163: 5.03%
A164: 154 | B164: Cement | C164: RAMCOCEM | D164: 631.65 | E164: 635.58 | F164: 626.07 | G164: 620.48 | H164: 610.97 | I164: 641.17 | J164: 650.68 | K164: 656.27 | L164: 645.1 | M164: 630 | N164: 720000 | O164: 5.63%
A165: 155 | B165: Others | C165: RAYMOND | D165: 813.95 | E165: 817.77 | F165: 804.73 | G165: 795.52 | H165: 782.48 | I165: 826.98 | J165: 840.02 | K165: 849.23 | L165: 830.8 | M165: 808.55 | N165: 3712800 | O165: -1.07%
A166: 156 | B166: Banking | C166: RBLBANK | D166: 563.45 | E166: 567.05 | F166: 558.80 | G166: 554.15 | H166: 545.90 | I166: 571.70 | J166: 579.95 | K166: 584.60 | L166: 575.3 | M166: 562.4 | N166: 5162400 | O166: -0.21%
A167: 157 | B167: Telecom | C167: RCOM | D167: 13.45 | E167: 13.55 | F167: 13.25 | G167: 13.05 | H167: 12.75 | I167: 13.75 | J167: 14.05 | K167: 14.25 | L167: 13.85 | M167: 13.35 | N167: 92582000 | O167: 1.87%
A168: 158 | B168: Power | C168: RECLTD | D168: 120.70 | E168: 120.63 | F168: 118.57 | G168: 116.43 | H168: 114.37 | I168: 122.77 | J168: 124.83 | K168: 126.97 | L168: 122.7 | M168: 118.5 | N168: 42870000 | O168: 3.63%
A169: 159 | B169: Finance | C169: RELCAPITAL | D169: 215.00 | E169: 217.42 | F169: 211.08 | G169: 207.17 | H169: 200.83 | I169: 221.33 | J169: 227.67 | K169: 231.58 | L169: 223.75 | M169: 213.5 | N169: 12990000 | O169: 2.26%
A170: 160 | B170: Oil_Gas | C170: RELIANCE | D170: 1098.55 | E170: 1104.83 | F170: 1090.37 | G170: 1082.18 | H170: 1067.72 | I170: 1113.02 | J170: 1127.48 | K170: 1135.67 | L170: 1119.3 | M170: 1096.65 | N170: 48916500 | O170: 1.72%
A171: 161 | B171: Power | C171: RELINFRA | D171: 290.20 | E171: 296.60 | F171: 282.20 | G171: 274.20 | H171: 259.80 | I171: 304.60 | J171: 319.00 | K171: 327.00 | L171: 311 | M171: 288.6 | N171: 9763000 | O171: 5.23%
A172: 162 | B172: Others | C172: REPCOHOME | D172: 398.10 | E172: 398.50 | F172: 387.45 | G172: 376.80 | H172: 365.75 | I172: 409.15 | J172: 420.20 | K172: 430.85 | L172: 409.55 | M172: 387.85 | N172: 1409100 | O172: -2.66%
A173: 163 | B173: Power | C173: RPOWER | D173: 27.20 | E173: 27.38 | F173: 26.87 | G173: 26.53 | H173: 26.02 | I173: 27.72 | J173: 28.23 | K173: 28.57 | L173: 27.9 | M173: 27.05 | N173: 52768000 | O173: -0.12%
A174: 164 | B174: Metals | C174: SAIL | D174: 52.55 | E174: 53.03 | F174: 51.92 | G174: 51.28 | H174: 50.17 | I174: 53.67 | J174: 54.78 | K174: 55.42 | L174: 54.15 | M174: 52.4 | N174: 80712000 | O174: -0.37%
A175: 165 | B175: Banking | C175: SBIN | D175: 292.95 | E175: 293.93 | F175: 290.87 | G175: 288.78 | H175: 285.72 | I175: 296.02 | J175: 299.08 | K175: 301.17 | L175: 297 | M175: 291.85 | N175: 77460000 | O175: 2.25%
A176: 166 | B176: Cement | C176: SHREECEM | D176: 16987.90 | E176: 17083.97 | F176: 16803.93 | G176: 16619.97 | H176: 16339.93 | I176: 17267.93 | J176: 17547.97 | K176: 17731.93 | L176: 17364 | M176: 16900 | N176: 74900 | O176: 0.47%
A177: 167 | B177: Capital_Goods | C177: SIEMENS | D177: 1041.15 | E177: 1047.88 | F177: 1026.77 | G177: 1012.38 | H177: 991.27 | I177: 1062.27 | J177: 1083.38 | K177: 1097.77 | L177: 1069 | M177: 1033.5 | N177: 1892000 | O177: -7.08%
A178: 168 | B178: Banking | C178: SOUTHBANK | D178: 15.40 | E178: 15.43 | F178: 15.32 | G178: 15.23 | H178: 15.12 | I178: 15.52 | J178: 15.63 | K178: 15.72 | L178: 15.55 | M178: 15.35 | N178: 135148998 | O178: 1.32%
A179: 169 | B179: Others | C179: SREINFRA | D179: 34.10 | E179: 34.38 | F179: 33.67 | G179: 33.23 | H179: 32.52 | I179: 34.82 | J179: 35.53 | K179: 35.97 | L179: 35.1 | M179: 33.95 | N179: 11832000 | O179: -1.79%
A180: 170 | B180: Textile | C180: SRF | D180: 1988.20 | E180: 1996.78 | F180: 1970.07 | G180: 1951.93 | H180: 1925.22 | I180: 2014.92 | J180: 2041.63 | K180: 2059.77 | L180: 2023.5 | M180: 1978.65 | N180: 808500 | O180: 2.80%
A181: 171 | B181: Finance | C181: SRTRANSFIN | D181: 1160.40 | E181: 1175.88 | F181: 1134.92 | G181: 1109.43 | H181: 1068.47 | I181: 1201.37 | J181: 1242.33 | K181: 1267.82 | L181: 1216.85 | M181: 1150.4 | N181: 3924000 | O181: 5.04%
A182: 172 | B182: Pharma | C182: STAR | D182: 457.65 | E182: 459.60 | F182: 454.40 | G182: 451.15 | H182: 445.95 | I182: 462.85 | J182: 468.05 | K182: 471.30 | L182: 464.8 | M182: 456.35 | N182: 3909400 | O182: -2.01%
A183: 173 | B183: Pharma | C183: SUNPHARMA | D183: 437.30 | E183: 439.25 | F183: 433.60 | G183: 429.90 | H183: 424.25 | I183: 442.95 | J183: 448.60 | K183: 452.30 | L183: 444.9 | M183: 435.55 | N183: 54203600 | O183: -2.14%
A184: 174 | B184: Media | C184: SUNTV | D184: 588.80 | E184: 594.47 | F184: 580.83 | G184: 572.87 | H184: 559.23 | I184: 602.43 | J184: 616.07 | K184: 624.03 | L184: 608.1 | M184: 586.5 | N184: 6999000 | O184: 0.85%
A185: 175 | B185: Power | C185: SUZLON | D185: 5.40 | E185: 5.40 | F185: 5.35 | G185: 5.30 | H185: 5.25 | I185: 5.45 | J185: 5.50 | K185: 5.55 | L185: 5.45 | M185: 5.35 | N185: 289940000 | O185: 0.77%
A186: 176 | B186: Banking | C186: SYNDIBANK | D186: 38.95 | E186: 39.03 | F186: 38.67 | G186: 38.38 | H186: 38.02 | I186: 39.32 | J186: 39.68 | K186: 39.97 | L186: 39.4 | M186: 38.75 | N186: 22680000 | O186: 2.02%
A187: 177 | B187: Fertilisers | C187: TATACHEM | D187: 697.95 | E187: 700.48 | F187: 693.07 | G187: 688.18 | H187: 680.77 | I187: 705.37 | J187: 712.78 | K187: 717.67 | L187: 707.9 | M187: 695.6 | N187: 2382750 | O187: 0.54%
A188: 178 | B188: Telecom | C188: TATACOMM | D188: 538.20 | E188: 535.13 | F188: 528.02 | G188: 517.83 | H188: 510.72 | I188: 545.32 | J188: 552.43 | K188: 562.62 | L188: 542.25 | M188: 524.95 | N188: 2364000 | O188: -2.43%
A189: 179 | B189: Technology | C189: TATAELXSI | D189: 1033.00 | E189: 1035.35 | F189: 1027.70 | G189: 1022.40 | H189: 1014.75 | I189: 1040.65 | J189: 1048.30 | K189: 1053.60 | L189: 1043 | M189: 1030.05 | N189: 1422400 | O189: 2.21%
A190: 180 | B190: FMCG | C190: TATAGLOBAL | D190: 211.55 | E190: 213.03 | F190: 209.62 | G190: 207.68 | H190: 204.27 | I190: 214.97 | J190: 218.38 | K190: 220.32 | L190: 216.45 | M190: 211.1 | N190: 10786500 | O190: 2.83%
A191: 181 | B191: Automobile | C191: TATAMOTORS | D191: 166.65 | E191: 167.75 | F191: 165.05 | G191: 163.45 | H191: 160.75 | I191: 169.35 | J191: 172.05 | K191: 173.65 | L191: 170.45 | M191: 166.15 | N191: 61034000 | O191: 2.29%
A192: 182 | B192: Automobile | C192: TATAMTRDVR | D192: 89.35 | E192: 89.90 | F192: 88.55 | G192: 87.75 | H192: 86.40 | I192: 90.70 | J192: 92.05 | K192: 92.85 | L192: 91.25 | M192: 89.1 | N192: 27588000 | O192: 1.33%
A193: 183 | B193: Power | C193: TATAPOWER | D193: 74.45 | E193: 75.02 | F193: 73.63 | G193: 72.82 | H193: 71.43 | I193: 75.83 | J193: 77.22 | K193: 78.03 | L193: 76.4 | M193: 74.2 | N193: 46305000 | O193: -0.14%
A194: 184 | B194: Metals | C194: TATASTEEL | D194: 482.90 | E194: 486.67 | F194: 478.33 | G194: 473.77 | H194: 465.43 | I194: 491.23 | J194: 499.57 | K194: 504.13 | L194: 495 | M194: 482.1 | N194: 39314294 | O194: 6.74%
A195: 185 | B195: Technology | C195: TCS | D195: 1903.35 | E195: 1914.72 | F195: 1882.73 | G195: 1862.12 | H195: 1830.13 | I195: 1935.33 | J195: 1967.32 | K195: 1987.93 | L195: 1946.7 | M195: 1894.1 | N195: 12638500 | O195: 4.03%
A196: 186 | B196: Technology | C196: TECHM | D196: 695.25 | E196: 701.40 | F196: 683.00 | G196: 670.75 | H196: 652.35 | I196: 713.65 | J196: 732.05 | K196: 744.30 | L196: 719.8 | M196: 689.15 | N196: 11973600 | O196: 0.15%
A197: 187 | B197: FMCG | C197: TITAN | D197: 934.15 | E197: 937.32 | F197: 927.08 | G197: 920.02 | H197: 909.78 | I197: 944.38 | J197: 954.62 | K197: 961.68 | L197: 947.55 | M197: 930.25 | N197: 14365500 | O197: -2.38%
A198: 188 | B198: Pharma | C198: TORNTPHARM | D198: 1797.55 | E198: 1790.18 | F198: 1773.72 | G198: 1749.88 | H198: 1733.42 | I198: 1814.02 | J198: 1830.48 | K198: 1854.32 | L198: 1806.65 | M198: 1766.35 | N198: 437500 | O198: 41.36%
A199: 189 | B199: Power | C199: TORNTPOWER | D199: 261.25 | E199: 260.48 | F199: 256.77 | G199: 252.28 | H199: 248.57 | I199: 264.97 | J199: 268.68 | K199: 273.17 | L199: 264.2 | M199: 256 | N199: 2265000 | O199: -2.96%
A200: 190 | B200: Media | C200: TV18BRDCST | D200: 37.25 | E200: 37.43 | F200: 36.87 | G200: 36.48 | H200: 35.92 | I200: 37.82 | J200: 38.38 | K200: 38.77 | L200: 38 | M200: 37.05 | N200: 51506000 | O200: 0.13%
A201: 191 | B201: Automobile | C201: TVSMOTOR | D201: 538.20 | E201: 538.25 | F201: 532.50 | G201: 526.80 | H201: 521.05 | I201: 543.95 | J201: 549.70 | K201: 555.40 | L201: 544 | M201: 532.55 | N201: 3800000 | O201: 1.25%
A202: 192 | B202: FMCG | C202: UBL | D202: 1372.00 | E202: 1373.63 | F202: 1361.37 | G202: 1350.73 | H202: 1338.47 | I202: 1384.27 | J202: 1396.53 | K202: 1407.17 | L202: 1385.9 | M202: 1363 | N202: 1895600 | O202: -3.35%
A203: 193 | B203: Finance | C203: UJJIVAN | D203: 285.95 | E203: 283.12 | F203: 276.63 | G203: 267.32 | H203: 260.83 | I203: 292.43 | J203: 298.92 | K203: 308.23 | L203: 289.6 | M203: 273.8 | N203: 3518400 | O203: 2.14%
A204: 194 | B204: Cement | C204: ULTRACEMCO | D204: 3922.55 | E204: 3951.63 | F204: 3874.27 | G204: 3825.98 | H204: 3748.62 | I204: 3999.92 | J204: 4077.28 | K204: 4125.57 | L204: 4029 | M204: 3903.35 | N204: 1660000 | O204: 2.95%
A205: 195 | B205: Banking | C205: UNIONBANK | D205: 89.25 | E205: 89.18 | F205: 88.02 | G205: 86.78 | H205: 85.62 | I205: 90.42 | J205: 91.58 | K205: 92.82 | L205: 90.35 | M205: 87.95 | N205: 40145000 | O205: 2.45%
A206: 196 | B206: Fertilisers | C206: UPL | D206: 751.60 | E206: 757.82 | F206: 743.18 | G206: 734.77 | H206: 720.13 | I206: 766.23 | J206: 780.87 | K206: 789.28 | L206: 772.45 | M206: 749.4 | N206: 17503200 | O206: 0.19%
... 22 more rows

Sheet Cash Intra
M5: Back to Main Page
A6: FOR INTRA DAY TRADING | K6: =Main!B10 -> 2019-01-04
A8: Sr.no | B8: Scrip | C8: CLOSE RATE | D8: Pivot Point | E8: Supports | H8: Resistances
C9: Point | E9: S1 | F9: S2 | G9: S3 | H9: R1 | I9: R2 | J9: R3 | K9: HIGH | L9: LOW | M9: Total Trade Quanity in Lakhs
A10: 1 | B10: Nifty 50 | C10: 10672.25 | D10: 10715.85 | E10: 10617.65 | F10: 10563.05 | G10: 10464.85 | H10: 10770.45 | I10: 10868.65 | J10: 10923.25 | K10: 10814.05 | L10: 10661.25
A11: 2 | B11: Nifty Bank | C11: 26959.85 | D11: 27029.93 | E11: 26853.67 | F11: 26747.48 | G11: 26571.22 | H11: 27136.12 | I11: 27312.38 | J11: 27418.57 | K11: 27206.2 | L11: 26923.75
A12: 3 | B12: Nifty CPSE | C12: 2004.1 | D12: 2014.07 | E12: 1991.23 | F12: 1978.37 | G12: 1955.53 | H12: 2026.93 | I12: 2049.77 | J12: 2062.63 | K12: 2036.9 | L12: 2001.2
A13: 4 | B13: Nifty Infra | C13: 3104.05 | D13: 3118.52 | E13: 3085.18 | F13: 3066.32 | G13: 3032.98 | H13: 3137.38 | I13: 3170.72 | J13: 3189.58 | K13: 3151.85 | L13: 3099.65
A14: 5 | B14: Nifty IT | C14: 14322.15 | D14: 14380.32 | E14: 14218.33 | F14: 14114.52 | G14: 13952.53 | H14: 14484.13 | I14: 14646.12 | J14: 14749.93 | K14: 14542.3 | L14: 14276.5
A15: 6 | B15: Nifty PSE | C15: 3290 | D15: 3303.80 | E15: 3271.25 | F15: 3252.50 | G15: 3219.95 | H15: 3322.55 | I15: 3355.10 | J15: 3373.85 | K15: 3336.35 | L15: 3285.05
A16: 7 | B16: Nifty Midcap 50 | C16: 4806 | D16: 4829.60 | E16: 4774.90 | F16: 4743.80 | G16: 4689.10 | H16: 4860.70 | I16: 4915.40 | J16: 4946.50 | K16: 4884.3 | L16: 4798.5
A17: 8 | B17: ABB | C17: 1308.95 | D17: 1313.72 | E17: 1297.43 | F17: 1285.92 | G17: 1269.63 | H17: 1325.23 | I17: 1341.52 | J17: 1353.03 | K17: 1330 | L17: 1302.2 | M17: 0.51343
A18: 9 | B18: ACC | C18: 1452.25 | D18: 1463.45 | E18: 1434.20 | F18: 1416.15 | G18: 1386.90 | H18: 1481.50 | I18: 1510.75 | J18: 1528.80 | K18: 1492.7 | L18: 1445.4 | M18: 4.5197
A19: 10 | B19: AIAENG | C19: 1677.6 | D19: 1672.02 | E19: 1645.08 | F19: 1612.57 | G19: 1585.63 | H19: 1704.53 | I19: 1731.47 | J19: 1763.98 | K19: 1698.95 | L19: 1639.5 | M19: 0.24721
A20: 11 | B20: AUBANK | C20: 621.35 | D20: 621.93 | E20: 615.57 | F20: 609.78 | G20: 603.42 | H20: 627.72 | I20: 634.08 | J20: 639.87 | K20: 628.3 | L20: 616.15 | M20: 1.33626
A21: 12 | B21: ADANIENT | C21: 152.5 | D21: 152.97 | E21: 149.83 | F21: 147.17 | G21: 144.03 | H21: 155.63 | I21: 158.77 | J21: 161.43 | K21: 156.1 | L21: 150.3 | M21: 27.58876
A22: 13 | B22: ADANIPORTS | C22: 378.1 | D22: 380.00 | E22: 374.70 | F22: 371.30 | G22: 366.00 | H22: 383.40 | I22: 388.70 | J22: 392.10 | K22: 385.3 | L22: 376.6 | M22: 19.02063
A23: 14 | B23: ADANIPOWER | C23: 50.35 | D23: 50.00 | E23: 49.15 | F23: 47.95 | G23: 47.10 | H23: 51.20 | I23: 52.05 | J23: 53.25 | K23: 50.85 | L23: 48.8 | M23: 71.13733
A24: 15 | B24: ABFRL | C24: 197.75 | D24: 197.20 | E24: 194.60 | F24: 191.45 | G24: 188.85 | H24: 200.35 | I24: 202.95 | J24: 206.10 | K24: 199.8 | L24: 194.05 | M24: 6.37477
A25: 16 | B25: AJANTPHARM | C25: 1150.9 | D25: 1157.12 | E25: 1139.78 | F25: 1128.67 | G25: 1111.33 | H25: 1168.23 | I25: 1185.57 | J25: 1196.68 | K25: 1174.45 | L25: 1146 | M25: 1.29568
A26: 17 | B26: ALKEM | C26: 1962.4 | D26: 1957.73 | E26: 1945.67 | F26: 1928.93 | G26: 1916.87 | H26: 1974.47 | I26: 1986.53 | J26: 2003.27 | K26: 1969.8 | L26: 1941 | M26: 0.17059
A27: 18 | B27: AMARAJABAT | C27: 716 | D27: 720.17 | E27: 705.98 | F27: 695.97 | G27: 681.78 | H27: 730.18 | I27: 744.37 | J27: 754.38 | K27: 734.35 | L27: 710.15 | M27: 3.72293
A28: 19 | B28: AMBUJACEM | C28: 213.85 | D28: 215.97 | E28: 211.03 | F28: 208.22 | G28: 203.28 | H28: 218.78 | I28: 223.72 | J28: 226.53 | K28: 220.9 | L28: 213.15 | M28: 16.12955
A29: 20 | B29: APOLLOHOSP | C29: 1266.65 | D29: 1264.57 | E29: 1256.13 | F29: 1245.62 | G29: 1237.18 | H29: 1275.08 | I29: 1283.52 | J29: 1294.03 | K29: 1273 | L29: 1254.05 | M29: 3.22081
A30: 21 | B30: APOLLOTYRE | C30: 227.85 | D30: 229.25 | E30: 225.95 | F30: 224.05 | G30: 220.75 | H30: 231.15 | I30: 234.45 | J30: 236.35 | K30: 232.55 | L30: 227.35 | M30: 11.83802
A31: 22 | B31: ARVIND | C31: 95.1 | D31: 95.75 | E31: 94.10 | F31: 93.10 | G31: 91.45 | H31: 96.75 | I31: 98.40 | J31: 99.40 | K31: 97.4 | L31: 94.75 | M31: 21.30504
A32: 23 | B32: ASHOKLEY | C32: 98.15 | D32: 98.78 | E32: 97.27 | F32: 96.38 | G32: 94.87 | H32: 99.67 | I32: 101.18 | J32: 102.07 | K32: 100.3 | L32: 97.9 | M32: 243.74807
A33: 24 | B33: ASIANPAINT | C33: 1388.3 | D33: 1386.72 | E33: 1379.58 | F33: 1370.87 | G33: 1363.73 | H33: 1395.43 | I33: 1402.57 | J33: 1411.28 | K33: 1393.85 | L33: 1378 | M33: 16.36293
A34: 25 | B34: AUROPHARMA | C34: 715.9 | D34: 716.62 | E34: 709.83 | F34: 703.77 | G34: 696.98 | H34: 722.68 | I34: 729.47 | J34: 735.53 | K34: 723.4 | L34: 710.55 | M34: 13.57059
A35: 26 | B35: DMART | C35: 1575.9 | D35: 1574.90 | E35: 1556.50 | F35: 1537.10 | G35: 1518.70 | H35: 1594.30 | I35: 1612.70 | J35: 1632.10 | K35: 1593.3 | L35: 1555.5 | M35: 5.16324
A36: 27 | B36: AXISBANK | C36: 607.95 | D36: 611.20 | E36: 600.40 | F36: 592.85 | G36: 582.05 | H36: 618.75 | I36: 629.55 | J36: 637.10 | K36: 622 | L36: 603.65 | M36: 132.28602
A37: 28 | B37: BAJAJ-AUTO | C37: 2701.35 | D37: 2702.43 | E37: 2681.02 | F37: 2660.68 | G37: 2639.27 | H37: 2722.77 | I37: 2744.18 | J37: 2764.52 | K37: 2723.85 | L37: 2682.1 | M37: 3.10511
A38: 29 | B38: BAJFINANCE | C38: 2586.2 | D38: 2603.17 | E38: 2558.33 | F38: 2530.47 | G38: 2485.63 | H38: 2631.03 | I38: 2675.87 | J38: 2703.73 | K38: 2648 | L38: 2575.3 | M38: 12.82478
A39: 30 | B39: BAJAJFINSV | C39: 6383.3 | D39: 6398.28 | E39: 6316.67 | F39: 6250.03 | G39: 6168.42 | H39: 6464.92 | I39: 6546.53 | J39: 6613.17 | K39: 6479.9 | L39: 6331.65 | M39: 2.15845
A40: 31 | B40: BALKRISIND | C40: 900.75 | D40: 906.90 | E40: 892.85 | F40: 884.95 | G40: 870.90 | H40: 914.80 | I40: 928.85 | J40: 936.75 | K40: 920.95 | L40: 899 | M40: 4.06107
A41: 32 | B41: BANKBARODA | C41: 119.3 | D41: 120.27 | E41: 117.13 | F41: 114.97 | G41: 111.83 | H41: 122.43 | I41: 125.57 | J41: 127.73 | K41: 123.4 | L41: 118.1 | M41: 402.46215
A42: 33 | B42: BANKINDIA | C42: 105.75 | D42: 105.62 | E42: 104.13 | F42: 102.52 | G42: 101.03 | H42: 107.23 | I42: 108.72 | J42: 110.33 | K42: 107.1 | L42: 104 | M42: 122.99077
A43: 34 | B43: BATAINDIA | C43: 1113 | D43: 1116.48 | E43: 1104.52 | F43: 1096.03 | G43: 1084.07 | H43: 1124.97 | I43: 1136.93 | J43: 1145.42 | K43: 1128.45 | L43: 1108 | M43: 5.73624
A44: 35 | B44: BERGEPAINT | C44: 325.1 | D44: 326.43 | E44: 322.32 | F44: 319.53 | G44: 315.42 | H44: 329.22 | I44: 333.33 | J44: 336.12 | K44: 330.55 | L44: 323.65 | M44: 14.43999
A45: 36 | B45: BEL | C45: 88.8 | D45: 89.33 | E45: 87.82 | F45: 86.83 | G45: 85.32 | H45: 90.32 | I45: 91.83 | J45: 92.82 | K45: 90.85 | L45: 88.35 | M45: 132.69297
A46: 37 | B46: BHARATFIN | C46: 992.9 | D46: 994.72 | E46: 984.53 | F46: 976.17 | G46: 965.98 | H46: 1003.08 | I46: 1013.27 | J46: 1021.63 | K46: 1004.9 | L46: 986.35 | M46: 2.59876
A47: 38 | B47: BHARATFORG | C47: 487.5 | D47: 491.13 | E47: 481.87 | F47: 476.23 | G47: 466.97 | H47: 496.77 | I47: 506.03 | J47: 511.67 | K47: 500.4 | L47: 485.5 | M47: 17.32579
A48: 39 | B48: BHEL | C48: 70.75 | D48: 71.38 | E48: 69.77 | F48: 68.78 | G48: 67.17 | H48: 72.37 | I48: 73.98 | J48: 74.97 | K48: 73 | L48: 70.4 | M48: 80.83906
A49: 40 | B49: BPCL | C49: 352.5 | D49: 351.82 | E49: 348.83 | F49: 345.17 | G49: 342.18 | H49: 355.48 | I49: 358.47 | J49: 362.13 | K49: 354.8 | L49: 348.15 | M49: 49.8613
A50: 41 | B50: BHARTIARTL | C50: 313.5 | D50: 312.32 | E50: 309.13 | F50: 304.77 | G50: 301.58 | H50: 316.68 | I50: 319.87 | J50: 324.23 | K50: 315.5 | L50: 307.95 | M50: 56.15566
A51: 42 | B51: INFRATEL | C51: 271.6 | D51: 269.53 | E51: 265.67 | F51: 259.73 | G51: 255.87 | H51: 275.47 | I51: 279.33 | J51: 285.27 | K51: 273.4 | L51: 263.6 | M51: 28.88878
A52: 43 | B52: BIOCON | C52: 612 | D52: 616.52 | E52: 606.48 | F52: 600.97 | G52: 590.93 | H52: 622.03 | I52: 632.07 | J52: 637.58 | K52: 626.55 | L52: 611 | M52: 8.8639
A53: 44 | B53: BOSCHLTD | C53: 19299.85 | D53: 19404.17 | E53: 19106.78 | F53: 18913.72 | G53: 18616.33 | H53: 19597.23 | I53: 19894.62 | J53: 20087.68 | K53: 19701.55 | L53: 19211.1 | M53: 0.18865
A54: 45 | B54: BRITANNIA | C54: 3135.9 | D54: 3136.77 | E54: 3096.53 | F54: 3057.17 | G54: 3016.93 | H54: 3176.13 | I54: 3216.37 | J54: 3255.73 | K54: 3177 | L54: 3097.4 | M54: 3.11498
A55: 46 | B55: CRISIL | C55: 1638 | D55: 1635.50 | E55: 1622.60 | F55: 1607.20 | G55: 1594.30 | H55: 1650.90 | I55: 1663.80 | J55: 1679.20 | K55: 1648.4 | L55: 1620.1 | M55: 0.05612
A56: 47 | B56: CADILAHC | C56: 343.65 | D56: 344.82 | E56: 340.83 | F56: 338.02 | G56: 334.03 | H56: 347.63 | I56: 351.62 | J56: 354.43 | K56: 348.8 | L56: 342 | M56: 4.82203
A57: 48 | B57: CANBK | C57: 276.3 | D57: 276.02 | E57: 273.63 | F57: 270.97 | G57: 268.58 | H57: 278.68 | I57: 281.07 | J57: 283.73 | K57: 278.4 | L57: 273.35 | M57: 39.93439
A58: 49 | B58: CASTROLIND | C58: 146.9 | D58: 147.23 | E58: 145.72 | F58: 144.53 | G58: 143.02 | H58: 148.42 | I58: 149.93 | J58: 151.12 | K58: 148.75 | L58: 146.05 | M58: 6.91547
A59: 50 | B59: CENTRALBK | C59: 36.95 | D59: 36.92 | E59: 36.43 | F59: 35.92 | G59: 35.43 | H59: 37.43 | I59: 37.92 | J59: 38.43 | K59: 37.4 | L59: 36.4 | M59: 13.55968
A60: 51 | B60: CENTURYTEX | C60: 898.15 | D60: 903.88 | E60: 888.27 | F60: 878.38 | G60: 862.77 | H60: 913.77 | I60: 929.38 | J60: 939.27 | K60: 919.5 | L60: 894 | M60: 4.56198
A61: 52 | B61: CHOLAFIN | C61: 1200.45 | D61: 1214.48 | E61: 1181.97 | F61: 1163.48 | G61: 1130.97 | H61: 1232.97 | I61: 1265.48 | J61: 1283.97 | K61: 1247 | L61: 1196 | M61: 2.25916
A62: 53 | B62: CIPLA | C62: 512.4 | D62: 514.70 | E62: 508.90 | F62: 505.40 | G62: 499.60 | H62: 518.20 | I62: 524.00 | J62: 527.50 | K62: 520.5 | L62: 511.2 | M62: 20.8615
A63: 54 | B63: COALINDIA | C63: 235 | D63: 235.63 | E63: 232.57 | F63: 230.13 | G63: 227.07 | H63: 238.07 | I63: 241.13 | J63: 243.57 | K63: 238.7 | L63: 233.2 | M63: 56.64136
A64: 55 | B64: COLPAL | C64: 1314.25 | D64: 1308.73 | E64: 1296.57 | F64: 1278.88 | G64: 1266.72 | H64: 1326.42 | I64: 1338.58 | J64: 1356.27 | K64: 1320.9 | L64: 1291.05 | M64: 4.07748
A65: 56 | B65: CONCOR | C65: 670 | D65: 669.98 | E65: 667.07 | F65: 664.13 | G65: 661.22 | H65: 672.92 | I65: 675.83 | J65: 678.77 | K65: 672.9 | L65: 667.05 | M65: 6.72072
A66: 57 | B66: COROMANDEL | C66: 451.15 | D66: 451.47 | E66: 448.98 | F66: 446.82 | G66: 444.33 | H66: 453.63 | I66: 456.12 | J66: 458.28 | K66: 453.95 | L66: 449.3 | M66: 0.45711
A67: 58 | B67: CROMPTON | C67: 228.95 | D67: 231.28 | E67: 224.67 | F67: 220.38 | G67: 213.77 | H67: 235.57 | I67: 242.18 | J67: 246.47 | K67: 237.9 | L67: 227 | M67: 5.25613
A68: 59 | B68: CUMMINSIND | C68: 834.75 | D68: 841.37 | E68: 825.38 | F68: 816.02 | G68: 800.03 | H68: 850.73 | I68: 866.72 | J68: 876.08 | K68: 857.35 | L68: 832 | M68: 2.80927
A69: 60 | B69: DLF | C69: 172.45 | D69: 172.85 | E69: 170.75 | F69: 169.05 | G69: 166.95 | H69: 174.55 | I69: 176.65 | J69: 178.35 | K69: 174.95 | L69: 171.15 | M69: 58.73745
A70: 61 | B70: DABUR | C70: 422 | D70: 420.50 | E70: 415.00 | F70: 408.00 | G70: 402.50 | H70: 427.50 | I70: 433.00 | J70: 440.00 | K70: 426 | L70: 413.5 | M70: 32.71824
A71: 62 | B71: DHFL | C71: 235.65 | D71: 237.98 | E71: 231.67 | F71: 227.68 | G71: 221.37 | H71: 241.97 | I71: 248.28 | J71: 252.27 | K71: 244.3 | L71: 234 | M71: 58.39267
A72: 63 | B72: DISHTV | C72: 37.95 | D72: 38.17 | E72: 37.38 | F72: 36.82 | G72: 36.03 | H72: 38.73 | I72: 39.52 | J72: 40.08 | K72: 38.95 | L72: 37.6 | M72: 35.98166
A73: 64 | B73: DIVISLAB | C73: 1437.9 | D73: 1450.93 | E73: 1419.07 | F73: 1400.23 | G73: 1368.37 | H73: 1469.77 | I73: 1501.63 | J73: 1520.47 | K73: 1482.8 | L73: 1432.1 | M73: 5.36515
A74: 65 | B74: LALPATHLAB | C74: 913.05 | D74: 909.38 | E74: 900.77 | F74: 888.48 | G74: 879.87 | H74: 921.67 | I74: 930.28 | J74: 942.57 | K74: 918 | L74: 897.1 | M74: 0.71756
A75: 66 | B75: DRREDDY | C75: 2577.35 | D75: 2585.38 | E75: 2555.97 | F75: 2534.58 | G75: 2505.17 | H75: 2606.77 | I75: 2636.18 | J75: 2657.57 | K75: 2614.8 | L75: 2564 | M75: 5.41891
A76: 67 | B76: EDELWEISS | C76: 176.75 | D76: 177.80 | E76: 174.70 | F76: 172.65 | G76: 169.55 | H76: 179.85 | I76: 182.95 | J76: 185.00 | K76: 180.9 | L76: 175.75 | M76: 10.19179
A77: 68 | B77: EICHERMOT | C77: 20211.45 | D77: 20467.48 | E77: 19894.97 | F77: 19578.48 | G77: 19005.97 | H77: 20783.97 | I77: 21356.48 | J77: 21672.97 | K77: 21040 | L77: 20151 | M77: 4.68301
A78: 69 | B78: EMAMILTD | C78: 421.85 | D78: 423.67 | E78: 418.13 | F78: 414.42 | G78: 408.88 | H78: 427.38 | I78: 432.92 | J78: 436.63 | K78: 429.2 | L78: 419.95 | M78: 1.15813
A79: 70 | B79: ENDURANCE | C79: 1246.7 | D79: 1246.18 | E79: 1238.57 | F79: 1230.43 | G79: 1222.82 | H79: 1254.32 | I79: 1261.93 | J79: 1270.07 | K79: 1253.8 | L79: 1238.05 | M79: 0.09154
A80: 71 | B80: ENGINERSIN | C80: 124.85 | D80: 125.08 | E80: 123.97 | F80: 123.08 | G80: 121.97 | H80: 125.97 | I80: 127.08 | J80: 127.97 | K80: 126.2 | L80: 124.2 | M80: 5.74906
A81: 72 | B81: EXIDEIND | C81: 257.5 | D81: 258.92 | E81: 255.18 | F81: 252.87 | G81: 249.13 | H81: 261.23 | I81: 264.97 | J81: 267.28 | K81: 262.65 | L81: 256.6 | M81: 13.88814
A82: 73 | B82: FEDERALBNK | C82: 92 | D82: 92.92 | E82: 90.53 | F82: 89.07 | G82: 86.68 | H82: 94.38 | I82: 96.77 | J82: 98.23 | K82: 95.3 | L82: 91.45 | M82: 125.7316
A83: 74 | B83: GAIL | C83: 349.95 | D83: 349.78 | E83: 347.12 | F83: 344.28 | G83: 341.62 | H83: 352.62 | I83: 355.28 | J83: 358.12 | K83: 352.45 | L83: 346.95 | M83: 23.97912
A84: 75 | B84: GMRINFRA | C84: 15.65 | D84: 15.78 | E84: 15.47 | F84: 15.28 | G84: 14.97 | H84: 15.97 | I84: 16.28 | J84: 16.47 | K84: 16.1 | L84: 15.6 | M84: 110.69953
A85: 76 | B85: GSKCONS | C85: 7483.15 | D85: 7512.20 | E85: 7436.00 | F85: 7388.85 | G85: 7312.65 | H85: 7559.35 | I85: 7635.55 | J85: 7682.70 | K85: 7588.4 | L85: 7465.05 | M85: 0.21969
A86: 77 | B86: GLAXO | C86: 1472.05 | D86: 1475.67 | E86: 1441.33 | F86: 1410.62 | G86: 1376.28 | H86: 1506.38 | I86: 1540.72 | J86: 1571.43 | K86: 1510 | L86: 1444.95 | M86: 0.13004
A87: 78 | B87: GLENMARK | C87: 661.55 | D87: 667.83 | E87: 653.07 | F87: 644.58 | G87: 629.82 | H87: 676.32 | I87: 691.08 | J87: 699.57 | K87: 682.6 | L87: 659.35 | M87: 6.12332
A88: 79 | B88: GODREJCP | C88: 814.9 | D88: 810.07 | E88: 795.73 | F88: 776.57 | G88: 762.23 | H88: 829.23 | I88: 843.57 | J88: 862.73 | K88: 824.4 | L88: 790.9 | M88: 5.97625
A89: 80 | B89: GODREJIND | C89: 532.25 | D89: 535.73 | E89: 526.52 | F89: 520.78 | G89: 511.57 | H89: 541.47 | I89: 550.68 | J89: 556.42 | K89: 544.95 | L89: 530 | M89: 2.42441
A90: 81 | B90: GRUH | C90: 322.2 | D90: 322.25 | E90: 319.95 | F90: 317.70 | G90: 315.40 | H90: 324.50 | I90: 326.80 | J90: 329.05 | K90: 324.55 | L90: 320 | M90: 2.13711
A91: 82 | B91: GPPL | C91: 101.7 | D91: 102.05 | E91: 100.35 | F91: 99.00 | G91: 97.30 | H91: 103.40 | I91: 105.10 | J91: 106.45 | K91: 103.75 | L91: 100.7 | M91: 0.59619
A92: 83 | B92: GSPL | C92: 170.45 | D92: 172.02 | E92: 167.73 | F92: 165.02 | G92: 160.73 | H92: 174.73 | I92: 179.02 | J92: 181.73 | K92: 176.3 | L92: 169.3 | M92: 21.54136
A93: 84 | B93: HCLTECH | C93: 948.35 | D93: 951.12 | E93: 942.23 | F93: 936.12 | G93: 927.23 | H93: 957.23 | I93: 966.12 | J93: 972.23 | K93: 960 | L93: 945 | M93: 14.04612
A94: 85 | B94: HDFCBANK | C94: 2111.8 | D94: 2114.35 | E94: 2100.45 | F94: 2089.10 | G94: 2075.20 | H94: 2125.70 | I94: 2139.60 | J94: 2150.95 | K94: 2128.25 | L94: 2103 | M94: 31.92916
A95: 86 | B95: HAVELLS | C95: 681.4 | D95: 685.55 | E95: 673.65 | F95: 665.90 | G95: 654.00 | H95: 693.30 | I95: 705.20 | J95: 712.95 | K95: 697.45 | L95: 677.8 | M95: 9.14499
A96: 87 | B96: HEROMOTOCO | C96: 3014.65 | D96: 3032.98 | E96: 2987.97 | F96: 2961.28 | G96: 2916.27 | H96: 3059.67 | I96: 3104.68 | J96: 3131.37 | K96: 3078 | L96: 3006.3 | M96: 3.68413
A97: 88 | B97: HEXAWARE | C97: 330.6 | D97: 330.85 | E97: 326.75 | F97: 322.90 | G97: 318.80 | H97: 334.70 | I97: 338.80 | J97: 342.65 | K97: 334.95 | L97: 327 | M97: 11.31624
A98: 89 | B98: HINDALCO | C98: 209.2 | D98: 211.00 | E98: 206.30 | F98: 203.40 | G98: 198.70 | H98: 213.90 | I98: 218.60 | J98: 221.50 | K98: 215.7 | L98: 208.1 | M98: 86.56029
A99: 90 | B99: HINDPETRO | C99: 248.3 | D99: 249.80 | E99: 245.70 | F99: 243.10 | G99: 239.00 | H99: 252.40 | I99: 256.50 | J99: 259.10 | K99: 253.9 | L99: 247.2 | M99: 70.19279
A100: 91 | B100: HINDUNILVR | C100: 1788.4 | D100: 1791.48 | E100: 1779.52 | F100: 1770.63 | G100: 1758.67 | H100: 1800.37 | I100: 1812.33 | J100: 1821.22 | K100: 1803.45 | L100: 1782.6 | M100: 11.82624
A101: 92 | B101: HINDZINC | C101: 269.5 | D101: 271.07 | E101: 267.43 | F101: 265.37 | G101: 261.73 | H101: 273.13 | I101: 276.77 | J101: 278.83 | K101: 274.7 | L101: 269 | M101: 3.38177
A102: 93 | B102: HUDCO | C102: 42.9 | D102: 43.10 | E102: 42.65 | F102: 42.40 | G102: 41.95 | H102: 43.35 | I102: 43.80 | J102: 44.05 | K102: 43.55 | L102: 42.85 | M102: 5.35172
A103: 94 | B103: HDFC | C103: 1936.85 | D103: 1951.93 | E103: 1916.77 | F103: 1896.68 | G103: 1861.52 | H103: 1972.02 | I103: 2007.18 | J103: 2027.27 | K103: 1987.1 | L103: 1931.85 | M103: 37.32193
A104: 95 | B104: ITC | C104: 278.85 | D104: 279.68 | E104: 276.92 | F104: 274.98 | G104: 272.22 | H104: 281.62 | I104: 284.38 | J104: 286.32 | K104: 282.45 | L104: 277.75 | M104: 61.14946
A105: 96 | B105: ICICIBANK | C105: 363.25 | D105: 364.20 | E105: 361.10 | F105: 358.95 | G105: 355.85 | H105: 366.35 | I105: 369.45 | J105: 371.60 | K105: 367.3 | L105: 362.05 | M105: 128.84409
A106: 97 | B106: ICICIPRULI | C106: 316.25 | D106: 317.52 | E106: 314.18 | F106: 312.12 | G106: 308.78 | H106: 319.58 | I106: 322.92 | J106: 324.98 | K106: 320.85 | L106: 315.45 | M106: 5.80055
A107: 98 | B107: IDBI | C107: 61.35 | D107: 61.35 | E107: 61.25 | F107: 61.15 | G107: 61.05 | H107: 61.45 | I107: 61.55 | J107: 61.65 | K107: 61.45 | L107: 61.25 | M107: 20.76879
A108: 99 | B108: IDFCBANK | C108: 43.05 | D108: 42.95 | E108: 42.50 | F108: 41.95 | G108: 41.50 | H108: 43.50 | I108: 43.95 | J108: 44.50 | K108: 43.4 | L108: 42.4 | M108: 92.64868
A109: 100 | B109: IDFC | C109: 42.3 | D109: 42.48 | E109: 41.87 | F109: 41.43 | G109: 40.82 | H109: 42.92 | I109: 43.53 | J109: 43.97 | K109: 43.1 | L109: 42.05 | M109: 28.57887
A110: 101 | B110: IRB | C110: 156.2 | D110: 157.23 | E110: 154.17 | F110: 152.13 | G110: 149.07 | H110: 159.27 | I110: 162.33 | J110: 164.37 | K110: 160.3 | L110: 155.2 | M110: 8.65885
A111: 102 | B111: IDEA | C111: 36.1 | D111: 35.75 | E111: 35.20 | F111: 34.30 | G111: 33.75 | H111: 36.65 | I111: 37.20 | J111: 38.10 | K111: 36.3 | L111: 34.85 | M111: 237.0729
A112: 103 | B112: IBULHSGFIN | C112: 816.65 | D112: 826.02 | E112: 804.23 | F112: 791.82 | G112: 770.03 | H112: 838.43 | I112: 860.22 | J112: 872.63 | K112: 847.8 | L112: 813.6 | M112: 45.0096
A113: 104 | B113: INDIANB | C113: 245.5 | D113: 246.28 | E113: 243.07 | F113: 240.63 | G113: 237.42 | H113: 248.72 | I113: 251.93 | J113: 254.37 | K113: 249.5 | L113: 243.85 | M113: 13.81076
A114: 105 | B114: INDHOTEL | C114: 144.5 | D114: 144.22 | E114: 141.78 | F114: 139.07 | G114: 136.63 | H114: 146.93 | I114: 149.37 | J114: 152.08 | K114: 146.65 | L114: 141.5 | M114: 7.77561
A115: 106 | B115: IOC | C115: 132.65 | D115: 134.00 | E115: 130.80 | F115: 128.95 | G115: 125.75 | H115: 135.85 | I115: 139.05 | J115: 140.90 | K115: 137.2 | L115: 132.15 | M115: 130.59163
A116: 107 | B116: IGL | C116: 274.3 | D116: 274.13 | E116: 272.27 | F116: 270.23 | G116: 268.37 | H116: 276.17 | I116: 278.03 | J116: 280.07 | K116: 276 | L116: 272.1 | M116: 12.85361
A117: 108 | B117: INDUSINDBK | C117: 1560.1 | D117: 1565.25 | E117: 1550.50 | F117: 1540.90 | G117: 1526.15 | H117: 1574.85 | I117: 1589.60 | J117: 1599.20 | K117: 1580 | L117: 1555.65 | M117: 9.58038
A118: 109 | B118: NAUKRI | C118: 1490.35 | D118: 1474.78 | E118: 1446.57 | F118: 1402.78 | G118: 1374.57 | H118: 1518.57 | I118: 1546.78 | J118: 1590.57 | K118: 1503 | L118: 1431 | M118: 2.80109
A119: 110 | B119: INFY | C119: 669.15 | D119: 669.75 | E119: 662.50 | F119: 655.85 | G119: 648.60 | H119: 676.40 | I119: 683.65 | J119: 690.30 | K119: 677 | L119: 663.1 | M119: 68.27249
A120: 111 | B120: INDIGO | C120: 1156.55 | D120: 1158.02 | E120: 1144.08 | F120: 1131.62 | G120: 1117.68 | H120: 1170.48 | I120: 1184.42 | J120: 1196.88 | K120: 1171.95 | L120: 1145.55 | M120: 3.9404
A121: 112 | B121: IPCALAB | C121: 787.65 | D121: 795.23 | E121: 774.52 | F121: 761.38 | G121: 740.67 | H121: 808.37 | I121: 829.08 | J121: 842.22 | K121: 815.95 | L121: 782.1 | M121: 0.61047
A122: 113 | B122: JSWENERGY | C122: 69.75 | D122: 69.97 | E122: 69.18 | F122: 68.62 | G122: 67.83 | H122: 70.53 | I122: 71.32 | J122: 71.88 | K122: 70.75 | L122: 69.4 | M122: 3.66275
A123: 114 | B123: JSWSTEEL | C123: 282.65 | D123: 284.52 | E123: 278.43 | F123: 274.22 | G123: 268.13 | H123: 288.73 | I123: 294.82 | J123: 299.03 | K123: 290.6 | L123: 280.3 | M123: 100.03388
A124: 115 | B124: JINDALSTEL | C124: 146.5 | D124: 149.88 | E124: 142.22 | F124: 137.93 | G124: 130.27 | H124: 154.17 | I124: 161.83 | J124: 166.12 | K124: 157.55 | L124: 145.6 | M124: 192.07999
A125: 116 | B125: JUBLFOOD | C125: 1239.65 | D125: 1243.98 | E125: 1230.87 | F125: 1222.08 | G125: 1208.97 | H125: 1252.77 | I125: 1265.88 | J125: 1274.67 | K125: 1257.1 | L125: 1235.2 | M125: 15.17963
A126: 117 | B126: JUBILANT | C126: 705 | D126: 706.40 | E126: 699.80 | F126: 694.60 | G126: 688.00 | H126: 711.60 | I126: 718.20 | J126: 723.40 | K126: 713 | L126: 701.2 | M126: 1.21084
A127: 118 | B127: KARURVYSYA | C127: 91.45 | D127: 91.48 | E127: 90.97 | F127: 90.48 | G127: 89.97 | H127: 91.97 | I127: 92.48 | J127: 92.97 | K127: 92 | L127: 91 | M127: 6.30763
A128: 119 | B128: KOTAKBANK | C128: 1235.25 | D128: 1237.97 | E128: 1224.93 | F128: 1214.62 | G128: 1201.58 | H128: 1248.28 | I128: 1261.32 | J128: 1271.63 | K128: 1251 | L128: 1227.65 | M128: 18.25888
A129: 120 | B129: L&TFH | C129: 145.4 | D129: 147.15 | E129: 143.05 | F129: 140.70 | G129: 136.60 | H129: 149.50 | I129: 153.60 | J129: 155.95 | K129: 151.25 | L129: 144.8 | M129: 64.74355
A130: 121 | B130: LICHSGFIN | C130: 470.2 | D130: 473.42 | E130: 465.08 | F130: 459.97 | G130: 451.63 | H130: 478.53 | I130: 486.87 | J130: 491.98 | K130: 481.75 | L130: 468.3 | M130: 8.58106
A131: 122 | B131: LT | C131: 1395 | D131: 1405.00 | E131: 1381.00 | F131: 1367.00 | G131: 1343.00 | H131: 1419.00 | I131: 1443.00 | J131: 1457.00 | K131: 1429 | L131: 1391 | M131: 22.90756
A132: 123 | B132: LUPIN | C132: 821.05 | D132: 826.70 | E132: 812.65 | F132: 804.25 | G132: 790.20 | H132: 835.10 | I132: 849.15 | J132: 857.55 | K132: 840.75 | L132: 818.3 | M132: 9.87539
A133: 124 | B133: MRF | C133: 66818.25 | D133: 66892.32 | E133: 66384.63 | F133: 65951.02 | G133: 65443.33 | H133: 67325.93 | I133: 67833.62 | J133: 68267.23 | K133: 67400 | L133: 66458.7 | M133: 0.04603
A134: 125 | B134: MGL | C134: 890.85 | D134: 893.77 | E134: 882.18 | F134: 873.52 | G134: 861.93 | H134: 902.43 | I134: 914.02 | J134: 922.68 | K134: 905.35 | L134: 885.1 | M134: 1.39272
A135: 126 | B135: M&MFIN | C135: 458.3 | D135: 462.03 | E135: 450.27 | F135: 442.23 | G135: 430.47 | H135: 470.07 | I135: 481.83 | J135: 489.87 | K135: 473.8 | L135: 454 | M135: 9.99395
A136: 127 | B136: M&M | C136: 718.3 | D136: 726.45 | E136: 708.05 | F136: 697.80 | G136: 679.40 | H136: 736.70 | I136: 755.10 | J136: 765.35 | K136: 744.85 | L136: 716.2 | M136: 110.84172
A137: 128 | B137: MANAPPURAM | C137: 92.9 | D137: 93.10 | E137: 91.90 | F137: 90.90 | G137: 89.70 | H137: 94.10 | I137: 95.30 | J137: 96.30 | K137: 94.3 | L137: 92.1 | M137: 21.33306
A138: 129 | B138: MRPL | C138: 72.15 | D138: 72.73 | E138: 71.17 | F138: 70.18 | G138: 68.62 | H138: 73.72 | I138: 75.28 | J138: 76.27 | K138: 74.3 | L138: 71.75 | M138: 8.90344
A139: 130 | B139: MARICO | C139: 378.05 | D139: 377.63 | E139: 373.87 | F139: 369.68 | G139: 365.92 | H139: 381.82 | I139: 385.58 | J139: 389.77 | K139: 381.4 | L139: 373.45 | M139: 23.88605
A140: 131 | B140: MARUTI | C140: 7203.95 | D140: 7246.52 | E140: 7143.03 | F140: 7082.12 | G140: 6978.63 | H140: 7307.43 | I140: 7410.92 | J140: 7471.83 | K140: 7350 | L140: 7185.6 | M140: 7.15168
A141: 132 | B141: MFSL | C141: 424 | D141: 428.68 | E141: 416.37 | F141: 408.73 | G141: 396.42 | H141: 436.32 | I141: 448.63 | J141: 456.27 | K141: 441 | L141: 421.05 | M141: 3.45873
A142: 133 | B142: MINDTREE | C142: 834.8 | D142: 841.38 | E142: 817.77 | F142: 800.73 | G142: 777.12 | H142: 858.42 | I142: 882.03 | J142: 899.07 | K142: 865 | L142: 824.35 | M142: 9.08897
A143: 134 | B143: MOTHERSUMI | C143: 161.25 | D143: 162.55 | E143: 159.20 | F143: 157.15 | G143: 153.80 | H143: 164.60 | I143: 167.95 | J143: 170.00 | K143: 165.9 | L143: 160.5 | M143: 36.6762
A144: 135 | B144: MPHASIS | C144: 948.8 | D144: 964.27 | E144: 929.53 | F144: 910.27 | G144: 875.53 | H144: 983.53 | I144: 1018.27 | J144: 1037.53 | K144: 999 | L144: 945 | M144: 5.6141
A145: 136 | B145: MUTHOOTFIN | C145: 495.75 | D145: 498.55 | E145: 491.30 | F145: 486.85 | G145: 479.60 | H145: 503.00 | I145: 510.25 | J145: 514.70 | K145: 505.8 | L145: 494.1 | M145: 4.82416
A146: 137 | B146: NATCOPHARM | C146: 696.1 | D146: 698.53 | E146: 689.07 | F146: 682.03 | G146: 672.57 | H146: 705.57 | I146: 715.03 | J146: 722.07 | K146: 708 | L146: 691.5 | M146: 2.2051
A147: 138 | B147: NBCC | C147: 58.2 | D147: 58.38 | E147: 57.62 | F147: 57.03 | G147: 56.27 | H147: 58.97 | I147: 59.73 | J147: 60.32 | K147: 59.15 | L147: 57.8 | M147: 110.43147
A148: 139 | B148: NHPC | C148: 25.55 | D148: 25.65 | E148: 25.40 | F148: 25.25 | G148: 25.00 | H148: 25.80 | I148: 26.05 | J148: 26.20 | K148: 25.9 | L148: 25.5 | M148: 17.54899
A149: 140 | B149: NMDC | C149: 93.9 | D149: 95.00 | E149: 92.60 | F149: 91.30 | G149: 88.90 | H149: 96.30 | I149: 98.70 | J149: 100.00 | K149: 97.4 | L149: 93.7 | M149: 62.90996
A150: 141 | B150: NTPC | C150: 143.4 | D150: 144.55 | E150: 141.70 | F150: 140.00 | G150: 137.15 | H150: 146.25 | I150: 149.10 | J150: 150.80 | K150: 147.4 | L150: 142.85 | M150: 58.62736
A151: 142 | B151: NATIONALUM | C151: 62.8 | D151: 63.03 | E151: 62.32 | F151: 61.83 | G151: 61.12 | H151: 63.52 | I151: 64.23 | J151: 64.72 | K151: 63.75 | L151: 62.55 | M151: 26.26386
A152: 143 | B152: OBEROIRLTY | C152: 448.6 | D152: 449.60 | E152: 444.30 | F152: 440.00 | G152: 434.70 | H152: 453.90 | I152: 459.20 | J152: 463.50 | K152: 454.9 | L152: 445.3 | M152: 1.27886
A153: 144 | B153: ONGC | C153: 142.4 | D153: 143.22 | E153: 140.78 | F153: 139.17 | G153: 136.73 | H153: 144.83 | I153: 147.27 | J153: 148.88 | K153: 145.65 | L153: 141.6 | M153: 265.99483
A154: 145 | B154: OIL | C154: 172 | D154: 173.07 | E154: 170.43 | F154: 168.87 | G154: 166.23 | H154: 174.63 | I154: 177.27 | J154: 178.83 | K154: 175.7 | L154: 171.5 | M154: 6.9819
A155: 146 | B155: OFSS | C155: 3594.65 | D155: 3633.43 | E155: 3536.87 | F155: 3479.08 | G155: 3382.52 | H155: 3691.22 | I155: 3787.78 | J155: 3845.57 | K155: 3730 | L155: 3575.65 | M155: 0.31202
A156: 147 | B156: PCJEWELLER | C156: 82.5 | D156: 83.25 | E156: 81.15 | F156: 79.80 | G156: 77.70 | H156: 84.60 | I156: 86.70 | J156: 88.05 | K156: 85.35 | L156: 81.9 | M156: 150.27049
A157: 148 | B157: PIIND | C157: 863.4 | D157: 863.55 | E157: 857.10 | F157: 850.80 | G157: 844.35 | H157: 869.85 | I157: 876.30 | J157: 882.60 | K157: 870 | L157: 857.25 | M157: 0.58164
A158: 149 | B158: PNBHOUSING | C158: 921.6 | D158: 922.70 | E158: 916.90 | F158: 912.20 | G158: 906.40 | H158: 927.40 | I158: 933.20 | J158: 937.90 | K158: 928.5 | L158: 918 | M158: 0.68622
A159: 150 | B159: PAGEIND | C159: 23614.1 | D159: 23947.85 | E159: 23195.70 | F159: 22777.30 | G159: 22025.15 | H159: 24366.25 | I159: 25118.40 | J159: 25536.80 | K159: 24700 | L159: 23529.45 | M159: 0.41968
A160: 151 | B160: PETRONET | C160: 228.8 | D160: 228.97 | E160: 226.53 | F160: 224.27 | G160: 221.83 | H160: 231.23 | I160: 233.67 | J160: 235.93 | K160: 231.4 | L160: 226.7 | M160: 24.43425
A161: 152 | B161: PIDILITIND | C161: 1109.25 | D161: 1109.72 | E161: 1100.03 | F161: 1090.82 | G161: 1081.13 | H161: 1118.93 | I161: 1128.62 | J161: 1137.83 | K161: 1119.4 | L161: 1100.5 | M161: 2.61246
A162: 153 | B162: PEL | C162: 2286.6 | D162: 2304.85 | E162: 2249.30 | F162: 2212.00 | G162: 2156.45 | H162: 2342.15 | I162: 2397.70 | J162: 2435.00 | K162: 2360.4 | L162: 2267.55 | M162: 5.54863
A163: 154 | B163: PFC | C163: 105.95 | D163: 105.92 | E163: 103.93 | F163: 101.92 | G163: 99.93 | H163: 107.93 | I163: 109.92 | J163: 111.93 | K163: 107.9 | L163: 103.9 | M163: 118.54241
A164: 155 | B164: POWERGRID | C164: 193.05 | D164: 193.35 | E164: 191.70 | F164: 190.35 | G164: 188.70 | H164: 194.70 | I164: 196.35 | J164: 197.70 | K164: 195 | L164: 192 | M164: 44.67862
A165: 156 | B165: PRESTIGE | C165: 233.05 | D165: 232.73 | E165: 228.67 | F165: 224.28 | G165: 220.22 | H165: 237.12 | I165: 241.18 | J165: 245.57 | K165: 236.8 | L165: 228.35 | M165: 1.83445
A166: 157 | B166: PGHH | C166: 9850 | D166: 9869.67 | E166: 9799.33 | F166: 9748.67 | G166: 9678.33 | H166: 9920.33 | I166: 9990.67 | J166: 10041.33 | K166: 9940 | L166: 9819 | M166: 0.02314
A167: 158 | B167: PNB | C167: 77.85 | D167: 77.95 | E167: 76.95 | F167: 76.05 | G167: 75.05 | H167: 78.85 | I167: 79.85 | J167: 80.75 | K167: 78.95 | L167: 77.05 | M167: 187.80736
A168: 159 | B168: RBLBANK | C168: 562.1 | D168: 565.52 | E168: 557.58 | F168: 553.07 | G168: 545.13 | H168: 570.03 | I168: 577.97 | J168: 582.48 | K168: 573.45 | L168: 561 | M168: 4.58259
A169: 160 | B169: RAJESHEXPO | C169: 574.55 | D169: 573.63 | E169: 568.92 | F169: 563.28 | G169: 558.57 | H169: 579.27 | I169: 583.98 | J169: 589.62 | K169: 578.35 | L169: 568 | M169: 3.71054
A170: 161 | B170: RELCAPITAL | C170: 214.4 | D170: 216.57 | E170: 210.33 | F170: 206.27 | G170: 200.03 | H170: 220.63 | I170: 226.87 | J170: 230.93 | K170: 222.8 | L170: 212.5 | M170: 48.67027
A171: 162 | B171: RCOM | C171: 13.5 | D171: 13.60 | E171: 13.35 | F171: 13.20 | G171: 12.95 | H171: 13.75 | I171: 14.00 | J171: 14.15 | K171: 13.85 | L171: 13.45 | M171: 524.05739
A172: 163 | B172: RELIANCE | C172: 1092.75 | D172: 1099.15 | E172: 1083.70 | F172: 1074.65 | G172: 1059.20 | H172: 1108.20 | I172: 1123.65 | J172: 1132.70 | K172: 1114.6 | L172: 1090.1 | M172: 74.46457
A173: 164 | B173: RELINFRA | C173: 289.25 | D173: 294.95 | E173: 281.95 | F173: 274.65 | G173: 261.65 | H173: 302.25 | I173: 315.25 | J173: 322.55 | K173: 307.95 | L173: 287.65 | M173: 37.79366
A174: 165 | B174: RPOWER | C174: 27.15 | D174: 27.35 | E174: 26.80 | F174: 26.45 | G174: 25.90 | H174: 27.70 | I174: 28.25 | J174: 28.60 | K174: 27.9 | L174: 27 | M174: 61.77344
A175: 166 | B175: RECLTD | C175: 121.35 | D175: 121.03 | E175: 119.12 | F175: 116.88 | G175: 114.97 | H175: 123.27 | I175: 125.18 | J175: 127.42 | K175: 122.95 | L175: 118.8 | M175: 74.61463
A176: 167 | B176: SRF | C176: 1976.15 | D176: 1984.38 | E176: 1956.77 | F176: 1937.38 | G176: 1909.77 | H176: 2003.77 | I176: 2031.38 | J176: 2050.77 | K176: 2012 | L176: 1965 | M176: 3.20775
A177: 168 | B177: SHREECEM | C177: 16948.4 | D177: 17026.60 | E177: 16721.80 | F177: 16495.20 | G177: 16190.40 | H177: 17253.20 | I177: 17558.00 | J177: 17784.60 | K177: 17331.4 | L177: 16800 | M177: 0.24843
A178: 169 | B178: SRTRANSFIN | C178: 1152.9 | D178: 1166.72 | E178: 1127.43 | F178: 1101.97 | G178: 1062.68 | H178: 1192.18 | I178: 1231.47 | J178: 1256.93 | K178: 1206 | L178: 1141.25 | M178: 15.45225
A179: 170 | B179: SIEMENS | C179: 1044.9 | D179: 1052.78 | E179: 1030.67 | F179: 1016.43 | G179: 994.32 | H179: 1067.02 | I179: 1089.13 | J179: 1103.37 | K179: 1074.9 | L179: 1038.55 | M179: 7.19581
A180: 171 | B180: SBIN | C180: 291.1 | D180: 292.25 | E180: 288.95 | F180: 286.80 | G180: 283.50 | H180: 294.40 | I180: 297.70 | J180: 299.85 | K180: 295.55 | L180: 290.1 | M180: 175.48347
A181: 172 | B181: SAIL | C181: 52.45 | D181: 52.93 | E181: 51.82 | F181: 51.18 | G181: 50.07 | H181: 53.57 | I181: 54.68 | J181: 55.32 | K181: 54.05 | L181: 52.3 | M181: 85.41801
A182: 173 | B182: SPARC | C182: 183.05 | D182: 185.50 | E182: 179.35 | F182: 175.65 | G182: 169.50 | H182: 189.20 | I182: 195.35 | J182: 199.05 | K182: 191.65 | L182: 181.8 | M182: 5.37344
A183: 174 | B183: SUNPHARMA | C183: 436.1 | D183: 437.90 | E183: 432.20 | F183: 428.30 | G183: 422.60 | H183: 441.80 | I183: 447.50 | J183: 451.40 | K183: 443.6 | L183: 434 | M183: 94.79511
A184: 175 | B184: SUNTV | C184: 585.1 | D184: 592.53 | E184: 575.62 | F184: 566.13 | G184: 549.22 | H184: 602.02 | I184: 618.93 | J184: 628.42 | K184: 609.45 | L184: 583.05 | M184: 15.43898
A185: 176 | B185: SUZLON | C185: 5.3 | D185: 5.33 | E185: 5.27 | F185: 5.23 | G185: 5.17 | H185: 5.37 | I185: 5.43 | J185: 5.47 | K185: 5.4 | L185: 5.3 | M185: 96.56839
A186: 177 | B186: SYNDIBANK | C186: 38.8 | D186: 38.87 | E186: 38.43 | F186: 38.07 | G186: 37.63 | H186: 39.23 | I186: 39.67 | J186: 40.03 | K186: 39.3 | L186: 38.5 | M186: 31.58445
A187: 178 | B187: SYNGENE | C187: 547.5 | D187: 548.42 | E187: 541.13 | F187: 534.77 | G187: 527.48 | H187: 554.78 | I187: 562.07 | J187: 568.43 | K187: 555.7 | L187: 542.05 | M187: 0.48643
A188: 179 | B188: TV18BRDCST | C188: 37.05 | D188: 37.30 | E188: 36.65 | F188: 36.25 | G188: 35.60 | H188: 37.70 | I188: 38.35 | J188: 38.75 | K188: 37.95 | L188: 36.9 | M188: 22.35992
A189: 180 | B189: TVSMOTOR | C189: 537.85 | D189: 538.40 | E189: 532.20 | F189: 526.55 | G189: 520.35 | H189: 544.05 | I189: 550.25 | J189: 555.90 | K189: 544.6 | L189: 532.75 | M189: 14.47966
A190: 181 | B190: TATACHEM | C190: 694.45 | D190: 697.08 | E190: 688.47 | F190: 682.48 | G190: 673.87 | H190: 703.07 | I190: 711.68 | J190: 717.67 | K190: 705.7 | L190: 691.1 | M190: 4.52769
A191: 182 | B191: TATACOMM | C191: 536 | D191: 531.72 | E191: 522.58 | F191: 509.17 | G191: 500.03 | H191: 545.13 | I191: 554.27 | J191: 567.68 | K191: 540.85 | L191: 518.3 | M191: 9.01611
A192: 183 | B192: TCS | C192: 1899.95 | D192: 1912.67 | E192: 1880.38 | F192: 1860.82 | G192: 1828.53 | H192: 1932.23 | I192: 1964.52 | J192: 1984.08 | K192: 1944.95 | L192: 1893.1 | M192: 26.11668
A193: 184 | B193: TATAGLOBAL | C193: 210.05 | D193: 211.77 | E193: 208.18 | F193: 206.32 | G193: 202.73 | H193: 213.63 | I193: 217.22 | J193: 219.08 | K193: 215.35 | L193: 209.9 | M193: 20.96553
A194: 185 | B194: TATAMTRDVR | C194: 89.05 | D194: 89.55 | E194: 88.10 | F194: 87.15 | G194: 85.70 | H194: 90.50 | I194: 91.95 | J194: 92.90 | K194: 91 | L194: 88.6 | M194: 15.27655
A195: 186 | B195: TATAMOTORS | C195: 166.05 | D195: 167.10 | E195: 164.05 | F195: 162.05 | G195: 159.00 | H195: 169.10 | I195: 172.15 | J195: 174.15 | K195: 170.15 | L195: 165.1 | M195: 93.21842
A196: 187 | B196: TATAPOWER | C196: 74.2 | D196: 74.77 | E196: 73.28 | F196: 72.37 | G196: 70.88 | H196: 75.68 | I196: 77.17 | J196: 78.08 | K196: 76.25 | L196: 73.85 | M196: 45.83837
A197: 188 | B197: TATASTEEL | C197: 481.25 | D197: 484.88 | E197: 476.62 | F197: 471.98 | G197: 463.72 | H197: 489.52 | I197: 497.78 | J197: 502.42 | K197: 493.15 | L197: 480.25 | M197: 135.32944
A198: 189 | B198: TECHM | C198: 691.25 | D198: 697.50 | E198: 679.00 | F198: 666.75 | G198: 648.25 | H198: 709.75 | I198: 728.25 | J198: 740.50 | K198: 716 | L198: 685.25 | M198: 35.58015
A199: 190 | B199: RAMCOCEM | C199: 628.15 | D199: 631.97 | E199: 622.43 | F199: 616.72 | G199: 607.18 | H199: 637.68 | I199: 647.22 | J199: 652.93 | K199: 641.5 | L199: 626.25 | M199: 2.55679
A200: 191 | B200: TITAN | C200: 931.2 | D200: 934.72 | E200: 924.48 | F200: 917.77 | G200: 907.53 | H200: 941.43 | I200: 951.67 | J200: 958.38 | K200: 944.95 | L200: 928 | M200: 32.92918
A201: 192 | B201: TORNTPHARM | C201: 1805.55 | D201: 1793.72 | E201: 1773.43 | F201: 1741.32 | G201: 1721.03 | H201: 1825.83 | I201: 1846.12 | J201: 1878.23 | K201: 1814 | L201: 1761.6 | M201: 3.41671
A202: 193 | B202: TORNTPOWER | C202: 260.5 | D202: 259.50 | E202: 255.10 | F202: 249.70 | G202: 245.30 | H202: 264.90 | I202: 269.30 | J202: 274.70 | K202: 263.9 | L202: 254.1 | M202: 31.87049
A203: 194 | B203: UPL | C203: 746.65 | D203: 749.62 | E203: 741.28 | F203: 735.92 | G203: 727.58 | H203: 754.98 | I203: 763.32 | J203: 768.68 | K203: 757.95 | L203: 744.25 | M203: 10.53144
A204: 195 | B204: ULTRACEMCO | C204: 3900.05 | D204: 3930.33 | E204: 3845.67 | F204: 3791.28 | G204: 3706.62 | H204: 3984.72 | I204: 4069.38 | J204: 4123.77 | K204: 4015 | L204: 3875.95 | M204: 2.23538
A205: 196 | B205: UNIONBANK | C205: 88.75 | D205: 88.67 | E205: 87.63 | F205: 86.52 | G205: 85.48 | H205: 89.78 | I205: 90.82 | J205: 91.93 | K205: 89.7 | L205: 87.55 | M205: 83.03993
... 29 more rows

Sheet MidCap Intra
L5: Back To Main Page
A6: FOR INTRA DAY TRADING | K6: =Main!B10 -> 2019-01-04
A9: Sr.no | B9: Scrip | C9: CLOSE RATE | D9: Pivot Point | E9: Supports | H9: Resistances
C10: Point | E10: S1 | F10: S2 | G10: S3 | H10: R1 | I10: R2 | J10: R3 | K10: HIGH | L10: LOW | M10: Total Trade Quanity in Lakhs
A11: 1 | B11: 3MINDIA | C11: 19990.25 | D11: 20020.60 | E11: 19771.25 | F11: 19552.25 | G11: 19302.90 | H11: 20239.60 | I11: 20488.95 | J11: 20707.95 | K11: 20269.95 | L11: 19801.6 | M11: 0.02402
A12: 2 | B12: 8KMILES | C12: 133.9 | D12: 135.53 | E12: 131.17 | F12: 128.43 | G12: 124.07 | H12: 138.27 | I12: 142.63 | J12: 145.37 | K12: 139.9 | L12: 132.8 | M12: 1.8523
A13: 3 | B13: AARTIIND | C13: 1429.15 | D13: 1433.52 | E13: 1417.63 | F13: 1406.12 | G13: 1390.23 | H13: 1445.03 | I13: 1460.92 | J13: 1472.43 | K13: 1449.4 | L13: 1422 | M13: 0.20952
A14: 4 | B14: ABAN | C14: 73.5 | D14: 73.87 | E14: 72.73 | F14: 71.97 | G14: 70.83 | H14: 74.63 | I14: 75.77 | J14: 76.53 | K14: 75 | L14: 73.1 | M14: 3.78438
A15: 5 | B15: ABB | C15: 1308.95 | D15: 1313.72 | E15: 1297.43 | F15: 1285.92 | G15: 1269.63 | H15: 1325.23 | I15: 1341.52 | J15: 1353.03 | K15: 1330 | L15: 1302.2 | M15: 0.51343
A16: 6 | B16: ABCAPITAL | C16: 98.25 | D16: 98.85 | E16: 96.70 | F16: 95.15 | G16: 93.00 | H16: 100.40 | I16: 102.55 | J16: 104.10 | K16: 101 | L16: 97.3 | M16: 50.29127
A17: 7 | B17: ABFRL | C17: 197.75 | D17: 197.20 | E17: 194.60 | F17: 191.45 | G17: 188.85 | H17: 200.35 | I17: 202.95 | J17: 206.10 | K17: 199.8 | L17: 194.05 | M17: 6.37477
A18: 8 | B18: ACC | C18: 1452.25 | D18: 1463.45 | E18: 1434.20 | F18: 1416.15 | G18: 1386.90 | H18: 1481.50 | I18: 1510.75 | J18: 1528.80 | K18: 1492.7 | L18: 1445.4 | M18: 4.5197
A19: 9 | B19: ADANIPORTS | C19: 378.1 | D19: 380.00 | E19: 374.70 | F19: 371.30 | G19: 366.00 | H19: 383.40 | I19: 388.70 | J19: 392.10 | K19: 385.3 | L19: 376.6 | M19: 19.02063
A20: 10 | B20: ADANIPOWER | C20: 50.35 | D20: 50.00 | E20: 49.15 | F20: 47.95 | G20: 47.10 | H20: 51.20 | I20: 52.05 | J20: 53.25 | K20: 50.85 | L20: 48.8 | M20: 71.13733
A21: 11 | B21: ADANITRANS | C21: 201.15 | D21: 200.78 | E21: 199.37 | F21: 197.58 | G21: 196.17 | H21: 202.57 | I21: 203.98 | J21: 205.77 | K21: 202.2 | L21: 199 | M21: 0.61027
A22: 12 | B22: ADVENZYMES | C22: 173.55 | D22: 174.43 | E22: 172.22 | F22: 170.88 | G22: 168.67 | H22: 175.77 | I22: 177.98 | J22: 179.32 | K22: 176.65 | L22: 173.1 | M22: 0.26525
A23: 13 | B23: AEGISCHEM | C23: 206.85 | D23: 205.52 | E23: 203.33 | F23: 199.82 | G23: 197.63 | H23: 209.03 | I23: 211.22 | J23: 214.73 | K23: 207.7 | L23: 202 | M23: 0.92047
A24: 14 | B24: AIAENG | C24: 1677.6 | D24: 1672.02 | E24: 1645.08 | F24: 1612.57 | G24: 1585.63 | H24: 1704.53 | I24: 1731.47 | J24: 1763.98 | K24: 1698.95 | L24: 1639.5 | M24: 0.24721
A25: 15 | B25: AJANTPHARM | C25: 1150.9 | D25: 1157.12 | E25: 1139.78 | F25: 1128.67 | G25: 1111.33 | H25: 1168.23 | I25: 1185.57 | J25: 1196.68 | K25: 1174.45 | L25: 1146 | M25: 1.29568
A26: 16 | B26: AKZOINDIA | C26: 1801.25 | D26: 1793.07 | E26: 1777.13 | F26: 1753.02 | G26: 1737.08 | H26: 1817.18 | I26: 1833.12 | J26: 1857.23 | K26: 1809 | L26: 1768.95 | M26: 0.10327
A27: 17 | B27: ALBK | C27: 44.7 | D27: 44.90 | E27: 44.20 | F27: 43.70 | G27: 43.00 | H27: 45.40 | I27: 46.10 | J27: 46.60 | K27: 45.6 | L27: 44.4 | M27: 31.44119
A28: 18 | B28: ALKEM | C28: 1962.4 | D28: 1957.73 | E28: 1945.67 | F28: 1928.93 | G28: 1916.87 | H28: 1974.47 | I28: 1986.53 | J28: 2003.27 | K28: 1969.8 | L28: 1941 | M28: 0.17059
A29: 19 | B29: ALLCARGO | C29: 107.55 | D29: 107.87 | E29: 106.98 | F29: 106.42 | G29: 105.53 | H29: 108.43 | I29: 109.32 | J29: 109.88 | K29: 108.75 | L29: 107.3 | M29: 0.59146
A30: 20 | B30: AMARAJABAT | C30: 716 | D30: 720.17 | E30: 705.98 | F30: 695.97 | G30: 681.78 | H30: 730.18 | I30: 744.37 | J30: 754.38 | K30: 734.35 | L30: 710.15 | M30: 3.72293
A31: 21 | B31: AMBUJACEM | C31: 213.85 | D31: 215.97 | E31: 211.03 | F31: 208.22 | G31: 203.28 | H31: 218.78 | I31: 223.72 | J31: 226.53 | K31: 220.9 | L31: 213.15 | M31: 16.12955
A32: 22 | B32: ANDHRABANK | C32: 28.95 | D32: 29.10 | E32: 28.55 | F32: 28.15 | G32: 27.60 | H32: 29.50 | I32: 30.05 | J32: 30.45 | K32: 29.65 | L32: 28.7 | M32: 9.2249
A33: 23 | B33: APLAPOLLO | C33: 1181.8 | D33: 1187.60 | E33: 1170.20 | F33: 1158.60 | G33: 1141.20 | H33: 1199.20 | I33: 1216.60 | J33: 1228.20 | K33: 1205 | L33: 1176 | M33: 0.09747
A34: 24 | B34: APLLTD | C34: 581.9 | D34: 585.80 | E34: 576.15 | F34: 570.40 | G34: 560.75 | H34: 591.55 | I34: 601.20 | J34: 606.95 | K34: 595.45 | L34: 580.05 | M34: 0.31636
A35: 25 | B35: APOLLOHOSP | C35: 1266.65 | D35: 1264.57 | E35: 1256.13 | F35: 1245.62 | G35: 1237.18 | H35: 1275.08 | I35: 1283.52 | J35: 1294.03 | K35: 1273 | L35: 1254.05 | M35: 3.22081
A36: 26 | B36: APOLLOTYRE | C36: 227.85 | D36: 229.25 | E36: 225.95 | F36: 224.05 | G36: 220.75 | H36: 231.15 | I36: 234.45 | J36: 236.35 | K36: 232.55 | L36: 227.35 | M36: 11.83802
A37: 27 | B37: ARVIND | C37: 95.1 | D37: 95.75 | E37: 94.10 | F37: 93.10 | G37: 91.45 | H37: 96.75 | I37: 98.40 | J37: 99.40 | K37: 97.4 | L37: 94.75 | M37: 21.30504
A38: 28 | B38: ASAHIINDIA | C38: 265.65 | D38: 264.60 | E38: 259.80 | F38: 253.95 | G38: 249.15 | H38: 270.45 | I38: 275.25 | J38: 281.10 | K38: 269.4 | L38: 258.75 | M38: 2.27739
A39: 29 | B39: ASHOKA | C39: 124.1 | D39: 124.12 | E39: 123.48 | F39: 122.87 | G39: 122.23 | H39: 124.73 | I39: 125.37 | J39: 125.98 | K39: 124.75 | L39: 123.5 | M39: 1.52304
A40: 30 | B40: ASHOKLEY | C40: 98.15 | D40: 98.78 | E40: 97.27 | F40: 96.38 | G40: 94.87 | H40: 99.67 | I40: 101.18 | J40: 102.07 | K40: 100.3 | L40: 97.9 | M40: 243.74807
A41: 31 | B41: ASIANPAINT | C41: 1388.3 | D41: 1386.72 | E41: 1379.58 | F41: 1370.87 | G41: 1363.73 | H41: 1395.43 | I41: 1402.57 | J41: 1411.28 | K41: 1393.85 | L41: 1378 | M41: 16.36293
A42: 32 | B42: ASTRAL | C42: 1144.85 | D42: 1140.38 | E42: 1131.27 | F42: 1117.68 | G42: 1108.57 | H42: 1153.97 | I42: 1163.08 | J42: 1176.67 | K42: 1149.5 | L42: 1126.8 | M42: 0.25674
A43: 33 | B43: ATUL | C43: 3455.75 | D43: 3460.25 | E43: 3430.50 | F43: 3405.25 | G43: 3375.50 | H43: 3485.50 | I43: 3515.25 | J43: 3540.50 | K43: 3490 | L43: 3435 | M43: 0.03563
A44: 34 | B44: AUBANK | C44: 621.35 | D44: 621.93 | E44: 615.57 | F44: 609.78 | G44: 603.42 | H44: 627.72 | I44: 634.08 | J44: 639.87 | K44: 628.3 | L44: 616.15 | M44: 1.33626
A45: 35 | B45: AUROPHARMA | C45: 715.9 | D45: 716.62 | E45: 709.83 | F45: 703.77 | G45: 696.98 | H45: 722.68 | I45: 729.47 | J45: 735.53 | K45: 723.4 | L45: 710.55 | M45: 13.57059
A46: 36 | B46: AVANTIFEED | C46: 378.45 | D46: 379.57 | E46: 375.13 | F46: 371.82 | G46: 367.38 | H46: 382.88 | I46: 387.32 | J46: 390.63 | K46: 384 | L46: 376.25 | M46: 1.91222
A47: 37 | B47: AXISBANK | C47: 607.95 | D47: 611.20 | E47: 600.40 | F47: 592.85 | G47: 582.05 | H47: 618.75 | I47: 629.55 | J47: 637.10 | K47: 622 | L47: 603.65 | M47: 132.28602
A48: 38 | B48: BAJAJ-AUTO | C48: 2701.35 | D48: 2702.43 | E48: 2681.02 | F48: 2660.68 | G48: 2639.27 | H48: 2722.77 | I48: 2744.18 | J48: 2764.52 | K48: 2723.85 | L48: 2682.1 | M48: 3.10511
A49: 39 | B49: BAJAJCORP | C49: 375.9 | D49: 376.65 | E49: 370.40 | F49: 364.90 | G49: 358.65 | H49: 382.15 | I49: 388.40 | J49: 393.90 | K49: 382.9 | L49: 371.15 | M49: 0.28528
A50: 40 | B50: BAJAJELEC | C50: 497.75 | D50: 501.18 | E50: 493.57 | F50: 489.38 | G50: 481.77 | H50: 505.37 | I50: 512.98 | J50: 517.17 | K50: 508.8 | L50: 497 | M50: 0.83117
A51: 41 | B51: BAJAJFINSV | C51: 6383.3 | D51: 6398.28 | E51: 6316.67 | F51: 6250.03 | G51: 6168.42 | H51: 6464.92 | I51: 6546.53 | J51: 6613.17 | K51: 6479.9 | L51: 6331.65 | M51: 2.15845
A52: 42 | B52: BAJAJHIND | C52: 9.15 | D52: 9.08 | E52: 8.92 | F52: 8.68 | G52: 8.52 | H52: 9.32 | I52: 9.48 | J52: 9.72 | K52: 9.25 | L52: 8.85 | M52: 39.12783
A53: 43 | B53: BAJAJHLDNG | C53: 2977.25 | D53: 2967.40 | E53: 2949.80 | F53: 2922.35 | G53: 2904.75 | H53: 2994.85 | I53: 3012.45 | J53: 3039.90 | K53: 2985 | L53: 2939.95 | M53: 0.25184
A54: 44 | B54: BAJFINANCE | C54: 2586.2 | D54: 2603.17 | E54: 2558.33 | F54: 2530.47 | G54: 2485.63 | H54: 2631.03 | I54: 2675.87 | J54: 2703.73 | K54: 2648 | L54: 2575.3 | M54: 12.82478
A55: 45 | B55: BALKRISIND | C55: 900.75 | D55: 906.90 | E55: 892.85 | F55: 884.95 | G55: 870.90 | H55: 914.80 | I55: 928.85 | J55: 936.75 | K55: 920.95 | L55: 899 | M55: 4.06107
A56: 46 | B56: BALLARPUR | C56: 5.45 | D56: 5.50 | E56: 5.40 | F56: 5.35 | G56: 5.25 | H56: 5.55 | I56: 5.65 | J56: 5.70 | K56: 5.6 | L56: 5.45 | M56: 2.73334
A57: 47 | B57: BALMLAWRIE | C57: 197.35 | D57: 198.45 | E57: 195.40 | F57: 193.45 | G57: 190.40 | H57: 200.40 | I57: 203.45 | J57: 205.40 | K57: 201.5 | L57: 196.5 | M57: 0.38156
A58: 48 | B58: BALRAMCHIN | C58: 107.65 | D58: 106.67 | E58: 105.03 | F58: 102.42 | G58: 100.78 | H58: 109.28 | I58: 110.92 | J58: 113.53 | K58: 108.3 | L58: 104.05 | M58: 60.82142
A59: 49 | B59: BANKBARODA | C59: 119.3 | D59: 120.27 | E59: 117.13 | F59: 114.97 | G59: 111.83 | H59: 122.43 | I59: 125.57 | J59: 127.73 | K59: 123.4 | L59: 118.1 | M59: 402.46215
A60: 50 | B60: BANKINDIA | C60: 105.75 | D60: 105.62 | E60: 104.13 | F60: 102.52 | G60: 101.03 | H60: 107.23 | I60: 108.72 | J60: 110.33 | K60: 107.1 | L60: 104 | M60: 122.99077
A61: 51 | B61: BASF | C61: 1556.95 | D61: 1545.52 | E61: 1526.53 | F61: 1496.12 | G61: 1477.13 | H61: 1575.93 | I61: 1594.92 | J61: 1625.33 | K61: 1564.5 | L61: 1515.1 | M61: 0.13056
A62: 52 | B62: BATAINDIA | C62: 1113 | D62: 1116.48 | E62: 1104.52 | F62: 1096.03 | G62: 1084.07 | H62: 1124.97 | I62: 1136.93 | J62: 1145.42 | K62: 1128.45 | L62: 1108 | M62: 5.73624
A63: 53 | B63: BBTC | C63: 1298.65 | D63: 1306.72 | E63: 1287.93 | F63: 1277.22 | G63: 1258.43 | H63: 1317.43 | I63: 1336.22 | J63: 1346.93 | K63: 1325.5 | L63: 1296 | M63: 0.4311
A64: 54 | B64: BEL | C64: 88.8 | D64: 89.33 | E64: 87.82 | F64: 86.83 | G64: 85.32 | H64: 90.32 | I64: 91.83 | J64: 92.82 | K64: 90.85 | L64: 88.35 | M64: 132.69297
A65: 55 | B65: BEML | C65: 886.65 | D65: 899.17 | E65: 867.78 | F65: 848.92 | G65: 817.53 | H65: 918.03 | I65: 949.42 | J65: 968.28 | K65: 930.55 | L65: 880.3 | M65: 40.58323
A66: 56 | B66: BERGEPAINT | C66: 325.1 | D66: 326.43 | E66: 322.32 | F66: 319.53 | G66: 315.42 | H66: 329.22 | I66: 333.33 | J66: 336.12 | K66: 330.55 | L66: 323.65 | M66: 14.43999
A67: 57 | B67: BFUTILITIE | C67: 223 | D67: 223.87 | E67: 219.38 | F67: 215.77 | G67: 211.28 | H67: 227.48 | I67: 231.97 | J67: 235.58 | K67: 228.35 | L67: 220.25 | M67: 4.79157
A68: 58 | B68: BGRENERGY | C68: 59.85 | D68: 60.35 | E68: 58.85 | F68: 57.85 | G68: 56.35 | H68: 61.35 | I68: 62.85 | J68: 63.85 | K68: 61.85 | L68: 59.35 | M68: 0.36221
A69: 59 | B69: BHARATFIN | C69: 992.9 | D69: 994.72 | E69: 984.53 | F69: 976.17 | G69: 965.98 | H69: 1003.08 | I69: 1013.27 | J69: 1021.63 | K69: 1004.9 | L69: 986.35 | M69: 2.59876
A70: 60 | B70: BHARATFORG | C70: 487.5 | D70: 491.13 | E70: 481.87 | F70: 476.23 | G70: 466.97 | H70: 496.77 | I70: 506.03 | J70: 511.67 | K70: 500.4 | L70: 485.5 | M70: 17.32579
A71: 61 | B71: BHARTIARTL | C71: 313.5 | D71: 312.32 | E71: 309.13 | F71: 304.77 | G71: 301.58 | H71: 316.68 | I71: 319.87 | J71: 324.23 | K71: 315.5 | L71: 307.95 | M71: 56.15566
A72: 62 | B72: BHEL | C72: 70.75 | D72: 71.38 | E72: 69.77 | F72: 68.78 | G72: 67.17 | H72: 72.37 | I72: 73.98 | J72: 74.97 | K72: 73 | L72: 70.4 | M72: 80.83906
A73: 63 | B73: BIOCON | C73: 612 | D73: 616.52 | E73: 606.48 | F73: 600.97 | G73: 590.93 | H73: 622.03 | I73: 632.07 | J73: 637.58 | K73: 626.55 | L73: 611 | M73: 8.8639
A74: 64 | B74: BIRLACORPN | C74: 588.7 | D74: 590.23 | E74: 580.47 | F74: 572.23 | G74: 562.47 | H74: 598.47 | I74: 608.23 | J74: 616.47 | K74: 600 | L74: 582 | M74: 0.19715
A75: 65 | B75: BLISSGVS | C75: 159.6 | D75: 161.50 | E75: 156.20 | F75: 152.80 | G75: 147.50 | H75: 164.90 | I75: 170.20 | J75: 173.60 | K75: 166.8 | L75: 158.1 | M75: 9.00643
A76: 66 | B76: BLUEDART | C76: 3358.85 | D76: 3367.98 | E76: 3330.97 | F76: 3303.08 | G76: 3266.07 | H76: 3395.87 | I76: 3432.88 | J76: 3460.77 | K76: 3405 | L76: 3340.1 | M76: 0.01825
A77: 67 | B77: BLUESTARCO | C77: 623.8 | D77: 623.72 | E77: 618.53 | F77: 613.27 | G77: 608.08 | H77: 628.98 | I77: 634.17 | J77: 639.43 | K77: 628.9 | L77: 618.45 | M77: 0.07795
A78: 68 | B78: BOMDYEING | C78: 110.15 | D78: 111.43 | E78: 108.32 | F78: 106.48 | G78: 103.37 | H78: 113.27 | I78: 116.38 | J78: 118.22 | K78: 114.55 | L78: 109.6 | M78: 6.92346
A79: 69 | B79: BOSCHLTD | C79: 19299.85 | D79: 19404.17 | E79: 19106.78 | F79: 18913.72 | G79: 18616.33 | H79: 19597.23 | I79: 19894.62 | J79: 20087.68 | K79: 19701.55 | L79: 19211.1 | M79: 0.18865
A80: 70 | B80: BPCL | C80: 352.5 | D80: 351.82 | E80: 348.83 | F80: 345.17 | G80: 342.18 | H80: 355.48 | I80: 358.47 | J80: 362.13 | K80: 354.8 | L80: 348.15 | M80: 49.8613
A81: 71 | B81: BRFL | C81: 9.75 | D81: 9.60 | E81: 9.45 | F81: 9.15 | G81: 9.00 | H81: 9.90 | I81: 10.05 | J81: 10.35 | K81: 9.75 | L81: 9.3 | M81: 1.28514
A82: 72 | B82: BRIGADE | C82: 213.85 | D82: 214.25 | E82: 210.60 | F82: 207.35 | G82: 203.70 | H82: 217.50 | I82: 221.15 | J82: 224.40 | K82: 217.9 | L82: 211 | M82: 1.43411
A83: 73 | B83: BRITANNIA | C83: 3135.9 | D83: 3136.77 | E83: 3096.53 | F83: 3057.17 | G83: 3016.93 | H83: 3176.13 | I83: 3216.37 | J83: 3255.73 | K83: 3177 | L83: 3097.4 | M83: 3.11498
A84: 74 | B84: BSE | C84: 593.8 | D84: 595.33 | E84: 590.67 | F84: 587.53 | G84: 582.87 | H84: 598.47 | I84: 603.13 | J84: 606.27 | K84: 600 | L84: 592.2 | M84: 0.45279
A85: 75 | B85: CADILAHC | C85: 343.65 | D85: 344.82 | E85: 340.83 | F85: 338.02 | G85: 334.03 | H85: 347.63 | I85: 351.62 | J85: 354.43 | K85: 348.8 | L85: 342 | M85: 4.82203
A86: 77 | B86: CANBK | C86: 276.3 | D86: 276.02 | E86: 273.63 | F86: 270.97 | G86: 268.58 | H86: 278.68 | I86: 281.07 | J86: 283.73 | K86: 278.4 | L86: 273.35 | M86: 39.93439
A87: 78 | B87: CANFINHOME | C87: 276.9 | D87: 279.07 | E87: 273.63 | F87: 270.37 | G87: 264.93 | H87: 282.33 | I87: 287.77 | J87: 291.03 | K87: 284.5 | L87: 275.8 | M87: 5.95191
A88: 79 | B88: CAPF
A89: 80 | B89: CAPLIPOINT | C89: 381.9 | D89: 382.80 | E89: 378.70 | F89: 375.50 | G89: 371.40 | H89: 386.00 | I89: 390.10 | J89: 393.30 | K89: 386.9 | L89: 379.6 | M89: 0.10808
A90: 81 | B90: CARBORUNIV | C90: 364.45 | D90: 364.17 | E90: 360.33 | F90: 356.22 | G90: 352.38 | H90: 368.28 | I90: 372.12 | J90: 376.23 | K90: 368 | L90: 360.05 | M90: 0.25008
A91: 82 | B91: CARERATING | C91: 979.95 | D91: 979.45 | E91: 973.55 | F91: 967.15 | G91: 961.25 | H91: 985.85 | I91: 991.75 | J91: 998.15 | K91: 985.35 | L91: 973.05 | M91: 0.25894
A92: 83 | B92: CASTROLIND | C92: 146.9 | D92: 147.23 | E92: 145.72 | F92: 144.53 | G92: 143.02 | H92: 148.42 | I92: 149.93 | J92: 151.12 | K92: 148.75 | L92: 146.05 | M92: 6.91547
A93: 84 | B93: CCL | C93: 270.3 | D93: 269.47 | E93: 267.88 | F93: 265.47 | G93: 263.88 | H93: 271.88 | I93: 273.47 | J93: 275.88 | K93: 271.05 | L93: 267.05 | M93: 0.21677
A94: 85 | B94: CDSL | C94: 230.35 | D94: 230.47 | E94: 228.23 | F94: 226.12 | G94: 223.88 | H94: 232.58 | I94: 234.82 | J94: 236.93 | K94: 232.7 | L94: 228.35 | M94: 3.98363
A95: 86 | B95: CEATLTD | C95: 1288.3 | D95: 1292.33 | E95: 1276.17 | F95: 1264.03 | G95: 1247.87 | H95: 1304.47 | I95: 1320.63 | J95: 1332.77 | K95: 1308.5 | L95: 1280.2 | M95: 4.53106
A96: 87 | B96: CENTRALBK | C96: 36.95 | D96: 36.92 | E96: 36.43 | F96: 35.92 | G96: 35.43 | H96: 37.43 | I96: 37.92 | J96: 38.43 | K96: 37.4 | L96: 36.4 | M96: 13.55968
A97: 88 | B97: CENTURYPLY | C97: 171.65 | D97: 172.98 | E97: 169.67 | F97: 167.68 | G97: 164.37 | H97: 174.97 | I97: 178.28 | J97: 180.27 | K97: 176.3 | L97: 171 | M97: 0.80818
A98: 89 | B98: CENTURYTEX | C98: 898.15 | D98: 903.88 | E98: 888.27 | F98: 878.38 | G98: 862.77 | H98: 913.77 | I98: 929.38 | J98: 939.27 | K98: 919.5 | L98: 894 | M98: 4.56198
A99: 90 | B99: CERA | C99: 2378.3 | D99: 2372.90 | E99: 2346.85 | F99: 2315.40 | G99: 2289.35 | H99: 2404.35 | I99: 2430.40 | J99: 2461.85 | K99: 2398.95 | L99: 2341.45 | M99: 0.05976
A100: 91 | B100: CGPOWER | C100: 43.35 | D100: 43.67 | E100: 42.68 | F100: 42.02 | G100: 41.03 | H100: 44.33 | I100: 45.32 | J100: 45.98 | K100: 44.65 | L100: 43 | M100: 61.66173
A101: 92 | B101: CHAMBLFERT | C101: 151.85 | D101: 152.73 | E101: 149.57 | F101: 147.28 | G101: 144.12 | H101: 155.02 | I101: 158.18 | J101: 160.47 | K101: 155.9 | L101: 150.45 | M101: 2.46297
A102: 93 | B102: CHENNPETRO | C102: 281.35 | D102: 282.22 | E102: 278.18 | F102: 275.02 | G102: 270.98 | H102: 285.38 | I102: 289.42 | J102: 292.58 | K102: 286.25 | L102: 279.05 | M102: 2.41119
A103: 94 | B103: CHOLAFIN | C103: 1200.45 | D103: 1214.48 | E103: 1181.97 | F103: 1163.48 | G103: 1130.97 | H103: 1232.97 | I103: 1265.48 | J103: 1283.97 | K103: 1247 | L103: 1196 | M103: 2.25916
A104: 95 | B104: CIPLA | C104: 512.4 | D104: 514.70 | E104: 508.90 | F104: 505.40 | G104: 499.60 | H104: 518.20 | I104: 524.00 | J104: 527.50 | K104: 520.5 | L104: 511.2 | M104: 20.8615
A105: 96 | B105: COALINDIA | C105: 235 | D105: 235.63 | E105: 232.57 | F105: 230.13 | G105: 227.07 | H105: 238.07 | I105: 241.13 | J105: 243.57 | K105: 238.7 | L105: 233.2 | M105: 56.64136
A106: 97 | B106: COCHINSHIP | C106: 368.5 | D106: 369.80 | E106: 366.85 | F106: 365.20 | G106: 362.25 | H106: 371.45 | I106: 374.40 | J106: 376.05 | K106: 372.75 | L106: 368.15 | M106: 0.36505
A107: 98 | B107: COFFEEDAY | C107: 272.3 | D107: 275.05 | E107: 268.35 | F107: 264.40 | G107: 257.70 | H107: 279.00 | I107: 285.70 | J107: 289.65 | K107: 281.75 | L107: 271.1 | M107: 0.42081
A108: 99 | B108: COLPAL | C108: 1314.25 | D108: 1308.73 | E108: 1296.57 | F108: 1278.88 | G108: 1266.72 | H108: 1326.42 | I108: 1338.58 | J108: 1356.27 | K108: 1320.9 | L108: 1291.05 | M108: 4.07748
A109: 100 | B109: CONCOR | C109: 670 | D109: 669.98 | E109: 667.07 | F109: 664.13 | G109: 661.22 | H109: 672.92 | I109: 675.83 | J109: 678.77 | K109: 672.9 | L109: 667.05 | M109: 6.72072
A110: 101 | B110: COROMANDEL | C110: 451.15 | D110: 451.47 | E110: 448.98 | F110: 446.82 | G110: 444.33 | H110: 453.63 | I110: 456.12 | J110: 458.28 | K110: 453.95 | L110: 449.3 | M110: 0.45711
A111: 102 | B111: COX&KINGS | C111: 169.65 | D111: 168.08 | E111: 160.17 | F111: 150.68 | G111: 142.77 | H111: 177.57 | I111: 185.48 | J111: 194.97 | K111: 176 | L111: 158.6 | M111: 4.28846
A112: 103 | B112: CRISIL | C112: 1638 | D112: 1635.50 | E112: 1622.60 | F112: 1607.20 | G112: 1594.30 | H112: 1650.90 | I112: 1663.80 | J112: 1679.20 | K112: 1648.4 | L112: 1620.1 | M112: 0.05612
A113: 104 | B113: CROMPTON | C113: 228.95 | D113: 231.28 | E113: 224.67 | F113: 220.38 | G113: 213.77 | H113: 235.57 | I113: 242.18 | J113: 246.47 | K113: 237.9 | L113: 227 | M113: 5.25613
A114: 105 | B114: CUB | C114: 192.7 | D114: 193.55 | E114: 191.15 | F114: 189.60 | G114: 187.20 | H114: 195.10 | I114: 197.50 | J114: 199.05 | K114: 195.95 | L114: 192 | M114: 8.93574
A115: 106 | B115: CUMMINSIND | C115: 834.75 | D115: 841.37 | E115: 825.38 | F115: 816.02 | G115: 800.03 | H115: 850.73 | I115: 866.72 | J115: 876.08 | K115: 857.35 | L115: 832 | M115: 2.80927
A116: 107 | B116: CYIENT | C116: 621.35 | D116: 620.30 | E116: 616.05 | F116: 610.75 | G116: 606.50 | H116: 625.60 | I116: 629.85 | J116: 635.15 | K116: 624.55 | L116: 615 | M116: 0.39824
A117: 108 | B117: DABUR | C117: 422 | D117: 420.50 | E117: 415.00 | F117: 408.00 | G117: 402.50 | H117: 427.50 | I117: 433.00 | J117: 440.00 | K117: 426 | L117: 413.5 | M117: 32.71824
A118: 109 | B118: DBCORP | C118: 167.55 | D118: 168.22 | E118: 165.73 | F118: 163.92 | G118: 161.43 | H118: 170.03 | I118: 172.52 | J118: 174.33 | K118: 170.7 | L118: 166.4 | M118: 0.10624
A119: 110 | B119: DBL | C119: 417.15 | D119: 418.98 | E119: 414.17 | F119: 411.18 | G119: 406.37 | H119: 421.97 | I119: 426.78 | J119: 429.77 | K119: 423.8 | L119: 416 | M119: 1.47796
A120: 111 | B120: DBREALTY | C120: 31.35 | D120: 31.67 | E120: 30.83 | F120: 30.32 | G120: 29.48 | H120: 32.18 | I120: 33.02 | J120: 33.53 | K120: 32.5 | L120: 31.15 | M120: 13.80797
A121: 112 | B121: DCAL | C121: 231.9 | D121: 231.72 | E121: 229.43 | F121: 226.97 | G121: 224.68 | H121: 234.18 | I121: 236.47 | J121: 238.93 | K121: 234 | L121: 229.25 | M121: 0.61127
A122: 113 | B122: DCBBANK | C122: 168.45 | D122: 168.92 | E122: 167.33 | F122: 166.22 | G122: 164.63 | H122: 170.03 | I122: 171.62 | J122: 172.73 | K122: 170.5 | L122: 167.8 | M122: 7.16159
A123: 114 | B123: DCMSHRIRAM | C123: 344.15 | D123: 344.98 | E123: 340.37 | F123: 336.58 | G123: 331.97 | H123: 348.77 | I123: 353.38 | J123: 357.17 | K123: 349.6 | L123: 341.2 | M123: 0.36334
A124: 115 | B124: DEEPAKFERT | C124: 142.25 | D124: 144.10 | E124: 139.45 | F124: 136.65 | G124: 132.00 | H124: 146.90 | I124: 151.55 | J124: 154.35 | K124: 148.75 | L124: 141.3 | M124: 2.40389
A125: 116 | B125: DELTACORP | C125: 248.6 | D125: 248.93 | E125: 245.97 | F125: 243.33 | G125: 240.37 | H125: 251.57 | I125: 254.53 | J125: 257.17 | K125: 251.9 | L125: 246.3 | M125: 7.92707
A126: 117 | B126: DEN | C126: 70.1 | D126: 70.03 | E126: 69.82 | F126: 69.53 | G126: 69.32 | H126: 70.32 | I126: 70.53 | J126: 70.82 | K126: 70.25 | L126: 69.75 | M126: 0.99503
A127: 118 | B127: DENABANK | C127: 14.4 | D127: 14.58 | E127: 14.17 | F127: 13.93 | G127: 13.52 | H127: 14.82 | I127: 15.23 | J127: 15.47 | K127: 15 | L127: 14.35 | M127: 314.80284
A128: 119 | B128: DHFL | C128: 235.65 | D128: 237.98 | E128: 231.67 | F128: 227.68 | G128: 221.37 | H128: 241.97 | I128: 248.28 | J128: 252.27 | K128: 244.3 | L128: 234 | M128: 58.39267
A129: 120 | B129: DISHTV | C129: 37.95 | D129: 38.17 | E129: 37.38 | F129: 36.82 | G129: 36.03 | H129: 38.73 | I129: 39.52 | J129: 40.08 | K129: 38.95 | L129: 37.6 | M129: 35.98166
A130: 121 | B130: DIVISLAB | C130: 1437.9 | D130: 1450.93 | E130: 1419.07 | F130: 1400.23 | G130: 1368.37 | H130: 1469.77 | I130: 1501.63 | J130: 1520.47 | K130: 1482.8 | L130: 1432.1 | M130: 5.36515
A131: 122 | B131: DIXON | C131: 2036.25 | D131: 2026.80 | E131: 2014.05 | F131: 1991.85 | G131: 1979.10 | H131: 2049.00 | I131: 2061.75 | J131: 2083.95 | K131: 2039.55 | L131: 2004.6 | M131: 0.06135
A132: 123 | B132: DLF | C132: 172.45 | D132: 172.85 | E132: 170.75 | F132: 169.05 | G132: 166.95 | H132: 174.55 | I132: 176.65 | J132: 178.35 | K132: 174.95 | L132: 171.15 | M132: 58.73745
A133: 124 | B133: DMART | C133: 1575.9 | D133: 1574.90 | E133: 1556.50 | F133: 1537.10 | G133: 1518.70 | H133: 1594.30 | I133: 1612.70 | J133: 1632.10 | K133: 1593.3 | L133: 1555.5 | M133: 5.16324
A134: 125 | B134: DREDGECORP | C134: 453.85 | D134: 458.48 | E134: 445.97 | F134: 438.08 | G134: 425.57 | H134: 466.37 | I134: 478.88 | J134: 486.77 | K134: 471 | L134: 450.6 | M134: 12.55614
A135: 126 | B135: DRREDDY | C135: 2577.35 | D135: 2585.38 | E135: 2555.97 | F135: 2534.58 | G135: 2505.17 | H135: 2606.77 | I135: 2636.18 | J135: 2657.57 | K135: 2614.8 | L135: 2564 | M135: 5.41891
A136: 127 | B136: ECLERX | C136: 1078.55 | D136: 1086.08 | E136: 1066.47 | F136: 1054.38 | G136: 1034.77 | H136: 1098.17 | I136: 1117.78 | J136: 1129.87 | K136: 1105.7 | L136: 1074 | M136: 0.05762
A137: 128 | B137: EDELWEISS | C137: 176.75 | D137: 177.80 | E137: 174.70 | F137: 172.65 | G137: 169.55 | H137: 179.85 | I137: 182.95 | J137: 185.00 | K137: 180.9 | L137: 175.75 | M137: 10.19179
A138: 129 | B138: EICHERMOT | C138: 20211.45 | D138: 20467.48 | E138: 19894.97 | F138: 19578.48 | G138: 19005.97 | H138: 20783.97 | I138: 21356.48 | J138: 21672.97 | K138: 21040 | L138: 20151 | M138: 4.68301
A139: 130 | B139: EIDPARRY | C139: 205.95 | D139: 206.65 | E139: 204.30 | F139: 202.65 | G139: 200.30 | H139: 208.30 | I139: 210.65 | J139: 212.30 | K139: 209 | L139: 205 | M139: 0.55687
A140: 131 | B140: EIHOTEL | C140: 185.5 | D140: 185.87 | E140: 182.83 | F140: 180.17 | G140: 177.13 | H140: 188.53 | I140: 191.57 | J140: 194.23 | K140: 188.9 | L140: 183.2 | M140: 3.53741
A141: 132 | B141: EMAMILTD | C141: 421.85 | D141: 423.67 | E141: 418.13 | F141: 414.42 | G141: 408.88 | H141: 427.38 | I141: 432.92 | J141: 436.63 | K141: 429.2 | L141: 419.95 | M141: 1.15813
A142: 133 | B142: ENDURANCE | C142: 1246.7 | D142: 1246.18 | E142: 1238.57 | F142: 1230.43 | G142: 1222.82 | H142: 1254.32 | I142: 1261.93 | J142: 1270.07 | K142: 1253.8 | L142: 1238.05 | M142: 0.09154
A143: 134 | B143: ENGINERSIN | C143: 124.85 | D143: 125.08 | E143: 123.97 | F143: 123.08 | G143: 121.97 | H143: 125.97 | I143: 127.08 | J143: 127.97 | K143: 126.2 | L143: 124.2 | M143: 5.74906
A144: 135 | B144: EQUITAS | C144: 123 | D144: 122.98 | E144: 121.02 | F144: 119.03 | G144: 117.07 | H144: 124.97 | I144: 126.93 | J144: 128.92 | K144: 124.95 | L144: 121 | M144: 20.25127
A145: 136 | B145: ERIS | C145: 678.8 | D145: 676.25 | E145: 671.55 | F145: 664.30 | G145: 659.60 | H145: 683.50 | I145: 688.20 | J145: 695.45 | K145: 680.95 | L145: 669 | M145: 0.09923
A146: 137 | B146: EROSMEDIA | C146: 86.25 | D146: 86.03 | E146: 85.27 | F146: 84.28 | G146: 83.52 | H146: 87.02 | I146: 87.78 | J146: 88.77 | K146: 86.8 | L146: 85.05 | M146: 1.01979
A147: 138 | B147: ESCORTS | C147: 722.2 | D147: 719.42 | E147: 710.83 | F147: 699.47 | G147: 690.88 | H147: 730.78 | I147: 739.37 | J147: 750.73 | K147: 728 | L147: 708.05 | M147: 30.77959
A148: 139 | B148: EVEREADY | C148: 183.1 | D148: 182.70 | E148: 181.40 | F148: 179.70 | G148: 178.40 | H148: 184.40 | I148: 185.70 | J148: 187.40 | K148: 184 | L148: 181 | M148: 0.4202
A149: 140 | B149: EXIDEIND | C149: 257.5 | D149: 258.92 | E149: 255.18 | F149: 252.87 | G149: 249.13 | H149: 261.23 | I149: 264.97 | J149: 267.28 | K149: 262.65 | L149: 256.6 | M149: 13.88814
A150: 141 | B150: FCONSUMER | C150: 44.75 | D150: 45.07 | E150: 44.23 | F150: 43.72 | G150: 42.88 | H150: 45.58 | I150: 46.42 | J150: 46.93 | K150: 45.9 | L150: 44.55 | M150: 7.02088
A151: 142 | B151: FEDERALBNK | C151: 92 | D151: 92.92 | E151: 90.53 | F151: 89.07 | G151: 86.68 | H151: 94.38 | I151: 96.77 | J151: 98.23 | K151: 95.3 | L151: 91.45 | M151: 125.7316
A152: 143 | B152: FINCABLES | C152: 449.8 | D152: 452.03 | E152: 445.27 | F152: 440.73 | G152: 433.97 | H152: 456.57 | I152: 463.33 | J152: 467.87 | K152: 458.8 | L152: 447.5 | M152: 0.31107
A153: 144 | B153: FINPIPE | C153: 531.1 | D153: 532.62 | E153: 524.88 | F153: 518.67 | G153: 510.93 | H153: 538.83 | I153: 546.57 | J153: 552.78 | K153: 540.35 | L153: 526.4 | M153: 0.13124
A154: 145 | B154: FLFL | C154: 394.4 | D154: 394.88 | E154: 389.77 | F154: 385.13 | G154: 380.02 | H154: 399.52 | I154: 404.63 | J154: 409.27 | K154: 400 | L154: 390.25 | M154: 0.16881
A155: 146 | B155: FSL | C155: 46.85 | D155: 47.33 | E155: 45.77 | F155: 44.68 | G155: 43.12 | H155: 48.42 | I155: 49.98 | J155: 51.07 | K155: 48.9 | L155: 46.25 | M155: 24.62865
A156: 147 | B156: GAIL | C156: 349.95 | D156: 349.78 | E156: 347.12 | F156: 344.28 | G156: 341.62 | H156: 352.62 | I156: 355.28 | J156: 358.12 | K156: 352.45 | L156: 346.95 | M156: 23.97912
A157: 148 | B157: GATI | C157: 84.05 | D157: 84.37 | E157: 83.23 | F157: 82.42 | G157: 81.28 | H157: 85.18 | I157: 86.32 | J157: 87.13 | K157: 85.5 | L157: 83.55 | M157: 1.72375
A158: 149 | B158: GDL | C158: 123.25 | D158: 123.92 | E158: 121.88 | F158: 120.52 | G158: 118.48 | H158: 125.28 | I158: 127.32 | J158: 128.68 | K158: 125.95 | L158: 122.55 | M158: 0.93026
A159: 150 | B159: GEPIL | C159: 814.95 | D159: 816.60 | E159: 809.35 | F159: 803.75 | G159: 796.50 | H159: 822.20 | I159: 829.45 | J159: 835.05 | K159: 823.85 | L159: 811 | M159: 0.0364
A160: 151 | B160: GESHIP | C160: 317.75 | D160: 317.82 | E160: 315.88 | F160: 314.02 | G160: 312.08 | H160: 319.68 | I160: 321.62 | J160: 323.48 | K160: 319.75 | L160: 315.95 | M160: 0.2406
A161: 152 | B161: GET&D | C161: 295.55 | D161: 292.83 | E161: 287.67 | F161: 279.78 | G161: 274.62 | H161: 300.72 | I161: 305.88 | J161: 313.77 | K161: 298 | L161: 284.95 | M161: 0.33784
A162: 153 | B162: GHCL | C162: 241.75 | D162: 243.82 | E162: 238.23 | F162: 234.72 | G162: 229.13 | H162: 247.33 | I162: 252.92 | J162: 256.43 | K162: 249.4 | L162: 240.3 | M162: 1.45614
A163: 154 | B163: GICRE | C163: 261.15 | D163: 260.38 | E163: 258.77 | F163: 256.38 | G163: 254.77 | H163: 262.77 | I163: 264.38 | J163: 266.77 | K163: 262 | L163: 258 | M163: 1.20045
A164: 155 | B164: GILLETTE | C164: 6484.95 | D164: 6471.92 | E164: 6445.03 | F164: 6405.12 | G164: 6378.23 | H164: 6511.83 | I164: 6538.72 | J164: 6578.63 | K164: 6498.8 | L164: 6432 | M164: 0.02973
A165: 156 | B165: GLAXO | C165: 1472.05 | D165: 1475.67 | E165: 1441.33 | F165: 1410.62 | G165: 1376.28 | H165: 1506.38 | I165: 1540.72 | J165: 1571.43 | K165: 1510 | L165: 1444.95 | M165: 0.13004
A166: 157 | B166: GLENMARK | C166: 661.55 | D166: 667.83 | E166: 653.07 | F166: 644.58 | G166: 629.82 | H166: 676.32 | I166: 691.08 | J166: 699.57 | K166: 682.6 | L166: 659.35 | M166: 6.12332
A167: 158 | B167: GMDCLTD | C167: 88.15 | D167: 88.73 | E167: 87.42 | F167: 86.68 | G167: 85.37 | H167: 89.47 | I167: 90.78 | J167: 91.52 | K167: 90.05 | L167: 88 | M167: 0.64469
A168: 159 | B168: GMRINFRA | C168: 15.65 | D168: 15.78 | E168: 15.47 | F168: 15.28 | G168: 14.97 | H168: 15.97 | I168: 16.28 | J168: 16.47 | K168: 16.1 | L168: 15.6 | M168: 110.69953
A169: 160 | B169: GNFC | C169: 342.35 | D169: 343.75 | E169: 339.65 | F169: 336.95 | G169: 332.85 | H169: 346.45 | I169: 350.55 | J169: 353.25 | K169: 347.85 | L169: 341.05 | M169: 3.33928
A170: 161 | B170: GODFRYPHLP | C170: 873.85 | D170: 871.53 | E170: 865.07 | F170: 856.28 | G170: 849.82 | H170: 880.32 | I170: 886.78 | J170: 895.57 | K170: 878 | L170: 862.75 | M170: 0.81336
A171: 162 | B171: GODREJAGRO | C171: 498.85 | D171: 500.15 | E171: 496.35 | F171: 493.85 | G171: 490.05 | H171: 502.65 | I171: 506.45 | J171: 508.95 | K171: 503.95 | L171: 497.65 | M171: 0.35956
A172: 163 | B172: GODREJCP | C172: 814.9 | D172: 810.07 | E172: 795.73 | F172: 776.57 | G172: 762.23 | H172: 829.23 | I172: 843.57 | J172: 862.73 | K172: 824.4 | L172: 790.9 | M172: 5.97625
A173: 164 | B173: GODREJIND | C173: 532.25 | D173: 535.73 | E173: 526.52 | F173: 520.78 | G173: 511.57 | H173: 541.47 | I173: 550.68 | J173: 556.42 | K173: 544.95 | L173: 530 | M173: 2.42441
A174: 165 | B174: GODREJPROP | C174: 677.05 | D174: 676.73 | E174: 666.47 | F174: 655.88 | G174: 645.62 | H174: 687.32 | I174: 697.58 | J174: 708.17 | K174: 687 | L174: 666.15 | M174: 2.26499
A175: 166 | B175: GPPL | C175: 101.7 | D175: 102.05 | E175: 100.35 | F175: 99.00 | G175: 97.30 | H175: 103.40 | I175: 105.10 | J175: 106.45 | K175: 103.75 | L175: 100.7 | M175: 0.59619
A176: 167 | B176: GRANULES | C176: 89.9 | D176: 90.00 | E176: 89.10 | F176: 88.30 | G176: 87.40 | H176: 90.80 | I176: 91.70 | J176: 92.50 | K176: 90.9 | L176: 89.2 | M176: 4.55053
A177: 168 | B177: GRAPHITE | C177: 740.15 | D177: 745.05 | E177: 730.10 | F177: 720.05 | G177: 705.10 | H177: 755.10 | I177: 770.05 | J177: 780.10 | K177: 760 | L177: 735 | M177: 3.77682
A178: 169 | B178: GRASIM | C178: 799.7 | D178: 805.57 | E178: 792.13 | F178: 784.57 | G178: 771.13 | H178: 813.13 | I178: 826.57 | J178: 834.13 | K178: 819 | L178: 798 | M178: 9.59578
A179: 170 | B179: GREAVESCOT | C179: 116.95 | D179: 116.93 | E179: 116.47 | F179: 115.98 | G179: 115.52 | H179: 117.42 | I179: 117.88 | J179: 118.37 | K179: 117.4 | L179: 116.45 | M179: 3.31978
A180: 171 | B180: GREENPLY | C180: 137.35 | D180: 137.12 | E180: 135.23 | F180: 133.12 | G180: 131.23 | H180: 139.23 | I180: 141.12 | J180: 143.23 | K180: 139 | L180: 135 | M180: 0.83702
A181: 172 | B181: GRUH | C181: 322.2 | D181: 322.25 | E181: 319.95 | F181: 317.70 | G181: 315.40 | H181: 324.50 | I181: 326.80 | J181: 329.05 | K181: 324.55 | L181: 320 | M181: 2.13711
A182: 173 | B182: GSFC | C182: 110.5 | D182: 111.23 | E182: 109.47 | F182: 108.43 | G182: 106.67 | H182: 112.27 | I182: 114.03 | J182: 115.07 | K182: 113 | L182: 110.2 | M182: 13.16882
A183: 174 | B183: GSKCONS | C183: 7483.15 | D183: 7512.20 | E183: 7436.00 | F183: 7388.85 | G183: 7312.65 | H183: 7559.35 | I183: 7635.55 | J183: 7682.70 | K183: 7588.4 | L183: 7465.05 | M183: 0.21969
A184: 175 | B184: GSPL | C184: 170.45 | D184: 172.02 | E184: 167.73 | F184: 165.02 | G184: 160.73 | H184: 174.73 | I184: 179.02 | J184: 181.73 | K184: 176.3 | L184: 169.3 | M184: 21.54136
A185: 176 | B185: GUJALKALI | C185: 535.65 | D185: 535.70 | E185: 527.45 | F185: 519.25 | G185: 511.00 | H185: 543.90 | I185: 552.15 | J185: 560.35 | K185: 543.95 | L185: 527.5 | M185: 0.28762
A186: 177 | B186: GUJFLUORO | C186: 912.45 | D186: 911.48 | E186: 905.97 | F186: 899.48 | G186: 893.97 | H186: 917.97 | I186: 923.48 | J186: 929.97 | K186: 917 | L186: 905 | M186: 1.13669
A187: 178 | B187: GUJGASLTD | C187: 667.8 | D187: 668.85 | E187: 664.95 | F187: 662.10 | G187: 658.20 | H187: 671.70 | I187: 675.60 | J187: 678.45 | K187: 672.75 | L187: 666 | M187: 0.07432
A188: 179 | B188: GULFOILLUB | C188: 838.95 | D188: 838.43 | E188: 830.57 | F188: 822.18 | G188: 814.32 | H188: 846.82 | I188: 854.68 | J188: 863.07 | K188: 846.3 | L188: 830.05 | M188: 0.11333
A189: 180 | B189: GVKPIL | C189: 7.75 | D189: 7.80 | E189: 7.65 | F189: 7.55 | G189: 7.40 | H189: 7.90 | I189: 8.05 | J189: 8.15 | K189: 7.95 | L189: 7.7 | M189: 6.64595
A190: 181 | B190: HATHWAY | C190: 30.6 | D190: 30.67 | E190: 30.53 | F190: 30.47 | G190: 30.33 | H190: 30.73 | I190: 30.87 | J190: 30.93 | K190: 30.8 | L190: 30.6 | M190: 2.35949
A191: 182 | B191: HATSUN | C191: 643.95 | D191: 657.27 | E191: 619.73 | F191: 595.52 | G191: 557.98 | H191: 681.48 | I191: 719.02 | J191: 743.23 | K191: 694.8 | L191: 633.05 | M191: 0.973
A192: 183 | B192: HAVELLS | C192: 681.4 | D192: 685.55 | E192: 673.65 | F192: 665.90 | G192: 654.00 | H192: 693.30 | I192: 705.20 | J192: 712.95 | K192: 697.45 | L192: 677.8 | M192: 9.14499
A193: 184 | B193: HCC | C193: 13.5 | D193: 13.60 | E193: 13.25 | F193: 13.00 | G193: 12.65 | H193: 13.85 | I193: 14.20 | J193: 14.45 | K193: 13.95 | L193: 13.35 | M193: 94.18264
A194: 185 | B194: HCL-INSYS | C194: 25.55 | D194: 25.67 | E194: 25.23 | F194: 24.92 | G194: 24.48 | H194: 25.98 | I194: 26.42 | J194: 26.73 | K194: 26.1 | L194: 25.35 | M194: 4.90011
A195: 186 | B195: HCLTECH | C195: 948.35 | D195: 951.12 | E195: 942.23 | F195: 936.12 | G195: 927.23 | H195: 957.23 | I195: 966.12 | J195: 972.23 | K195: 960 | L195: 945 | M195: 14.04612
A196: 187 | B196: HDFC | C196: 1936.85 | D196: 1951.93 | E196: 1916.77 | F196: 1896.68 | G196: 1861.52 | H196: 1972.02 | I196: 2007.18 | J196: 2027.27 | K196: 1987.1 | L196: 1931.85 | M196: 37.32193
A197: 188 | B197: HDFCBANK | C197: 2111.8 | D197: 2114.35 | E197: 2100.45 | F197: 2089.10 | G197: 2075.20 | H197: 2125.70 | I197: 2139.60 | J197: 2150.95 | K197: 2128.25 | L197: 2103 | M197: 31.92916
A198: 189 | B198: HDIL | C198: 25.5 | D198: 25.65 | E198: 25.10 | F198: 24.70 | G198: 24.15 | H198: 26.05 | I198: 26.60 | J198: 27.00 | K198: 26.2 | L198: 25.25 | M198: 45.90384
A199: 190 | B199: HEG | C199: 3654.9 | D199: 3669.90 | E199: 3626.00 | F199: 3597.10 | G199: 3553.20 | H199: 3698.80 | I199: 3742.70 | J199: 3771.60 | K199: 3713.8 | L199: 3641 | M199: 0.80591
A200: 191 | B200: HEIDELBERG | C200: 149.6 | D200: 150.47 | E200: 148.33 | F200: 147.07 | G200: 144.93 | H200: 151.73 | I200: 153.87 | J200: 155.13 | K200: 152.6 | L200: 149.2 | M200: 0.38225
A201: 192 | B201: HERITGFOOD | C201: 522.7 | D201: 522.27 | E201: 515.53 | F201: 508.37 | G201: 501.63 | H201: 529.43 | I201: 536.17 | J201: 543.33 | K201: 529 | L201: 515.1 | M201: 0.51981
A202: 193 | B202: HEROMOTOCO | C202: 3014.65 | D202: 3032.98 | E202: 2987.97 | F202: 2961.28 | G202: 2916.27 | H202: 3059.67 | I202: 3104.68 | J202: 3131.37 | K202: 3078 | L202: 3006.3 | M202: 3.68413
A203: 194 | B203: HEXAWARE | C203: 330.6 | D203: 330.85 | E203: 326.75 | F203: 322.90 | G203: 318.80 | H203: 334.70 | I203: 338.80 | J203: 342.65 | K203: 334.95 | L203: 327 | M203: 11.31624
A204: 195 | B204: HFCL | C204: 21.05 | D204: 21.10 | E204: 20.85 | F204: 20.65 | G204: 20.40 | H204: 21.30 | I204: 21.55 | J204: 21.75 | K204: 21.35 | L204: 20.9 | M204: 14.40045
A205: 196 | B205: HIMATSEIDE | C205: 215 | D205: 215.40 | E205: 213.75 | F205: 212.50 | G205: 210.85 | H205: 216.65 | I205: 218.30 | J205: 219.55 | K205: 217.05 | L205: 214.15 | M205: 0.12499
A206: 197 | B206: HINDALCO | C206: 209.2 | D206: 211.00 | E206: 206.30 | F206: 203.40 | G206: 198.70 | H206: 213.90 | I206: 218.60 | J206: 221.50 | K206: 215.7 | L206: 208.1 | M206: 86.56029
... 304 more rows

Sheet Bulk Deals
E6: Back To Main Page
A7: Subject : | B7: BULK DEAL | D7: =Main!B10 -> 2019-01-04
A9: Date | B9: Scrip code | C9: Scrip Name | D9: Client Name | E9: Buy / Sell | F9: Quantity Traded | G9: Trade Price / Wt.Avg.trade price | H9: Exchange
A10: 2019-01-03 | B10: 530187 | C10: ATHARVENT | D10: KIRTILAL BABULAL GHANDHI | E10: BUY | F10: 93,000 | G10: 1.75 | H10: BSE
A11: 2019-01-03 | B11: 530187 | C11: ATHARVENT | D11: AMAN SHREE TRADING AND REAL ESTATE PRIVATE LIMITED | E11: SELL | F11: 95,000 | G11: 1.75 | H11: BSE
A12: 2019-01-03 | B12: 537766 | C12: BCP | D12: DIPESH SITARAM GORULE | E12: BUY | F12: 343,438 | G12: 35.34 | H12: BSE
A13: 2019-01-03 | B13: 537766 | C13: BCP | D13: DIPESH SITARAM GORULE | E13: SELL | F13: 343,438 | G13: 35.44 | H13: BSE
A14: 2019-01-03 | B14: 539335 | C14: CHPLIND | D14: RASHMI RAVI SHARMA | E14: SELL | F14: 23,280 | G14: 11.59 | H14: BSE
A15: 2019-01-03 | B15: 539335 | C15: CHPLIND | D15: DIMPLE SURANA | E15: BUY | F15: 43,247 | G15: 11.52 | H15: BSE
A16: 2019-01-03 | B16: 541703 | C16: GFIL | D16: MEHUL HASMUKH SHAH | E16: BUY | F16: 28,800 | G16: 58 | H16: BSE
A17: 2019-01-03 | B17: 539216 | C17: JUNCTION | D17: GOKUL YEEPU | E17: SELL | F17: 16,000 | G17: 23.28 | H17: BSE
A18: 2019-01-03 | B18: 539216 | C18: JUNCTION | D18: YEEPU SIDDARTH GOKUL | E18: BUY | F18: 16,000 | G18: 23.28 | H18: BSE
A19: 2019-01-03 | B19: 540515 | C19: KANUNGO | D19: KEVAL SAVANT | E19: BUY | F19: 103,000 | G19: 12 | H19: BSE
A20: 2019-01-03 | B20: 540515 | C20: KANUNGO | D20: HASMUKH RAJESH VAGHELA | E20: BUY | F20: 30,600 | G20: 12 | H20: BSE
A21: 2019-01-03 | B21: 540515 | C21: KANUNGO | D21: MOHAMMEDSARIF M RANGWALA | E21: SELL | F21: 150,000 | G21: 12 | H21: BSE
A22: 2019-01-03 | B22: 521238 | C22: KDL | D22: NISHIL FINANCIAL ADVISORS LLP . | E22: BUY | F22: 2,826 | G22: 17.35 | H22: BSE
A23: 2019-01-03 | B23: 539599 | C23: KEL | D23: ECLEAR LEASING & FINANCE PRIVATE LIMITED | E23: BUY | F23: 65,000 | G23: 17.4 | H23: BSE
A24: 2019-01-03 | B24: 535204 | C24: MUKTA | D24: KHUSHBOO VANRAJ KAHOR | E24: BUY | F24: 114,739 | G24: 31.5 | H24: BSE
A25: 2019-01-03 | B25: 535204 | C25: MUKTA | D25: KHUSHBOO VANRAJ KAHOR | E25: SELL | F25: 114,739 | G25: 31.55 | H25: BSE
A26: 2019-01-03 | B26: 512618 | C26: RLF | D26: SAMEER KAPUR | E26: BUY | F26: 58,315 | G26: 5.01 | H26: BSE
A27: 2019-01-03 | B27: 512618 | C27: RLF | D27: PRADEEP KUMAR AGRAWAL | E27: SELL | F27: 55,147 | G27: 5.02 | H27: BSE
A28: 2019-01-03 | B28: 538557 | C28: SAIBABA | D28: NIKHIL GULABCHAND SHAH | E28: SELL | F28: 1,200,000 | G28: 1.77 | H28: BSE
A29: 2019-01-03 | B29: 539520 | C29: SHAILJA | D29: ARVIND SHANTILAL SHAH | E29: SELL | F29: 35,000 | G29: 13.48 | H29: BSE
A30: 2019-01-03 | B30: 540079 | C30: SPRAYKING | D30: PRADIP KUMAR JAIN | E30: BUY | F30: 30,000 | G30: 27 | H30: BSE
A31: 2019-01-03 | B31: 540079 | C31: SPRAYKING | D31: POONAM P JAIN | E31: SELL | F31: 30,000 | G31: 27 | H31: BSE
A32: 2019-01-03 | B32: 531518 | C32: VIKASPROP | D32: GOURAV | E32: SELL | F32: 1,500,000 | G32: 3.85 | H32: BSE
A33: 2019-01-03 | B33: AGROPHOS | C33: Agro Phos India Limited | D33: D K INVESTMENTS | E33: BUY | F33: 102000 | G33: 50.99 | H33: NSE
A34: 2019-01-03 | B34: AKG | C34: AKG Exim Limited | D34: VARUN GUPTA | E34: BUY | F34: 44000 | G34: 32.39 | H34: NSE
A35: 2019-01-03 | B35: AMJUMBO | C35: A and M Jumbo Bags Ltd | D35: TEJAS HARSHADBHAI PATEL | E35: BUY | F35: 10000 | G35: 50.34 | H35: NSE
A36: 2019-01-03 | B36: BEML | C36: BEML Limited | D36: ALPHAGREP SECURITIES PRIVATE LIMITED | E36: BUY | F36: 334416 | G36: 906.1 | H36: NSE
A37: 2019-01-03 | B37: JETAIRWAYS | C37: Jet Airways (India) Ltd. | D37: TOWER RESEARCH CAPITAL MARKETS INDIA PRIVATE LIMITED | E37: BUY | F37: 1010409 | G37: 252.55 | H37: NSE
A38: 2019-01-03 | B38: MIC | C38: MIC Electronics Limited | D38: ALPHA LEON ENTERPRISES LLP | E38: BUY | F38: 2288078 | G38: 1.2 | H38: NSE
A39: 2019-01-03 | B39: MOHOTAIND | C39: Mohota Industries Ltd. | D39: AARP ORGANISORS PRIVATE LIMITED | E39: BUY | F39: 100000 | G39: 89.85 | H39: NSE
A40: 2019-01-03 | B40: MOHOTAIND | C40: Mohota Industries Ltd. | D40: MITTAL SAMEER | E40: BUY | F40: 417484 | G40: 82 | H40: NSE
A41: 2019-01-03 | B41: MOHOTAIND | C41: Mohota Industries Ltd. | D41: NUPUR ANIL SHAH | E41: BUY | F41: 292000 | G41: 90.86 | H41: NSE
A42: 2019-01-03 | B42: PGEL | C42: PG Electroplast Ltd | D42: JHAVERI TRADING AND INVESTMENT PVT LTD | E42: BUY | F42: 155000 | G42: 116.7 | H42: NSE
A43: 2019-01-03 | B43: PGEL | C43: PG Electroplast Ltd | D43: MITTAL SAMEER | E43: BUY | F43: 207566 | G43: 109.79 | H43: NSE
A44: 2019-01-03 | B44: RUCHISOYA | C44: Ruchi Soya Inds Ltd. | D44: ALPHA LEON ENTERPRISES LLP | E44: BUY | F44: 1,864,497 | G44: 7.77 | H44: NSE
A45: 2019-01-03 | B45: SMSLIFE | C45: SMS Lifesciences (I) Ltd | D45: A K G SECURITIES AND CONSULTANCY LTD. | E45: BUY | F45: 18,513 | G45: 661.68 | H45: NSE
A46: 2019-01-03 | B46: SMSLIFE | C46: SMS Lifesciences (I) Ltd | D46: N.K. SECURITIES | E46: BUY | F46: 27,210 | G46: 669.4 | H46: NSE
A47: 2019-01-03 | B47: WABAG | C47: VA Tech Wabag Ltd | D47: NORGES BANK ON ACCOUNT OF THE GOVERNMENT PENSION FUND GLOBA | E47: BUY | F47: 331,665 | G47: 259.53 | H47: NSE
A48: 2019-01-03 | B48: AKG | C48: AKG Exim Limited | D48: MANOJ KUMAR | E48: SELL | F48: 44,000 | G48: 32.39 | H48: NSE
A49: 2019-01-03 | B49: BEML | C49: BEML Limited | D49: ALPHAGREP SECURITIES PRIVATE LIMITED | E49: SELL | F49: 334,416 | G49: 906.61 | H49: NSE
A50: 2019-01-03 | B50: GSS | C50: GSS Infotech Limited | D50: MARGI JIGNESHBHAI SHAH | E50: SELL | F50: 265,000 | G50: 132.01 | H50: NSE
A51: 2019-01-03 | B51: JETAIRWAYS | C51: Jet Airways (India) Ltd. | D51: TOWER RESEARCH CAPITAL MARKETS INDIA PRIVATE LIMITED | E51: SELL | F51: 1,010,409 | G51: 252.55 | H51: NSE
A52: 2019-01-03 | B52: MIC | C52: MIC Electronics Limited | D52: ALPHA LEON ENTERPRISES LLP | E52: SELL | F52: 2,288,078 | G52: 1.3 | H52: NSE
A53: 2019-01-03 | B53: MIC | C53: MIC Electronics Limited | D53: CHAITANYA KEERTHI MAGANTI | E53: SELL | F53: 1,300,000 | G53: 1.3 | H53: NSE
A54: 2019-01-03 | B54: MIC | C54: MIC Electronics Limited | D54: PINNAMANENI ESTATES PRIVATE LIMITED | E54: SELL | F54: 1,500,000 | G54: 1.2 | H54: NSE
A55: 2019-01-03 | B55: MOHOTAIND | C55: Mohota Industries Ltd. | D55: AARP ORGANISORS PRIVATE LIMITED | E55: SELL | F55: 66,713 | G55: 90 | H55: NSE
A56: 2019-01-03 | B56: MOHOTAIND | C56: Mohota Industries Ltd. | D56: MITTAL SAMEER | E56: SELL | F56: 417,484 | G56: 90.38 | H56: NSE
A57: 2019-01-03 | B57: PGEL | C57: PG Electroplast Ltd | D57: MITTAL SAMEER | E57: SELL | F57: 207,566 | G57: 114.64 | H57: NSE
A58: 2019-01-03 | B58: RUCHISOYA | C58: Ruchi Soya Inds Ltd. | D58: ALPHA LEON ENTERPRISES LLP | E58: SELL | F58: 1,864,497 | G58: 8.12 | H58: NSE
A59: 2019-01-03 | B59: SMSLIFE | C59: SMS Lifesciences (I) Ltd | D59: A K G SECURITIES AND CONSULTANCY LTD. | E59: SELL | F59: 18,513 | G59: 662.86 | H59: NSE
A60: 2019-01-03 | B60: SMSLIFE | C60: SMS Lifesciences (I) Ltd | D60: N.K. SECURITIES | E60: SELL | F60: 27,230 | G60: 669.91 | H60: NSE

Sheet Call Tracker (Equity & F&O)
M5: Back To Main Page
A6: Retail Research Technical Calls & Fundamental Performance Report for the month of January -2019
M7: =Main!B10 -> 2019-01-04
B8: Positional Call
A9: Sr.no | B9: Date | D9: Company | E9: Rec | F9: Rec Price | G9: Stop Loss*** | H9: Call Closed At | I9: Target | J9: Remark | K9: Profit / Loss per Share | L9: Gain / Loss % | M9: Status | N9: Closed Date | O9: NSE Closed Price
A10: 1 | B10: 2018-12-21 | D10: TATAGLOBAL | E10: Buy | F10: 217 | G10: 209 | H10: 223.5 | I10: 235-240 | J10: Part Profit of Rs.6.25/- | K10: =H10-F10 -> 6.5 | L10: =K10/F10 -> 3.00% | M10: Successful | N10: 2018-12-24 | R10: H
A11: 2 | B11: 2018-12-24 | D11: JSWSTEEL | E11: Buy | F11: 299.5 | G11: 289 | H11: 285.5 | I11: 320-325 | J11: Loss of Rs.14/- | K11: -14 | L11: -4.67% | M11: Unsuccessful | N11: 2019-01-03 | R11: H
A12: 3 | B12: 2018-12-24 | D12: TATAPOWER | E12: Buy | F12: 77.2-77.4 | G12: 73.7 | I12: 83-84 | J12: Open | O12: =VLOOKUP(D12,Sheet2!A3:M1498,6,0) -> 74.2 | R12: R
A13: 4 | B13: 2018-12-27 | D13: TVSMOTOR | E13: Buy | F13: 552.5 | G13: 519 | H13: 571.75 | I13: 600-620 | J13: Profit of Rs.19.25/- | K13: =H13-F13 -> 19.25 | L13: =K13/F13 -> 3.48% | M13: Successful | N13: 2019-01-02 | R13: H
A14: 5 | B14: 2019-01-01 | D14: ASHOKLEY | E14: Buy | F14: 100.60-101.60 | G14: 96 | I14: 110-112 | J14: Open | O14: =VLOOKUP(D14,Sheet2!A5:M1500,6,0) -> 98.15 | R14: R
A15: 6 | B15: 2019-01-03 | D15: PEL | E15: Buy | F15: 2340-2350 | G15: 2222.2 | I15: 2565-2585 | J15: Open | O15: =VLOOKUP(D15,Sheet2!A6:M1501,6,0) -> 2286.6 | R15: R
A26: CLBS = Closing Basis *** | F26: Reinitiated $
A27: Dividend adjusted <> | F27: Revised stoploss #
A28: Part book {}
A29: Master Trade High Risk
A30: Sr.no | B30: Date | D30: Company | E30: Rec | F30: Rec Price | G30: Stop Loss | H30: Call Closed At | I30: Target | J30: Remark | K30: Profit / Loss per share | L30: Gain / Loss per Lot | M30: Lot | N30: Status | O30: Closed Date
A31: 1 | B31: 2018-12-28 | D31: INFY JAN FUT | E31: Buy | F31: 660.5 | G31: 643 | H31: 668.5 | I31: 690 | J31: Profit of Rs. 8.50 /- | K31: =H31-F31 -> 8 | L31: =M31*8.5 -> 10200 | M31: 1200 | N31: Successful | O31: 2019-01-01 | R31: H
D32: INFY JAN 680 CE | E32: Sell | F32: 21 | H32: 20.5 | K32: =F32-H32 -> 0.5 | R32: H
A33: 2 | B33: 2019-01-02 | D33: NIFTY JAN FUT | E33: Buy | F33: 10885 | G33: 10740 | H33: 10740 | I33: 11100 | J33: Loss of Rs.112/- | K33: =H33-F33 -> -145 | L33: =M33*112 -> 8400 | M33: 75 | N33: UnSuccessful | O33: 2019-01-03 | R33: H
D34: Nifty JAN 11100 CE | E34: Sell | F34: 83 | H34: 50 | K34: =F34-H34 -> 33 | R34: H
A47: Master Trade Medium Risk
A48: Sr.no | B48: Date | D48: Company | E48: Rec | F48: Rec Price | G48: Stop Loss | H48: Call Closed At | I48: Target | J48: Remark | K48: Profit/ Loss per lot | L48: Gain / Loss per Lot | M48: Lot | N48: Status | O48: Closed Date
B67: Smart Delivery Trade
A68: Sr.no | B68: Date | D68: Company | E68: Rec | F68: Rec Price | G68: Stop Loss*** | H68: Call Closed At | I68: Target | J68: Remark | K68: Profit / Loss per Share | L68: Gain / Loss % | M68: Status | N68: Closed Date | O68: NSE Closed Price
A69: 1 | B69: 2018-12-20 | D69: AUROPHARMA | E69: Buy | F69: 730-735 | G69: 709.3 | I69: 775-785 | J69: Open | O69: =VLOOKUP(D69,Sheet2!A74:M1569,6,0) -> 715.9 | R69: R
A70: 2 | B70: 2018-12-27 | D70: HCLTECH | E70: Buy | F70: 944-948 | G70: 918 | I70: 1000 | J70: Open | O70: =VLOOKUP(D70,Sheet2!A4:N1636,6,0) -> 948.35 | R70: H
A71: 3 | B71: 2018-12-28 | D71: JUBLFOOD | E71: Buy | F71: 1244 | G71: 1204 | H71: 1280 | I71: 1300-1320 | J71: Open | O71: =VLOOKUP(D71,Sheet2!A5:N1637,6,0) -> 1239.65 | R71: R
A72: 4 | B72: 2019-01-01 | D72: DLF | E72: Buy | F72: 181 | G72: 174.7 | H72: 173.5 | I72: 192-194 | J72: Loss of Rs.7.5/- | K72: =H72-F72 -> -7.5 | L72: =K72/F72 -> -4.14% | M72: UnSuccessful | N72: 2019-01-02 | R72: R
A73: 5 | B73: 2019-01-02 | D73: MCDOWELL-N | E73: Buy | F73: 620-625 | G73: 603 | I73: 650-660 | J73: Open | O73: =VLOOKUP(D73,Sheet2!A7:N1639,6,0) -> 620.1 | R73: R
A74: 6 | B74: 2019-01-02 | D74: PIDILITIND | E74: Buy | F74: 1100-1105 | G74: 1068.7 | I74: 1165-1175 | J74: Open | O74: =VLOOKUP(D74,Sheet2!A8:N1640,6,0) -> 1109.25 | R74: R
A75: 7 | B75: 2019-01-03 | D75: DABUR | E75: Buy | F75: 419-422 | G75: 407.7 | I75: 444-448 | J75: Open | O75: =VLOOKUP(D75,Sheet2!A9:N1641,6,0) -> 422 | R75: R
A89: CLBS = Closing Basis *** | F89: Reinitiated $
A90: Dividend adjusted <> | F90: Revised stoploss #
B93: Momentum Call
A94: Sr.no | B94: Date | D94: Company | E94: Rec | F94: Rec Price | G94: Stop Loss | H94: Call Closed At | I94: Target | J94: Remark | K94: Profit / Loss per Share/Lot | L94: Gain / Loss % | M94: Gain / Loss per Lot | N94: Lot | O94: Status | P94: Closed Date
A95: 1 | B95: 2018-12-31 | D95: DRREDDY JAN FUT | E95: Buy | F95: 2662.5 | G95: 2620 | H95: 2615 | I95: 2750 | J95: Loss of Rs.47.5/- | K95: =H95-F95 -> -47.5 | M95: =N95*K95 -> -11875 | N95: 250 | O95: UnSuccessful | P95: 2019-01-02 | R95: R
A96: 2 | B96: 2018-12-31 | D96: COLPAL JAN FUT | E96: Sell | F96: 1333 | G96: 1353 | H96: 1325.5 | I96: 1300 | J96: Profit of Rs.7.5/- | K96: =F96-H96 -> 7.5 | M96: =N96*K96 -> 5250 | N96: 700 | O96: Successful | P96: 2019-01-01 | R96: H
A97: 3 | B97: 2018-12-31 | D97: SUNTV | E97: Buy | F97: 612.5 | G97: 594 | H97: 590.5 | I97: 635-645 | J97: Loss of Rs 22/- | K97: =H97-F97 -> -22 | L97: =K97/F97 -> -3.59% | O97: UnSuccessful | P97: 2019-01-03 | R97: H
A98: 4 | B98: 2019-01-01 | D98: TATACHEM JAN FUT | E98: Buy | F98: 708-710 | G98: 693 | I98: 740 | J98: Open | R98: N
A99: 5 | B99: 2019-01-02 | D99: TCS JAN FUT | E99: Buy | F99: 1920 | G99: 1875 | H99: 1946.5 | I99: 2000 | J99: Profit of Rs.26.5/- | K99: =H99-F99 -> 26.5 | M99: =N99*K99 -> 6625 | N99: 250 | O99: Successful | P99: 2019-01-03 | R99: H
A100: 6 | B100: 2019-01-02 | D100: AMBUJACEM JAN FUT | E100: Buy | F100: 222 | G100: 217 | H100: 217 | I100: 232 | J100: Loss of Rs.5/- | K100: =H100-F100 -> -5 | M100: -12500 | N100: 2500 | O100: UnSuccessful | P100: 2019-01-03 | R100: N
A101: 7 | B101: 2019-01-02 | D101: IOC | E101: Buy | F101: 137.5 | G101: 134 | H101: 134 | I101: 143-145 | J101: Loss of Rs 3.5/- | K101: =H101-F101 -> -3.5 | L101: =K101/F101 -> -2.55% | O101: UnSuccessful | P101: 2019-01-03 | R101: H
A102: 8 | B102: 2019-01-03 | D102: ADANIPORTS JAN FUT | E102: Buy | F102: 384.5 | G102: 379 | H102: 380.5 | I102: 395 | J102: Loss of Rs.4/- | K102: =H102-F102 -> -4 | M102: =N102*K102 -> -10000 | N102: 2500 | O102: UnSuccessful | P102: 2019-01-03 | R102: H
A117: CLBS = Closing Basis ***
A118: Dividend adjusted <> | F118: Reinitiated $
F119: Revised stoploss #
B120: Quick Pick Intraday
A121: Sr.no | B121: Date | D121: Company | E121: Rec | F121: Rec Price | G121: Stop Loss*** | H121: Call Closed At | I121: Target | J121: Remark | K121: Profit / Loss per Share | L121: Status | M121: Closed Date
A135: Techno -Funda (positional)
A136: Sr.no | B136: Date | D136: Company | E136: Rec | F136: Rec Price | G136: Stop Loss*** | H136: Call Closed At | I136: Target | J136: Remark | K136: Profit / Loss per Share | L136: Gain / Loss % | M136: Status | N136: Closed Date | O136: NSE Closed Price
A139: CLBS = Closing Basis *** | F139: Reinitiated $
A140: Dividend adjusted <> | F140: Revised stoploss #
B145: Investment Idea
A146: Sr.no | B146: Date | D146: Company | E146: Rec | F146: Rec Price | G146: Point of Review | H146: Close Rate | I146: Target | J146: Remark | K146: Profit / Loss per Share | L146: Gain / Loss % | M146: Status | N146: Closed Date
A147: 1 | B147: 2013-11-01 | D147: L&T Finance Holding | E147: Accu | F147: 82.00 | G147: - | H147: 100 | I147: 100.00 | J147: Target Achieved | K147: =H147-F147 -> 18.00 | L147: =K147/F147 -> 21.95% | M147: Successful | N147: 2016-10-14
A148: 2 | B148: 2014-06-04 | D148: Finolex Inds | E148: Buy | F148: 257.00 | G148: - | H148: 300 | I148: 300.00 | J148: Target Achieved | K148: =H148-F148 -> 43.00 | L148: 16.73% | M148: Successful | N148: 2014-07-02
A149: =1+A148 -> 3 | B149: 2014-07-08 | D149: JK Cement | E149: Buy | F149: 393.00 | G149: - | H149: 468 | I149: 468.00 | J149: Target Achieved | K149: =H149-F149 -> 75.00 | L149: 19.08% | M149: Successful | N149: 2014-08-12
A150: 4 | B150: 2014-08-06 | D150: Finolex Cables | E150: Buy | F150: 205.00 | G150: - | H150: 275 | I150: 250.00 | J150: Target Achieved | K150: 70.00 | L150: 34.15% | M150: Successful | N150: 2014-11-19
A151: 5 | B151: 2014-09-04 | D151: Exide Inds | E151: Buy | F151: 162.00 | G151: - | H151: 190 | I151: 190.00 | J151: Target Achieved | K151: 28.00 | L151: 17.28% | M151: Successful | N151: 2015-01-02
A152: 6 | B152: 2014-09-04 | D152: Deepak Nitrite | E152: Buy | F152: 75.00 | G152: - | H152: 91.5 | I152: 95-100 | J152: Profit of Rs.16.50/- | K152: 16.50 | L152: 22.00% | M152: Successful | N152: 2014-11-11
A153: 7 | B153: 2014-10-01 | D153: Mercks | E153: Buy | F153: 850.00 | G153: - | H153: 982.5 | I153: 1050.00 | J153: Profit of Rs.132.50/- | K153: 132.50 | L153: 15.59% | M153: Successful | N153: 2015-02-04
A154: 8 | B154: 2014-10-01 | D154: Grindwell Norton | E154: Buy | F154: 475.00 | G154: - | H154: 515 | I154: 600.00 | J154: Profit of Rs.40/- | K154: 40.00 | L154: 8.42% | M154: Successful | N154: 2014-10-27
A155: 9 | B155: 2014-10-01 | D155: Snowman Logistics | E155: Buy | F155: 86.00 | G155: - | H155: 99 | I155: 140.00 | J155: Profit of Rs.13.00/- | K155: 13.00 | L155: 15.12% | M155: Successful | N155: 2014-10-27
A156: 10 | B156: 2014-10-14 | D156: Birla Corp | E156: Buy | F156: 496.60 | G156: - | H156: 621 | I156: 580.00 | J156: Target Achieved | K156: 124.40 | L156: 25.05% | M156: Successful | N156: 2016-08-23
A157: 11 | B157: 2014-10-14 | D157: Ultratech Cem | E157: Buy | F157: 2481.90 | G157: - | H157: 2840 | I157: 2870.00 | J157: Profit of Rs.358.10/- | K157: 358.10 | L157: 14.43% | M157: Successful | N157: 2015-01-13
A158: =1+A155 -> 10 | B158: 2014-10-16 | D158: Sintex Inds | E158: Buy | F158: 84.50 | G158: - | H158: 93 | I158: 110.00 | J158: Profit of Rs.8.50/- | K158: 8.50 | L158: 10.06% | M158: Successful | N158: 2014-10-27
A159: =1+A158 -> 11 | B159: 2014-10-16 | D159: HSIL | E159: Buy | F159: 401.00 | G159: - | H159: 428 | I159: 450.00 | J159: Profit of Rs.27.00/- | K159: 27.00 | L159: 6.73% | M159: Successful | N159: 2015-01-16
A160: 12 | B160: 2014-10-16 | D160: Eveready Inds | E160: Buy | F160: 101.00 | G160: - | H160: 112 | I160: 120.00 | J160: Profit of Rs.11.00/- | K160: 11.00 | L160: 10.89% | M160: Successful | N160: 2014-10-27
A161: 13 | B161: 2014-11-11 | D161: Pennar Inds | E161: Buy | F161: 59.00 | G161: - | H161: 76 | I161: 76.00 | J161: Target Achieved | K161: 17.00 | L161: 28.81% | M161: Successful | N161: 2017-10-24
A162: 14 | B162: 2014-11-11 | D162: Snowman Logistics | E162: Buy | F162: 99.00 | G162: - | H162: 120 | I162: 120.00 | J162: Profit of Rs.21/- | K162: 21.00 | L162: 21.21% | M162: Successful | N162: 2014-11-17
A163: 15 | B163: 2014-11-13 | D163: Dharamsi Morarji Chem | E163: Buy | F163: 22.00 | G163: - | H163: 33.55 | I163: 32.00 | J163: Profit of Rs 11.55/- | K163: 11.55 | L163: 52.50% | M163: Successful | N163: 2015-07-03
A164: 16 | B164: 2014-12-03 | D164: Tatachem | E164: Buy | F164: 440.00 | G164: - | H164: 520 | I164: 520.00 | J164: Profit of Rs 80.00/- | K164: 80.00 | L164: 18.18% | M164: Successful | N164: 2015-07-23
A165: 17 | B165: 2014-12-03 | D165: Advanta | E165: Buy | F165: 360.00 | G165: - | H165: 427 | I165: 425.00 | J165: Profit of Rs.67.00/- | K165: 67.00 | L165: 18.61% | M165: Successful | N165: 2015-02-23
A166: 18 | B166: 2015-01-08 | D166: GDL | E166: Buy | F166: 360.00 | G166: - | H166: 455 | I166: 420.00 | J166: Profit of Rs.95.00/- | K166: 95.00 | L166: 26.39% | M166: Successful | N166: 2015-01-20
A167: 19 | B167: 2015-01-08 | D167: NRB Bearing | E167: Buy | F167: 130.00 | H167: 175.5 | I167: 165.00 | J167: Profit of Rs 45.50/- | K167: 45.50 | L167: 35.00% | M167: Successful | N167: 2017-12-19
A168: 20 | B168: 2015-02-05 | D168: GSFC | E168: Accu | F168: 98.00 | H168: 120 | I168: 120.00 | J168: Target Achieved | K168: 22.00 | L168: 22.45% | M168: Successful | N168: 2017-01-18
A169: 21 | B169: 2015-02-05 | D169: Sundrmfast | E169: Accu | F169: 196.00 | H169: 262 | I169: 255.00 | J169: Target Achieved | K169: 66.00 | L169: 33.67% | M169: Successful | N169: 2016-08-17
A170: 22 | B170: 2015-03-04 | D170: GPPL | E170: Accu | F170: 230-240 | I170: 280-285 | J170: Open
A171: 23 | B171: 2015-03-04 | D171: ORIENTCEM | E171: Accu | F171: 185.00 | H171: 224 | I171: 220-225 | J171: Target Achieved | K171: 39.00 | L171: =K171/F171 -> 21.08% | M171: Successful | N171: 2016-10-04
A172: 24 | B172: 2015-03-27 | D172: PFS | E172: Accu | F172: 49-50 | I172: 67.00 | J172: Open
A173: 25 | B173: 2015-03-30 | D173: Walchandnagar Ind Ltd | E173: Accu | F173: 183.50 | H173: 219 | I173: 218.00 | J173: Profit of Rs.35.50/- | K173: 35.50 | L173: =K173/F173 -> 19.35% | M173: Successful | N173: 2015-04-09
A174: 26 | B174: 2015-04-20 | D174: Kalpataru Power Transmission Ltd | E174: Accu | F174: =(227+237)/2 -> 232.00 | H174: 298 | I174: 298.00 | J174: Target Achieved | K174: 66.00 | L174: 28.45% | M174: Successful | N174: 2017-03-29
A175: 27 | B175: 2015-05-04 | D175: Mastek Ltd | E175: Buy | F175: 385.00 | H175: =212.5+331 -> 543.5 | I175: 510.00 | J175: Profit of Rs 158.50/- | K175: 158.50 | L175: 41.17% | M175: Successful | N175: 2015-08-19
A176: 28 | B176: 2015-05-04 | D176: Suprajit Eng | E176: Buy | F176: 115.50 | H176: 146 | I176: 142.00 | J176: Profit of Rs 30.50/- | K176: 30.50 | L176: 26.41% | M176: Successful | N176: 2015-07-17
A177: 29 | B177: 2015-05-27 | D177: TCI | E177: Buy | F177: 237.50 | H177: 279.5 | I177: 278.00 | J177: Target Achieved | K177: 42.00 | L177: 17.68% | M177: Successful | N177: 2015-08-06
A178: 30 | B178: 2015-06-19 | D178: HSIL | E178: Accu | F178: 340.00 | H178: 448 | I178: 448.00 | J178: Target Achieved | K178: 108.00 | L178: 31.76% | M178: Successful | N178: 2017-10-10
A179: 31 | B179: 2015-07-06 | D179: Capital First | E179: Accu | F179: 390.00 | H179: 460 | I179: 460.00 | J179: Target Achieved | K179: 70.00 | L179: 17.95% | M179: Successful | N179: 2016-04-18
A180: 32 | B180: 2015-07-10 | D180: Dolphin OffShore | E180: Accu | F180: 122.5 | H180: 61.00 | I180: 172.00 | J180: Loss of Rs.61.50/- | K180: -61.50 | L180: -50.20% | M180: Unsuccessful | N180: 2018-08-21
A181: 33 | B181: 2015-08-03 | D181: Allcargo logistics | E181: Accu | F181: 297.50 | H181: 350 | I181: 360.00 | J181: Profit of Rs 52.50/- | K181: 52.50 | L181: =K181/F181 -> 17.65% | M181: Successful | N181: 2015-08-16
A182: 34 | B182: 2015-08-03 | D182: Camline Fine | E182: Accu | F182: 115.50 | H182: 149 | I182: 140.00 | J182: Profit of Rs 33.50/- | K182: 33.50 | L182: 29.00% | M182: Successful | N182: 2017-01-05
A183: 35 | B183: 2015-09-04 | D183: TCI | E183: Accu | F183: 226.00 | H183: 292 | I183: 292.00 | J183: Target Achieved | K183: 66.00 | L183: 29.20% | M183: Successful | N183: 2015-10-09
A184: 36 | B184: 2015-09-07 | D184: Kalpataru Power Transmission Ltd | E184: Accu | F184: 232.50 | H184: 312.5 | I184: 310.00 | J184: Target Achieved | K184: 80.00 | L184: 34.41% | M184: Successful | N184: 2017-03-29
A185: 37 | B185: 2015-09-21 | D185: LLOYD ELECTRIC & ENG LTD | E185: Accu | F185: 196.50 | H185: 238 | I185: 238.00 | J185: Target Achieved | K185: 41.50 | L185: 21.12% | M185: Successful | N185: 2015-10-14
A186: 38 | B186: 2015-09-24 | D186: L&T Finance Holding | E186: Accu | F186: 65.00 | H186: 82 | I186: 82.00 | J186: Target Achieved | K186: 17.00 | L186: 26.15% | M186: Successful | N186: 2016-07-27
A187: 39 | B187: 2015-10-14 | D187: KEC International ltd | E187: Accu | F187: 144.00 | H187: 182.5 | I187: 181.00 | J187: Target Achieved | K187: 38.50 | L187: 26.74% | M187: Successful | N187: 2017-03-23
A188: 40 | B188: 2015-10-14 | D188: Gruh Finance | E188: Accu | F188: 264.00 | H188: 311 | I188: 311.00 | J188: Target Achieved | K188: 47.00 | L188: 17.80% | M188: Successful | N188: 2016-08-22
A189: 41 | B189: 2015-11-10 | D189: Pidilitind | E189: Buy | F189: 549.50 | H189: 630 | I189: 630.00 | J189: Target Achieved | K189: 80.50 | L189: 14.65% | M189: Successful | N189: 2016-02-19
A190: 42 | B190: 2015-12-04 | D190: Zensar Technology | E190: Accu | F190: 1027.50 | H190: 1315 | I190: 1250.00 | J190: Target Achieved | K190: =H190-F190 -> 287.50 | L190: 27.98% | M190: Successful | N190: 2018-05-24
A191: 43 | B191: 2015-12-29 | D191: Vinati Organics Ltd | E191: Accu | F191: 465.00 | H191: 540 | I191: 540.00 | J191: Target Achieved | K191: 75.00 | L191: =K191/F191 -> 16.13% | M191: Successful | N191: 2016-06-09
A192: 44 | B192: 2016-01-11 | D192: GSFC | E192: Buy | F192: 81.00 | H192: 110 | I192: 110.00 | J192: Target Achieved | K192: 29.00 | L192: 35.80% | M192: Successful | N192: 2017-01-10
A193: 45 | B193: 2016-01-13 | D193: SSWL | E193: Buy | F193: 417.50 | H193: 547 | I193: 535.00 | J193: Target Achieved | K193: 129.50 | L193: 31.02% | M193: Successful | N193: 2016-07-27
A194: 46 | B194: 2016-02-08 | D194: Persistent System Ltd | E194: Accu | F194: 650.00 | H194: 800 | I194: 800.00 | J194: Target Achieved | K194: 150.00 | L194: 23.08% | M194: Successful | N194: 2018-02-23
A195: 47 | B195: 2016-03-04 | D195: UPL | E195: Accu | F195: 437.50 | H195: 504.5 | I195: 522.00 | J195: Profit of Rs.67/- | K195: 67.00 | L195: 15.31% | M195: Successful | N195: 2016-04-20
A196: 48 | B196: 2016-03-09 | D196: Ashoka Buildcon Ltd | E196: Accu | F196: 189.50 | H196: 218 | I196: 218.00 | J196: Target Achieved | K196: 28.50 | L196: 15.04% | M196: Successful | N196: 2017-10-26
A197: 49 | B197: 2016-04-11 | D197: PTC INDIA FIN SERV LTD | E197: Accu | F197: 36-37 | I197: 60.00 | J197: Open
A198: 50 | B198: 2016-04-12 | D198: CAMLINFINE $ | E198: Accu | F198: 93.00 | H198: 149 | I198: 140.00 | J198: Profit of Rs 56/- | K198: 56.00 | L198: =K198/F198 -> 60.22% | M198: Successful | N198: 2017-01-05
A199: 51 | B199: 2016-04-12 | D199: Greaves Cotton Ltd. | E199: Accu | F199: 130.00 | H199: 150 | I199: 150-155 | J199: Target Achieved | K199: 20.00 | L199: 15.38% | M199: Successful | N199: 2016-07-13
A200: 52 | B200: 2016-04-13 | D200: DHFL | E200: Accu | F200: 196.00 | H200: 299 | I200: 299.00 | J200: Target Achieved | K200: 103.00 | L200: 52.55% | M200: Successful | N200: 2016-09-07
A201: 53 | B201: 2016-04-13 | D201: Magma | E201: Accu | F201: 88.00 | H201: 103 | I201: 103.00 | J201: Target Achieved | K201: 15.00 | L201: 17.05% | M201: Successful | N201: 2016-06-09
A202: 54 | B202: 2016-05-02 | D202: KEC International ltd $ | E202: Accu | F202: 127.50 | H202: 148 | I202: 148-150 | J202: Target Achieved | K202: 20.50 | L202: 16.08% | M202: Successful | N202: 2016-07-13
A203: 55 | B203: 2016-05-03 | D203: Mindtree | E203: Accu | F203: 675.00 | H203: 815 | I203: 790-800 | J203: Target Achieved | K203: 140.00 | L203: 20.74% | M203: Successful | N203: 2018-02-23
A204: 56 | B204: 2016-06-01 | D204: Atulauto | E204: Accu | F204: 495-505 | I204: 565-570 | J204: Open
A205: 57 | B205: 2016-06-06 | D205: TRITURBINE | E205: Accu | F205: 110.00 | H205: 126.5 | I205: 125.00 | J205: Profit of Rs.16.50/- | K205: 16.50 | L205: =K205/F205 -> 15.00% | M205: Successful | N205: 2016-07-01
A206: 58 | B206: 2016-06-17 | D206: Pennar Industries Ltd | E206: Accu | F206: 44.00 | H206: 69.5 | I206: 69.50 | J206: Profit of Rs.25.50/- | K206: 25.50 | L206: =K206/F206 -> 57.95% | M206: Successful | N206: 2017-08-30
A207: 59 | B207: 2016-06-28 | D207: EVEREADY INDS. IND. LTD. | E207: Accu | F207: 262.50 | H207: 340 | I207: 333.00 | J207: Profit of Rs.77.50/- | K207: 77.50 | L207: =K207/F207 -> 29.52% | M207: Successful | N207: 2017-10-09
A208: 60 | B208: 2016-06-28 | D208: FIEM INDUSTRIES LIMITED | E208: Accu | F208: 840.00 | H208: 1230 | I208: 1230.00 | J208: Target Achieved | K208: 390.00 | L208: =K208/F208 -> 46.43% | M208: Successful | N208: 2016-10-06
A209: 61 | B209: 2016-07-05 | D209: Bajaj Corp Ltd | E209: Accu | F209: 395 | H209: 468.50 | I209: 510.00 | J209: Part profit of Rs.73.50/- | K209: 73.50 | L209: =K209/F209 -> 19% | M209: Successful | N209: 2017-08-30
A210: 62 | B210: 2016-08-02 | D210: GPPL $ | E210: Buy | F210: 167-172 | I210: 198-200 | J210: Open
A211: 63 | B211: 2016-08-04 | D211: WONDERLA HOLIDAYS LTD | E211: Accu | F211: 395-405 | I211: 475.00 | J211: Open
A212: 64 | B212: 2016-08-11 | D212: CAMLINFINE | E212: Accu | F212: 86.50 | H212: 130 | I212: 130.00 | J212: Profit of Rs.43.50/- | K212: =H212-F212 -> 43.50 | L212: =K212/F212 -> 50.29% | M212: Successful | N212: 2017-12-22
A213: 65 | B213: 2016-08-18 | D213: GRANULES | E213: Accu | F213: 133.5 | H213: 126.50 | I213: 178.00 | J213: Exit | K213: -7.00 | L213: -5.24% | M213: Unsuccessful | N213: 2016-09-02
A214: 66 | B214: 2016-08-31 | D214: VA TECH WABAG | E214: Accu | F214: 560.00 | H214: 725 | I214: 725.00 | J214: Target Achieved | K214: 165.00 | L214: 29.46% | M214: Successful | N214: 2016-03-27
A215: 67 | B215: 2016-09-01 | D215: SKIPPER LIMITED | E215: Accu | F215: 160.50 | H215: 210 | I215: 210.00 | J215: Target Achieved | K215: 49.50 | L215: 30.84% | M215: Successful | N215: 2017-05-16
A216: 68 | B216: 2016-10-03 | D216: IFB Industries | E216: Accu | F216: 430.00 | H216: 596 | I216: 575.00 | J216: Profit of Rs.166/- | K216: 166.00 | L216: 38.60% | M216: Successful | N216: 2017-02-03
A217: 69 | B217: 2016-10-14 | D217: ASIANTILES | E217: Accu | F217: 280.00 | H217: 345 | I217: 345.00 | J217: Target Achieved | K217: 65.00 | L217: 23.21% | M217: Successful | N217: 2017-03-20
A218: 70 | B218: 2016-10-14 | D218: DEEPIND | E218: Accu | F218: 245.00 | H218: 325.5 | I218: 330.00 | J218: Profit of Rs.80.5/- | K218: 80.50 | L218: 32.86% | M218: Successful | N218: 2017-02-03
A219: 71 | B219: 2016-10-17 | D219: DCBBANK | E219: Accu | F219: 125.00 | H219: 160 | I219: 160.00 | J219: Target Achieved | K219: 35.00 | L219: 28.00% | M219: Successful | N219: 2017-03-09
A220: 72 | B220: 2016-10-17 | D220: ORIENTREF | E220: Accu | F220: 114.00 | H220: 145 | I220: 145.00 | J220: Target Achieved | K220: 31.00 | L220: =K220/F220 -> 27.19% | M220: Successful | N220: 2017-05-04
A221: 73 | B221: 2016-10-17 | D221: GANECOS | E221: Accu | F221: 212.00 | H221: 280 | I221: 276.00 | J221: Profit of Rs.68/- | K221: 68.00 | L221: =K221/F221 -> 32.08% | M221: Successful | N221: 2017-05-03
A222: 74 | B222: 2016-11-04 | D222: NBCC | E222: Accu | F222: 155.00 | H222: 210 | I222: 210.00 | J222: Profit of Rs.55/- | K222: 55.00 | L222: =K222/F222 -> 35.48% | M222: Successful | N222: 2017-07-28
A223: 75 | B223: 2016-12-06 | D223: PRECAM | E223: Accu | F223: 150.5 | H223: 72.50 | I223: 174.00 | J223: Loss of Rs.78/- | K223: -78.00 | L223: =K223/F223 -> -51.83% | M223: Unsuccessful | N223: 2018-08-21
A224: 76 | B224: 2016-12-08 | D224: INFRATEL | E224: Accu | F224: 380.00 | H224: 478 | I224: 468.00 | J224: Target Achieved | K224: 98.00 | L224: =K224/F224 -> 25.79% | M224: Successful | N224: 2017-10-17
A225: 77 | B225: 2016-12-30 | D225: GODREJPROP | E225: Accu | F225: 305.00 | H225: 375 | I225: 375.00 | J225: Target Achieved | K225: 70.00 | L225: 22.95% | M225: Successful | N225: 2017-02-02
A226: 78 | B226: 2017-01-04 | D226: DEEPAKNTR | E226: Accu | F226: 99.50 | H226: 158 | I226: 158.00 | J226: Target Achieved | K226: 58.50 | L226: 58.79% | M226: Successful | N226: 2017-06-12
A227: 79 | B227: 2017-02-20 | D227: SUBROS | E227: Accu | F227: 202.50 | H227: 234 | I227: 234.00 | J227: Target Achieved | K227: 31.50 | L227: 15.56% | M227: Successful | N227: 2017-04-11
A228: 80 | B228: 2017-02-20 | D228: RECLTD | E228: Accu | F228: 140.50 | H228: 220 | I228: 220.00 | J228: Target Achieved | K228: 79.50 | L228: 56.58% | M228: Successful | N228: 2017-05-09
A229: 81 | B229: 2017-03-24 | D229: VRLLOG | E229: Accu | F229: 300.50 | H229: 417.5 | I229: 420.00 | J229: Profit of Rs.117/- | K229: 117.00 | L229: 38.94% | M229: Successful | N229: 2017-12-01
A230: 82 | B230: 2017-03-24 | D230: FIEMIND | E230: Accu | F230: 850.00 | H230: 1042.5 | I230: 1023.00 | J230: Profit of Rs 192.50/- | K230: 192.50 | L230: 22.65% | M230: Successful | N230: 2017-04-05
A231: 83 | B231: 2017-04-05 | D231: RATNAMANI | E231: Accu | F231: 785.00 | H231: 930 | I231: 920.00 | J231: Profit of Rs.145/- | K231: 145.00 | L231: 18.47% | M231: Successful | N231: 2017-08-29
A232: 84 | B232: 2017-04-06 | D232: ZEEMEDIA | E232: Accu | F232: 39-41 | I232: 60.00 | J232: Open
A233: 85 | B233: 2017-04-12 | D233: DABUR | E233: Accu | F233: 289.50 | H233: 354 | I233: 360.00 | J233: Profit of Rs.64.5/- | K233: 64.50 | L233: =K233/F233 -> 22.28% | M233: Successful | N233: 2017-11-01
A234: 86 | B234: 2017-04-20 | D234: KPRMILL | E234: Accu | F234: 700.00 | H234: 840 | I234: 840.00 | J234: Profit of Rs.140/- | K234: 140.00 | L234: =K234/F234 -> 20.00% | M234: Successful | N234: 2017-06-07
A235: 87 | B235: 2017-05-22 | D235: GREAVESCOT | E235: Accu | F235: 153-158 | I235: 190.00 | J235: Open
A236: 88 | B236: 2017-06-01 | D236: ESSELPACK | E236: Accu | F236: 260 | H236: 311.00 | I236: 340.00 | J236: Part profit of Rs.51/- | K236: =H236-F236 -> 51.00 | L236: =K236/F236 -> 20% | M236: Successful | N236: 2017-11-17
A237: 89 | B237: 2017-06-15 | D237: KEI | E237: Accu | F237: 214.50 | H237: 262 | I237: 262.00 | J237: Profit of Rs.47.5/- | K237: =H237-F237 -> 47.50 | L237: 22.14% | M237: Successful | N237: 2017-08-30
A238: 90 | B238: 2017-07-17 | D238: MAYURUNIQ | E238: Accu | F238: 370.00 | H238: 447.5 | I238: 450.00 | J238: Target Achieved | K238: 77.50 | L238: 20.95% | M238: Successful | N238: 2017-10-27
A239: 91 | B239: 2017-07-27 | D239: RAMCOCEM | E239: Accu | F239: 657.50 | H239: 825 | I239: 820.00 | J239: Target Achieved | K239: 167.50 | L239: 25.48% | M239: Successful | N239: 2017-12-21
A240: 92 | B240: 2017-08-17 | D240: FINPIPE | E240: Accu | F240: 605.00 | H240: 750 | I240: 750.00 | J240: Profit of Rs.145/- | K240: 145.00 | L240: 23.97% | M240: Successful | N240: 2017-10-19
A241: 93 | B241: 2017-09-01 | D241: SHK | E241: Accu | F241: 255 | H241: 307.50 | I241: 320.00 | J241: Part profit of Rs.52.5/- | K241: 52.50 | L241: 21% | M241: Successful | N241: 2017-12-29
A242: 94 | B242: 2017-09-19 | D242: SKIPPER | E242: Accu | F242: 215.00 | H242: 258 | I242: 258.00 | J242: Target Achieved | K242: 43.00 | L242: 20.00% | M242: Successful | N242: 2017-11-01
A243: 95 | B243: 2017-09-20 | D243: CAMLINFINE | E243: Accu | F243: 75.00 | H243: 90 | I243: 90.00 | J243: Profit of Rs.15.00/- | K243: 15.00 | L243: 20.00% | M243: Successful | N243: 2017-10-11
A244: 96 | B244: 2017-10-03 | D244: GNA | E244: Accu | F244: 315.00 | H244: 392 | I244: 384.00 | J244: Profit of Rs.77/- | K244: 77.00 | L244: 24.44% | M244: Successful | N244: 2017-10-09
A245: 97 | B245: 2017-10-05 | D245: NOCIL | E245: Accu | F245: 145.00 | H245: 179 | I245: 180.00 | J245: Profit of Rs.34/- | K245: 34.00 | L245: 23.45% | M245: Successful | N245: 2017-10-17
A246: 98 | B246: 2017-10-06 | D246: CENTURYPLY | E246: Accu | F246: 256.00 | H246: 323 | I246: 320.00 | J246: Target Achieved | K246: 67.00 | L246: 26.17% | M246: Successful | N246: 2017-11-28
A247: 99 | B247: 2017-10-09 | D247: RECLTD | E247: Accu | F247: 152.5 | H247: 183.50 | I247: 210.00 | J247: Part Profit of Rs.31/- | K247: 31.00 | L247: 20% | M247: Successful | N247: 2017-11-03
A248: 100 | B248: 2017-10-09 | D248: EIHOTEL | E248: Accu | F248: 137.50 | H248: 184 | I248: 183.00 | J248: Profit of Rs.46.5/- | K248: 46.50 | L248: 33.82% | M248: Successful | N248: 2018-01-08
A249: 101 | B249: 2017-10-10 | D249: BOROSIL | E249: Accu | F249: 895.00 | H249: 1122.5 | I249: 1078.00 | J249: Profit of Rs.227.5/- | K249: 227.50 | L249: 25.42% | M249: Successful | N249: 2018-01-17
A250: 102 | B250: 2017-10-10 | D250: NRBBEARING | E250: Accu | F250: 125.50 | H250: 158 | I250: 155.00 | J250: Profit of Rs.32.5/- | K250: 32.50 | L250: 25.90% | M250: Successful | N250: 2017-11-28
A251: 103 | B251: 2017-10-12 | D251: CYIENT | E251: Accu | F251: 525.00 | H251: 629 | I251: 629.00 | J251: Target Achieved | K251: 104.00 | L251: 19.81% | M251: Successful | N251: 2018-01-19
A252: 104 | B252: 2017-11-07 | D252: HATSUN | E252: Accu | F252: 740.00 | H252: 892.5 | I252: 900.00 | J252: Profit of Rs.152.5/- | K252: 152.50 | L252: 20.61% | M252: Successful | N252: 2017-11-13
A253: 105 | B253: 2017-12-04 | D253: SANGHIIND | E253: Accu | F253: 118.50 | H253: 143.5 | I253: 145.00 | J253: Profit of Rs.25/- | K253: 25.00 | L253: 21.10% | M253: Successful | N253: 2017-12-28
A254: 106 | B254: 2017-12-05 | D254: ALLCARGO | E254: Accu | F254: 177.5 | H254: 215.00 | I254: 230.00 | J254: Part Profit of Rs.37.5/- | K254: 37.50 | L254: 21% | M254: Successful | N254: 2017-12-27
A255: 107 | B255: 2017-12-21 | D255: KAJARIACER | E255: Accu | F255: 710-720 | I255: 872.00 | J255: Open
A256: 108 | B256: 2017-12-29 | D256: GNA | E256: Accu | F256: 435.00 | H256: 542.5 | I256: 539.00 | J256: Target Achieved | K256: =H256-F256 -> 107.50 | L256: =K256/F256 -> 24.71% | M256: Successful | N256: 2018-04-16
A257: 109 | B257: 2017-12-29 | D257: ZENSARTECH | E257: Accu | F257: 885.00 | H257: 1090 | I257: 1084.00 | J257: Target Achieved | K257: 205.00 | L257: =K257/F257 -> 23.16% | M257: Successful | N257: 2018-04-23
A258: 110 | B258: 2018-02-07 | D258: GREAVESCOT | E258: Accu | F258: 130-132 | I258: 190.00 | J258: Open
A259: 111 | B259: 2018-02-27 | D259: MOLDTKPAC | E259: Accu | F259: 320-330 | I259: 398.00 | J259: Open
A260: 112 | B260: 2018-03-05 | D260: LICHSGFIN | E260: Accu | F260: 505-515 | I260: 672.00 | J260: Open
A261: 113 | B261: 2018-04-02 | D261: EVERESTIND | E261: Accu | F261: 492.5 | H261: 589.00 | I261: 613.00 | J261: Part Profit of Rs.37.5/- | K261: =H261-F261 -> 96.50 | L261: =K261/F261 -> 20% | M261: Successful | N261: 2018-08-21
A262: 114 | B262: 2018-04-04 | D262: GPPL | E262: Accu | F262: 140-143 | I262: 180.00 | J262: Open
A263: 115 | B263: 2018-04-19 | D263: MANPASAND | E263: Accu | F263: 430 | H263: 220.00 | I263: 537.00 | J263: Loss of Rs.210/- | K263: =H263-F263 -> -210.00 | L263: =K263/F263 -> -48.84% | M263: Unsuccessful | N263: 2018-06-01
A264: 116 | B264: 2018-04-30 | D264: HEIDELBERG | E264: Accu | F264: 154-158 | I264: 196.00 | J264: Open
A265: 117 | B265: 2018-05-17 | D265: PHILIPCARB | E265: Accu | F265: 230-240 | I265: 348.00 | J265: Open
A266: 118 | B266: 2018-06-07 | D266: KEC | E266: Accu | F266: 340-345 | I266: 439.00 | J266: Open
A267: 119 | B267: 2018-07-04 | D267: ASHOKLEY | E267: Accu | F267: 125-130 | I267: 170.00 | J267: Open
A268: 120 | B268: 2018-07-13 | D268: FCONSUMER | E268: Accu | F268: 46-47 | I268: 59.00 | J268: Open
A269: 121 | B269: 2018-07-25 | D269: ZEEMEDIA | E269: Accu | F269: 27-28 | I269: 44.00 | J269: Open
A270: 122 | B270: 2018-08-06 | D270: GABRIEL | E270: Accu | F270: 148-152 | I270: 182.00 | J270: Open
A271: 123 | B271: 2018-08-23 | D271: INDIANHUME | E271: Accu | F271: 285.00 | H271: 355 | I271: 364.00 | J271: Profit of Rs.70/- | K271: =H271-F271 -> 70.00 | L271: =K271/F271 -> 24.56% | M271: Successful | N271: 2018-12-21
A272: 124 | B272: 2018-08-29 | D272: GRINDWELL | E272: Accu | F272: 520-530 | I272: 635.00 | J272: Open
A273: 125 | B273: 2018-10-22 | D273: FINPIPE | E273: Accu | F273: 475.00 | H273: 574 | I273: 570.00 | J273: Target Achieved | K273: =H273-F273 -> 99.00 | L273: =K273/F273 -> 20.84% | M273: Successful | N273: 2018-10-30
A274: 126 | B274: 2018-10-23 | D274: JKPAPER | E274: Accu | F274: 158-162 | I274: 191.00 | J274: Open
A275: 127 | B275: 2018-10-24 | D275: GULFOILLUB | E275: Accu | F275: 707.5 | H275: 847.50 | I275: 872.00 | J275: Part Profit of Rs.140/- | K275: =H275-F275 -> 140.00 | L275: =K275/F275 -> 20% | M275: Successful | N275: 2018-12-24
A276: 128 | B276: 2018-10-25 | D276: GODREJCP | E276: Accu | F276: 707.5 | H276: 850.00 | I276: 890.00 | J276: Part Profit of Rs.142.5/- | K276: =H276-F276 -> 142.50 | L276: =K276/F276 -> 20% | M276: Successful | N276: 2018-12-19
A277: 129 | B277: 2018-10-25 | D277: DBCORP | E277: Accu | F277: 161-167 | I277: 209.00 | J277: Open
A278: 130 | B278: 2018-10-26 | D278: RITES | E278: Accu | F278: 240.00 | H278: 297 | I278: 297.00 | J278: Target Achieved | K278: =H278-F278 -> 57.00 | L278: =K278/F278 -> 23.75% | M278: Successful | N278: 2018-11-13
A279: 131 | B279: 2018-12-05 | D279: CCL | E279: Accu | F279: 260-270 | I279: 321.00 | J279: Open
A280: 132 | B280: 2018-12-05 | D280: VARROC | E280: Accu | F280: 710-720 | I280: 840.00 | J280: Open
A281: 133 | B281: 2018-12-05 | D281: BRIGADE | E281: Accu | F281: 202.5 | H281: 242.50 | I281: 252.00 | J281: Part Profit of Rs.40/- | K281: =H281-F281 -> 40.00 | L281: =K281/F281 -> 20% | M281: Successful | N281: 2018-12-26
A282: 134 | B282: 2018-12-31 | D282: JKCEMENT | E282: Accu | F282: 705-715 | I282: 866.00 | J282: Open
F288: Reinitiated $
A290: Disclaimer:
A291: This document has been prepared by the Retail Research Desk of Asit C Mehta
A292: Investment Intermediates Ltd. and is meant for use of the recipient only
A293: and is not for circulation. This document is not to be reported or
A294: copied or made available to others. It should not be considered to be
A295: taken as an offer to sell or a solicitation to buy any security. The
A296: information contained herein is from sources believed reliable. We do
A297: not represent that it is accurate or complete and it should not be
A298: relied upon as such. We may from time to time have positions in and buy
... 1 more rows

Sheet Sheet2 (hidden)
A1: SYMBOL | B1: SERIES | C1: OPEN | D1: HIGH | E1: LOW | F1: CLOSE | G1: LAST | H1: PREVCLOSE | I1: TOTTRDQTY | J1: TOTTRDVAL | K1: TIMESTAMP | L1: TOTALTRADES | M1: ISIN | N1: ISIN
A2: 20MICRONS | B2: EQ | C2: 44.05 | D2: 44.1 | E2: 43.1 | F2: 43.45 | G2: 43.4 | H2: 44.05 | I2: 15741 | J2: 684474.85 | K2: 2019-01-03 | L2: 368 | M2: INE144J01027
A3: 21STCENMGM | B3: EQ | C3: 23.5 | D3: 23.5 | E3: 23.5 | F3: 23.5 | G3: 23.5 | H3: 23.8 | I3: 49 | J3: 1151.5 | K3: 2019-01-03 | L3: 3 | M3: INE253B01015
A4: 3IINFOTECH | B4: EQ | C4: 3.7 | D4: 3.7 | E4: 3.6 | F4: 3.6 | G4: 3.6 | H4: 3.65 | I4: 681736 | J4: 2479912.6 | K4: 2019-01-03 | L4: 373 | M4: INE748C01020
A5: 3MINDIA | B5: EQ | C5: 20160 | D5: 20269.95 | E5: 19801.6 | F5: 19990.25 | G5: 19950 | H5: 19985.75 | I5: 2402 | J5: 48003736.4 | K5: 2019-01-03 | L5: 968 | M5: INE470A01017
A6: 3PLAND | B6: EQ | C6: 11.65 | D6: 12.8 | E6: 11.6 | F6: 11.6 | G6: 11.6 | H6: 12 | I6: 648 | J6: 7999.45 | K6: 2019-01-03 | L6: 6 | M6: INE105C01023
A7: 5PAISA | B7: EQ | C7: 280 | D7: 284.25 | E7: 273.75 | F7: 284.25 | G7: 284.25 | H7: 270.75 | I7: 15749 | J7: 4452756.35 | K7: 2019-01-03 | L7: 653 | M7: INE618L01018
A8: 63MOONS | B8: EQ | C8: 97.4 | D8: 98.6 | E8: 95.6 | F8: 96.45 | G8: 96.3 | H8: 97.2 | I8: 186566 | J8: 18112778.45 | K8: 2019-01-03 | L8: 4295 | M8: INE111B01023
A9: 8KMILES | B9: EQ | C9: 138 | D9: 139.9 | E9: 132.8 | F9: 133.9 | G9: 133 | H9: 138.8 | I9: 185230 | J9: 25248433.85 | K9: 2019-01-03 | L9: 3093 | M9: INE650K01021
A10: A2ZINFRA | B10: EQ | C10: 12.65 | D10: 13.1 | E10: 12.65 | F10: 13.05 | G10: 13.05 | H10: 13 | I10: 174034 | J10: 2260240.75 | K10: 2019-01-03 | L10: 232 | M10: INE619I01012
A11: AARTIDRUGS | B11: EQ | C11: 572.95 | D11: 578.5 | E11: 571.6 | F11: 575.2 | G11: 575 | H11: 575.1 | I11: 3358 | J11: 1930200.95 | K11: 2019-01-03 | L11: 161 | M11: INE767A01016
A12: AARTIIND | B12: EQ | C12: 1444.1 | D12: 1449.4 | E12: 1422 | F12: 1429.15 | G12: 1430 | H12: 1450.7 | I12: 20952 | J12: 29983915.5 | K12: 2019-01-03 | L12: 3527 | M12: INE769A01020
A13: AARVEEDEN | B13: EQ | C13: 26.55 | D13: 28.8 | E13: 26.1 | F13: 28 | G13: 28.4 | H13: 27.05 | I13: 22474 | J13: 613365.9 | K13: 2019-01-03 | L13: 143 | M13: INE273D01019
A14: AAVAS | B14: EQ | C14: 830.2 | D14: 845.95 | E14: 830.2 | F14: 837.65 | G14: 838 | H14: 840.65 | I14: 5728 | J14: 4796619.75 | K14: 2019-01-03 | L14: 626 | M14: INE216P01012
A15: ABAN | B15: EQ | C15: 74.5 | D15: 75 | E15: 73.1 | F15: 73.5 | G15: 73.3 | H15: 74.1 | I15: 378438 | J15: 27914521.95 | K15: 2019-01-03 | L15: 4519 | M15: INE421A01028
A16: ABB | B16: EQ | C16: 1318.9 | D16: 1330 | E16: 1302.2 | F16: 1308.95 | G16: 1308.9 | H16: 1319.25 | I16: 51343 | J16: 67859534.65 | K16: 2019-01-03 | L16: 4531 | M16: INE117A01022
A17: ABBOTINDIA | B17: EQ | C17: 7520.3 | D17: 7574 | E17: 7430 | F17: 7471.95 | G17: 7470 | H17: 7527.05 | I17: 1739 | J17: 13023432.55 | K17: 2019-01-03 | L17: 630 | M17: INE358A01014
A18: ABCAPITAL | B18: EQ | C18: 99.45 | D18: 101 | E18: 97.3 | F18: 98.25 | G18: 98.2 | H18: 99.25 | I18: 5029127 | J18: 498654896.6 | K18: 2019-01-03 | L18: 15600 | M18: INE674K01013
A19: ABFRL | B19: EQ | C19: 195.05 | D19: 199.8 | E19: 194.05 | F19: 197.75 | G19: 197.6 | H19: 195.55 | I19: 637477 | J19: 126174994.2 | K19: 2019-01-03 | L19: 16695 | M19: INE647O01011
A20: ABMINTLTD | B20: BE | C20: 16.45 | D20: 16.45 | E20: 16.45 | F20: 16.45 | G20: 16.45 | H20: 16.45 | I20: 218 | J20: 3586.1 | K20: 2019-01-03 | L20: 3 | M20: INE251C01017
A21: ABSLNN50ET | B21: EQ | C21: 298 | D21: 298 | E21: 280.01 | F21: 297.79 | G21: 297.8 | H21: 280 | I21: 144 | J21: 42714.37 | K21: 2019-01-03 | L21: 18 | M21: INF209KB1B87
A22: ACC | B22: EQ | C22: 1483.95 | D22: 1492.7 | E22: 1445.4 | F22: 1452.25 | G22: 1446 | H22: 1483.95 | I22: 451970 | J22: 664701728.4 | K22: 2019-01-03 | L22: 16346 | M22: INE012A01025
A23: ACCELYA | B23: EQ | C23: 951.05 | D23: 951.9 | E23: 945 | F23: 948.25 | G23: 950 | H23: 949.4 | I23: 698 | J23: 661822.3 | K23: 2019-01-03 | L23: 106 | M23: INE793A01012
A24: ACE | B24: EQ | C24: 97.7 | D24: 99.9 | E24: 96.7 | F24: 97.35 | G24: 97.9 | H24: 97.4 | I24: 225601 | J24: 22199774.45 | K24: 2019-01-03 | L24: 3404 | M24: INE731H01025
A25: ADANIENT | B25: EQ | C25: 154.9 | D25: 156.1 | E25: 150.3 | F25: 152.5 | G25: 152 | H25: 154.85 | I25: 2758876 | J25: 422705192.5 | K25: 2019-01-03 | L25: 14426 | M25: INE423A01024
A26: ADANIGAS | B26: EQ | C26: 102.3 | D26: 103.2 | E26: 100.75 | F26: 100.85 | G26: 100.75 | H26: 100.45 | I26: 560741 | J26: 57011745.6 | K26: 2019-01-03 | L26: 4988 | M26: INE399L01023
A27: ADANIGREEN | B27: EQ | C27: 41.5 | D27: 42.15 | E27: 40.75 | F27: 40.95 | G27: 40.75 | H27: 41.15 | I27: 211035 | J27: 8695930 | K27: 2019-01-03 | L27: 1326 | M27: INE364U01010
A28: ADANIPORTS | B28: EQ | C28: 382.4 | D28: 385.3 | E28: 376.6 | F28: 378.1 | G28: 376.95 | H28: 381.3 | I28: 1902063 | J28: 723452495.9 | K28: 2019-01-03 | L28: 37419 | M28: INE742F01042
A29: ADANIPOWER | B29: EQ | C29: 50.6 | D29: 50.85 | E29: 48.8 | F29: 50.35 | G29: 50.05 | H29: 50.55 | I29: 7113733 | J29: 356987962.4 | K29: 2019-01-03 | L29: 11731 | M29: INE814H01011
A30: ADANITRANS | B30: EQ | C30: 199.5 | D30: 202.2 | E30: 199 | F30: 201.15 | G30: 201.45 | H30: 200.55 | I30: 61027 | J30: 12284063.2 | K30: 2019-01-03 | L30: 2473 | M30: INE931S01010
A31: ADFFOODS | B31: EQ | C31: 268 | D31: 271.9 | E31: 266.1 | F31: 268 | G31: 267.5 | H31: 269.55 | I31: 31430 | J31: 8454355.05 | K31: 2019-01-03 | L31: 2244 | M31: INE982B01019
A32: ADHUNIK | B32: EQ | C32: 2.15 | D32: 2.2 | E32: 2.1 | F32: 2.15 | G32: 2.15 | H32: 2.15 | I32: 28857 | J32: 61982.6 | K32: 2019-01-03 | L32: 39 | M32: INE400H01019
A33: ADHUNIKIND | B33: EQ | C33: 45.75 | D33: 48.5 | E33: 45 | F33: 48.1 | G33: 48.45 | H33: 45.2 | I33: 50269 | J33: 2380940.65 | K33: 2019-01-03 | L33: 463 | M33: INE452L01012
A34: ADLABS | B34: EQ | C34: 11.35 | D34: 11.35 | E34: 10.95 | F34: 11 | G34: 11 | H34: 11.05 | I34: 59692 | J34: 659733.7 | K34: 2019-01-03 | L34: 181 | M34: INE172N01012
A35: ADORWELD | B35: EQ | C35: 371.7 | D35: 375.1 | E35: 367 | F35: 367.95 | G35: 367 | H35: 373.75 | I35: 2853 | J35: 1056509.7 | K35: 2019-01-03 | L35: 205 | M35: INE045A01017
A36: ADROITINFO | B36: EQ | C36: 19.25 | D36: 20.25 | E36: 18.55 | F36: 18.95 | G36: 18.7 | H36: 18.95 | I36: 9531 | J36: 185350.05 | K36: 2019-01-03 | L36: 46 | M36: INE737B01033
A37: ADSL | B37: EQ | C37: 14.15 | D37: 14.5 | E37: 14.15 | F37: 14.45 | G37: 14.3 | H37: 14.4 | I37: 3149 | J37: 45135.05 | K37: 2019-01-03 | L37: 35 | M37: INE102I01027
A38: ADVANIHOTR | B38: EQ | C38: 63.05 | D38: 63.6 | E38: 62.15 | F38: 63 | G38: 63 | H38: 64 | I38: 5675 | J38: 357587.55 | K38: 2019-01-03 | L38: 135 | M38: INE199C01026
A39: ADVENZYMES | B39: EQ | C39: 176 | D39: 176.65 | E39: 173.1 | F39: 173.55 | G39: 173.9 | H39: 175 | I39: 26525 | J39: 4633228.55 | K39: 2019-01-03 | L39: 919 | M39: INE837H01020
A40: AEGISCHEM | B40: EQ | C40: 204.15 | D40: 207.7 | E40: 202 | F40: 206.85 | G40: 205 | H40: 203.95 | I40: 92047 | J40: 18920405.85 | K40: 2019-01-03 | L40: 4104 | M40: INE208C01025
A41: AGARIND | B41: EQ | C41: 193.95 | D41: 193.95 | E41: 182 | F41: 186.65 | G41: 192.8 | H41: 188.7 | I41: 1058 | J41: 197327.25 | K41: 2019-01-03 | L41: 90 | M41: INE204E01012
A42: AGCNET | B42: EQ | C42: 73.05 | D42: 88 | E42: 73.05 | F42: 84.8 | G42: 86 | H42: 73.75 | I42: 43667 | J42: 3692843.75 | K42: 2019-01-03 | L42: 467 | M42: INE676A01019
A43: AGLSL | B43: EQ | C43: 64.05 | D43: 66.55 | E43: 63.4 | F43: 65 | G43: 65 | H43: 65.9 | I43: 4815 | J43: 312412.25 | K43: 2019-01-03 | L43: 72 | M43: INE517U01013
A44: AGRITECH | B44: BE | C44: 60 | D44: 60.95 | E44: 57.9 | F44: 57.9 | G44: 57.9 | H44: 60.9 | I44: 21537 | J44: 1262269.6 | K44: 2019-01-03 | L44: 150 | M44: INE449G01018
A45: AHLEAST | B45: EQ | C45: 249.55 | D45: 249.55 | E45: 239.95 | F45: 240.1 | G45: 242 | H45: 244.65 | I45: 4722 | J45: 1138634.35 | K45: 2019-01-03 | L45: 194 | M45: INE926K01017
A46: AHLUCONT | B46: EQ | C46: 324.15 | D46: 326 | E46: 321.8 | F46: 323.2 | G46: 323 | H46: 324.25 | I46: 5490 | J46: 1778087.85 | K46: 2019-01-03 | L46: 297 | M46: INE758C01029
A47: AHLWEST | B47: EQ | C47: 296.25 | D47: 309.95 | E47: 291.75 | F47: 294.05 | G47: 294.05 | H47: 296.2 | I47: 220 | J47: 66484.8 | K47: 2019-01-03 | L47: 25 | M47: INE915K01010
A48: AIAENG | B48: EQ | C48: 1639.5 | D48: 1698.95 | E48: 1639.5 | F48: 1677.6 | G48: 1691.65 | H48: 1652.55 | I48: 24721 | J48: 41336300.7 | K48: 2019-01-03 | L48: 4651 | M48: INE212H01026
A49: AIFL | B49: EQ | C49: 27.8 | D49: 27.8 | E49: 25.45 | F49: 26.2 | G49: 26.2 | H49: 26.75 | I49: 659303 | J49: 17312970.15 | K49: 2019-01-03 | L49: 1950 | M49: INE428O01016
A50: AIONJSW | B50: EQ | C50: 37.25 | D50: 40.25 | E50: 37.25 | F50: 38.9 | G50: 38.8 | H50: 39.85 | I50: 25852 | J50: 1014363.1 | K50: 2019-01-03 | L50: 194 | M50: INE743C01021
A51: AJANTPHARM | B51: EQ | C51: 1163 | D51: 1174.45 | E51: 1146 | F51: 1150.9 | G51: 1148.5 | H51: 1164.35 | I51: 129568 | J51: 150216510.3 | K51: 2019-01-03 | L51: 5949 | M51: INE031B01049
A52: AJMERA | B52: EQ | C52: 168.25 | D52: 172 | E52: 165.5 | F52: 166.45 | G52: 167 | H52: 167.95 | I52: 34975 | J52: 5862567.7 | K52: 2019-01-03 | L52: 1313 | M52: INE298G01027
A53: AKSHARCHEM | B53: EQ | C53: 446 | D53: 454.9 | E53: 443.45 | F53: 451.95 | G53: 452 | H53: 441 | I53: 11393 | J53: 5140332.65 | K53: 2019-01-03 | L53: 2705 | M53: INE542B01011
A54: AKSHOPTFBR | B54: EQ | C54: 25.5 | D54: 25.7 | E54: 24.75 | F54: 24.9 | G54: 24.9 | H54: 25.45 | I54: 511840 | J54: 12932831.6 | K54: 2019-01-03 | L54: 2391 | M54: INE523B01011
A55: AKZOINDIA | B55: EQ | C55: 1769 | D55: 1809 | E55: 1768.95 | F55: 1801.25 | G55: 1794.5 | H55: 1769.4 | I55: 10327 | J55: 18573119.3 | K55: 2019-01-03 | L55: 3409 | M55: INE133A01011
A56: ALANKIT | B56: EQ | C56: 25.9 | D56: 25.9 | E56: 25 | F56: 25.3 | G56: 25 | H56: 25.1 | I56: 417824 | J56: 10594869.5 | K56: 2019-01-03 | L56: 1161 | M56: INE914E01040
A57: ALBERTDAVD | B57: EQ | C57: 417.45 | D57: 417.45 | E57: 411.2 | F57: 411.2 | G57: 411.2 | H57: 417.55 | I57: 1118 | J57: 462169.1 | K57: 2019-01-03 | L57: 113 | M57: INE155C01010
A58: ALBK | B58: EQ | C58: 45 | D58: 45.6 | E58: 44.4 | F58: 44.7 | G58: 44.75 | H58: 45 | I58: 3144119 | J58: 141112420 | K58: 2019-01-03 | L58: 8785 | M58: INE428A01015
A59: ALCHEM | B59: BE | C59: 2.9 | D59: 2.9 | E59: 2.9 | F59: 2.9 | G59: 2.9 | H59: 2.8 | I59: 8700 | J59: 25230 | K59: 2019-01-03 | L59: 18 | M59: INE964B01033
A60: ALEMBICLTD | B60: EQ | C60: 46.7 | D60: 48 | E60: 46.2 | F60: 46.55 | G60: 46.6 | H60: 46.7 | I60: 151869 | J60: 7130420.4 | K60: 2019-01-03 | L60: 1272 | M60: INE426A01027
A61: ALICON | B61: EQ | C61: 575.2 | D61: 591.6 | E61: 575 | F61: 577.95 | G61: 577 | H61: 592.6 | I61: 2204 | J61: 1284615.25 | K61: 2019-01-03 | L61: 154 | M61: INE062D01024
A62: ALKALI | B62: EQ | C62: 54.45 | D62: 55 | E62: 53.35 | F62: 53.8 | G62: 53.9 | H62: 54.45 | I62: 1922 | J62: 103753.05 | K62: 2019-01-03 | L62: 65 | M62: INE773I01017
A63: ALKEM | B63: EQ | C63: 1957.95 | D63: 1969.8 | E63: 1941 | F63: 1962.4 | G63: 1962 | H63: 1951.05 | I63: 17059 | J63: 33360829.25 | K63: 2019-01-03 | L63: 1642 | M63: INE540L01014
A64: ALKYLAMINE | B64: EQ | C64: 793.05 | D64: 800 | E64: 784 | F64: 786.4 | G64: 784 | H64: 783.85 | I64: 6283 | J64: 4988396.1 | K64: 2019-01-03 | L64: 432 | M64: INE150B01021
A65: ALLCARGO | B65: EQ | C65: 108.6 | D65: 108.75 | E65: 107.3 | F65: 107.55 | G65: 107.5 | H65: 108.6 | I65: 59146 | J65: 6391613.2 | K65: 2019-01-03 | L65: 721 | M65: INE418H01029
A66: ALLSEC | B66: EQ | C66: 202.75 | D66: 202.75 | E66: 198 | F66: 198.7 | G66: 198 | H66: 200.75 | I66: 1709 | J66: 343331.8 | K66: 2019-01-03 | L66: 213 | M66: INE835G01018
A67: ALMONDZ | B67: EQ | C67: 23.45 | D67: 23.5 | E67: 22.25 | F67: 22.65 | G67: 23.25 | H67: 23.15 | I67: 1861 | J67: 42507.25 | K67: 2019-01-03 | L67: 58 | M67: INE326B01027
A68: ALOKTEXT | B68: EQ | C68: 4.05 | D68: 4.1 | E68: 3.9 | F68: 3.95 | G68: 3.95 | H68: 4.05 | I68: 2269348 | J68: 8997590.9 | K68: 2019-01-03 | L68: 754 | M68: INE270A01011
A69: ALPA | B69: EQ | C69: 25.05 | D69: 25.65 | E69: 24.5 | F69: 24.6 | G69: 24.5 | H69: 25.05 | I69: 6654 | J69: 165177.9 | K69: 2019-01-03 | L69: 78 | M69: INE385I01010
A70: ALPHAGEO | B70: EQ | C70: 477.05 | D70: 478.35 | E70: 464 | F70: 468.45 | G70: 464 | H70: 475.05 | I70: 1967 | J70: 924529.1 | K70: 2019-01-03 | L70: 353 | M70: INE137C01018
A71: AMARAJABAT | B71: EQ | C71: 731.75 | D71: 734.35 | E71: 710.15 | F71: 716 | G71: 713.45 | H71: 733.55 | I71: 372293 | J71: 269154296.8 | K71: 2019-01-03 | L71: 13863 | M71: INE885A01032
A72: AMBER | B72: EQ | C72: 909.95 | D72: 910 | E72: 895 | F72: 901.4 | G72: 899.05 | H72: 899.95 | I72: 3711 | J72: 3341593.45 | K72: 2019-01-03 | L72: 251 | M72: INE371P01015
A73: AMBIKCO | B73: EQ | C73: 1160 | D73: 1160 | E73: 1155 | F73: 1155.7 | G73: 1155 | H73: 1159.25 | I73: 2021 | J73: 2342447.1 | K73: 2019-01-03 | L73: 128 | M73: INE540G01014
A74: AMBUJACEM | B74: EQ | C74: 219 | D74: 220.9 | E74: 213.15 | F74: 213.85 | G74: 213.7 | H74: 218.95 | I74: 1612955 | J74: 349292832.9 | K74: 2019-01-03 | L74: 15008 | M74: INE079A01024
A75: AMDIND | B75: EQ | C75: 21.55 | D75: 22.15 | E75: 21.3 | F75: 22 | G75: 22 | H75: 21.95 | I75: 7978 | J75: 174774.7 | K75: 2019-01-03 | L75: 32 | M75: INE005I01014
A76: AMJLAND | B76: EQ | C76: 24.9 | D76: 24.9 | E76: 22.55 | F76: 22.65 | G76: 23 | H76: 24.35 | I76: 122444 | J76: 2936492.75 | K76: 2019-01-03 | L76: 737 | M76: INE606A01024
A77: AMRUTANJAN | B77: EQ | C77: 288 | D77: 288.9 | E77: 280.3 | F77: 281.5 | G77: 280.8 | H77: 282.55 | I77: 44392 | J77: 12642058.9 | K77: 2019-01-03 | L77: 1907 | M77: INE098F01031
A78: ANANTRAJ | B78: EQ | C78: 34.5 | D78: 35.1 | E78: 34 | F78: 34.5 | G78: 34.55 | H78: 35.15 | I78: 772313 | J78: 26641852.6 | K78: 2019-01-03 | L78: 2519 | M78: INE242C01024
A79: ANDHRABANK | B79: EQ | C79: 29.5 | D79: 29.65 | E79: 28.7 | F79: 28.95 | G79: 28.8 | H79: 29.65 | I79: 922490 | J79: 26986086.2 | K79: 2019-01-03 | L79: 2231 | M79: INE434A01013
A80: ANDHRACEMT | B80: EQ | C80: 6 | D80: 6.05 | E80: 5.75 | F80: 5.8 | G80: 5.8 | H80: 5.9 | I80: 106454 | J80: 622342.45 | K80: 2019-01-03 | L80: 191 | M80: INE666E01012
A81: ANDHRSUGAR | B81: EQ | C81: 335.6 | D81: 341.4 | E81: 332 | F81: 333.25 | G81: 332.5 | H81: 332.95 | I81: 30247 | J81: 10133974.55 | K81: 2019-01-03 | L81: 1451 | M81: INE715B01013
A82: ANGIND | B82: BE | C82: 1.25 | D82: 1.3 | E82: 1.25 | F82: 1.25 | G82: 1.3 | H82: 1.3 | I82: 3693 | J82: 4689.3 | K82: 2019-01-03 | L82: 10 | M82: INE017D01010
A83: ANIKINDS | B83: EQ | C83: 23.4 | D83: 23.95 | E83: 22.6 | F83: 23 | G83: 22.65 | H83: 23.7 | I83: 1998 | J83: 46309.05 | K83: 2019-01-03 | L83: 69 | M83: INE087B01017
A84: ANKITMETAL | B84: BE | C84: 0.45 | D84: 0.5 | E84: 0.45 | F84: 0.45 | G84: 0.45 | H84: 0.5 | I84: 30921 | J84: 13931.5 | K84: 2019-01-03 | L84: 23 | M84: INE106I01010
A85: ANSALAPI | B85: EQ | C85: 11.4 | D85: 11.45 | E85: 10.45 | F85: 10.7 | G85: 10.75 | H85: 11.3 | I85: 140533 | J85: 1510050.95 | K85: 2019-01-03 | L85: 533 | M85: INE436A01026
A86: ANSALHSG | B86: EQ | C86: 11 | D86: 11.15 | E86: 10.65 | F86: 10.7 | G86: 10.7 | H86: 10.85 | I86: 24761 | J86: 268802 | K86: 2019-01-03 | L86: 134 | M86: INE880B01015
A87: ANTGRAPHIC | B87: BE | C87: 0.5 | D87: 0.5 | E87: 0.45 | F87: 0.5 | G87: 0.5 | H87: 0.5 | I87: 56721 | J87: 25610.15 | K87: 2019-01-03 | L87: 15 | M87: INE414B01021
A88: APARINDS | B88: EQ | C88: 667.5 | D88: 667.5 | E88: 652.2 | F88: 654.9 | G88: 654.9 | H88: 663.15 | I88: 5857 | J88: 3844233.8 | K88: 2019-01-03 | L88: 983 | M88: INE372A01015
A89: APCL | B89: EQ | C89: 131.6 | D89: 136.35 | E89: 130 | F89: 132.05 | G89: 132.05 | H89: 132.35 | I89: 938 | J89: 123595.8 | K89: 2019-01-03 | L89: 28 | M89: INE071F01012
A90: APCOTEXIND | B90: EQ | C90: 524.85 | D90: 529 | E90: 521.1 | F90: 525.55 | G90: 522.2 | H90: 524.5 | I90: 370 | J90: 194246.1 | K90: 2019-01-03 | L90: 37 | M90: INE116A01024
A91: APEX | B91: EQ | C91: 361.5 | D91: 367 | E91: 356 | F91: 356.45 | G91: 356 | H91: 360.4 | I91: 21562 | J91: 7743458.65 | K91: 2019-01-03 | L91: 2169 | M91: INE346W01013
A92: APLAPOLLO | B92: EQ | C92: 1200 | D92: 1205 | E92: 1176 | F92: 1181.8 | G92: 1189 | H92: 1208.85 | I92: 9747 | J92: 11586423.05 | K92: 2019-01-03 | L92: 918 | M92: INE702C01019
A93: APLLTD | B93: EQ | C93: 580.05 | D93: 595.45 | E93: 580.05 | F93: 581.9 | G93: 580.1 | H93: 580.45 | I93: 31636 | J93: 18638253.9 | K93: 2019-01-03 | L93: 1878 | M93: INE901L01018
A94: APOLLO | B94: EQ | C94: 126 | D94: 127.45 | E94: 122.1 | F94: 122.35 | G94: 122.85 | H94: 124.85 | I94: 20614 | J94: 2546069.85 | K94: 2019-01-03 | L94: 424 | M94: INE713T01010
A95: APOLLOHOSP | B95: EQ | C95: 1258 | D95: 1273 | E95: 1254.05 | F95: 1266.65 | G95: 1265 | H95: 1258.75 | I95: 322081 | J95: 406947364.1 | K95: 2019-01-03 | L95: 21426 | M95: INE437A01024
A96: APOLLOTYRE | B96: EQ | C96: 230 | D96: 232.55 | E96: 227.35 | F96: 227.85 | G96: 228 | H96: 230.85 | I96: 1183802 | J96: 271534628 | K96: 2019-01-03 | L96: 31936 | M96: INE438A01022
A97: APOLSINHOT | B97: EQ | C97: 1065.05 | D97: 1090 | E97: 1040.15 | F97: 1073.15 | G97: 1075 | H97: 1069.7 | I97: 2209 | J97: 2355223.6 | K97: 2019-01-03 | L97: 284 | M97: INE451F01024
A98: APTECHT | B98: EQ | C98: 187.4 | D98: 194.7 | E98: 185.2 | F98: 187.1 | G98: 186.5 | H98: 186.75 | I98: 555517 | J98: 105507701.8 | K98: 2019-01-03 | L98: 8141 | M98: INE266F01018
A99: ARCHIDPLY | B99: EQ | C99: 42 | D99: 42.9 | E99: 41.15 | F99: 41.95 | G99: 41.6 | H99: 41.2 | I99: 42665 | J99: 1791167.75 | K99: 2019-01-03 | L99: 466 | M99: INE877I01016
A100: ARCHIES | B100: EQ | C100: 29.45 | D100: 29.75 | E100: 28.75 | F100: 28.85 | G100: 28.75 | H100: 29.75 | I100: 54275 | J100: 1582752.9 | K100: 2019-01-03 | L100: 408 | M100: INE731A01020
A101: ARCOTECH | B101: EQ | C101: 7.4 | D101: 7.45 | E101: 7.3 | F101: 7.35 | G101: 7.4 | H101: 7.45 | I101: 37492 | J101: 276963.75 | K101: 2019-01-03 | L101: 125 | M101: INE574I01035
A102: ARIES | B102: EQ | C102: 99.2 | D102: 101.45 | E102: 99.2 | F102: 100.3 | G102: 100.75 | H102: 99.9 | I102: 10947 | J102: 1099836.45 | K102: 2019-01-03 | L102: 258 | M102: INE298I01015
A103: ARIHANT | B103: EQ | C103: 31 | D103: 33.05 | E103: 30.4 | F103: 32.25 | G103: 32.25 | H103: 31.5 | I103: 914 | J103: 29831.65 | K103: 2019-01-03 | L103: 17 | M103: INE413D01011
A104: ARIHANTSUP | B104: EQ | C104: 58.55 | D104: 59.6 | E104: 57.8 | F104: 58.95 | G104: 59 | H104: 58.4 | I104: 27808 | J104: 1635441.85 | K104: 2019-01-03 | L104: 331 | M104: INE643K01018
A105: ARMANFIN | B105: EQ | C105: 394.9 | D105: 399 | E105: 385 | F105: 396.5 | G105: 398.25 | H105: 390.05 | I105: 4356 | J105: 1706922.55 | K105: 2019-01-03 | L105: 133 | M105: INE109C01017
A106: AROGRANITE | B106: EQ | C106: 51.75 | D106: 53.5 | E106: 51.75 | F106: 52 | G106: 52 | H106: 52.1 | I106: 7776 | J106: 408223.9 | K106: 2019-01-03 | L106: 126 | M106: INE210C01013
A107: ARROWGREEN | B107: EQ | C107: 111 | D107: 111 | E107: 106.7 | F107: 106.7 | G107: 106.7 | H107: 112.3 | I107: 10781 | J107: 1161237.6 | K107: 2019-01-03 | L107: 232 | M107: INE570D01018
A108: ARROWTEX | B108: EQ | C108: 22 | D108: 22.45 | E108: 22 | F108: 22.2 | G108: 22.2 | H108: 22.2 | I108: 30262 | J108: 670609.7 | K108: 2019-01-03 | L108: 195 | M108: INE933J01015
A109: ARSHIYA | B109: EQ | C109: 32.5 | D109: 32.8 | E109: 31.5 | F109: 31.75 | G109: 32 | H109: 32.2 | I109: 134352 | J109: 4284449.95 | K109: 2019-01-03 | L109: 596 | M109: INE968D01022
A110: ARSSINFRA | B110: BE | C110: 35 | D110: 36.9 | E110: 34.5 | F110: 35.4 | G110: 35.15 | H110: 35.95 | I110: 12424 | J110: 437969.05 | K110: 2019-01-03 | L110: 39 | M110: INE267I01010
A111: ARVIND | B111: EQ | C111: 96.5 | D111: 97.4 | E111: 94.75 | F111: 95.1 | G111: 95.1 | H111: 96.3 | I111: 2130504 | J111: 205306062.9 | K111: 2019-01-03 | L111: 13356 | M111: INE034A01011
A112: ARVSMART | B112: EQ | C112: 124.05 | D112: 127.95 | E112: 122.4 | F112: 123.35 | G112: 122.8 | H112: 124.05 | I112: 20236 | J112: 2526335.05 | K112: 2019-01-03 | L112: 633 | M112: INE034S01021
A113: ASAHIINDIA | B113: EQ | C113: 258.8 | D113: 269.4 | E113: 258.75 | F113: 265.65 | G113: 265.1 | H113: 258.75 | I113: 227739 | J113: 60531629.75 | K113: 2019-01-03 | L113: 3443 | M113: INE439A01020
A114: ASAHISONG | B114: EQ | C114: 216.25 | D114: 216.3 | E114: 212.15 | F114: 213.15 | G114: 214 | H114: 214 | I114: 940 | J114: 201127.75 | K114: 2019-01-03 | L114: 39 | M114: INE228I01012
A115: ASAL | B115: EQ | C115: 78.05 | D115: 79.9 | E115: 77.05 | F115: 77.85 | G115: 78.25 | H115: 79.1 | I115: 19157 | J115: 1503787.85 | K115: 2019-01-03 | L115: 276 | M115: INE900C01027
A116: ASHAPURMIN | B116: EQ | C116: 30.65 | D116: 30.8 | E116: 30 | F116: 30.05 | G116: 30 | H116: 30.65 | I116: 26537 | J116: 802807.35 | K116: 2019-01-03 | L116: 249 | M116: INE348A01023
A117: ASHIANA | B117: EQ | C117: 119 | D117: 119.55 | E117: 117.15 | F117: 119.1 | G117: 119.5 | H117: 118.85 | I117: 23430 | J117: 2777415.6 | K117: 2019-01-03 | L117: 592 | M117: INE365D01021
A118: ASHIMASYN | B118: EQ | C118: 17.25 | D118: 17.3 | E118: 16.4 | F118: 16.55 | G118: 16.4 | H118: 16.85 | I118: 23475 | J118: 395657.15 | K118: 2019-01-03 | L118: 164 | M118: INE440A01010
A119: ASHOKA | B119: EQ | C119: 124 | D119: 124.75 | E119: 123.5 | F119: 124.1 | G119: 124.5 | H119: 123.4 | I119: 152304 | J119: 18928332.15 | K119: 2019-01-03 | L119: 1806 | M119: INE442H01029
A120: ASHOKLEY | B120: EQ | C120: 99.75 | D120: 100.3 | E120: 97.9 | F120: 98.15 | G120: 98.25 | H120: 99.95 | I120: 24374807 | J120: 2406510394 | K120: 2019-01-03 | L120: 115240 | M120: INE208A01029
A121: ASIANHOTNR | B121: EQ | C121: 146.1 | D121: 149.85 | E121: 145.9 | F121: 148.65 | G121: 149 | H121: 146.75 | I121: 7597 | J121: 1114019.05 | K121: 2019-01-03 | L121: 33 | M121: INE363A01022
A122: ASIANPAINT | B122: EQ | C122: 1381.8 | D122: 1393.85 | E122: 1378 | F122: 1388.3 | G122: 1387 | H122: 1383.3 | I122: 1636293 | J122: 2272489578 | K122: 2019-01-03 | L122: 87120 | M122: INE021A01026
A123: ASIANTILES | B123: EQ | C123: 169.5 | D123: 170 | E123: 162.1 | F123: 162.95 | G123: 162.1 | H123: 167 | I123: 184403 | J123: 30405788.4 | K123: 2019-01-03 | L123: 4612 | M123: INE022I01019
A124: ASPINWALL | B124: EQ | C124: 173 | D124: 175.55 | E124: 167.5 | F124: 168.1 | G124: 167.55 | H124: 175 | I124: 4035 | J124: 680555.7 | K124: 2019-01-03 | L124: 74 | M124: INE991I01015
A125: ASSAMCO | B125: BE | C125: 2.05 | D125: 2.15 | E125: 2.05 | F125: 2.05 | G125: 2.05 | H125: 2.15 | I125: 168282 | J125: 349157.3 | K125: 2019-01-03 | L125: 121 | M125: INE442A01024
A126: ASTEC | B126: EQ | C126: 526.05 | D126: 529.95 | E126: 524.05 | F126: 524.65 | G126: 524.05 | H126: 527.95 | I126: 3202 | J126: 1686770.6 | K126: 2019-01-03 | L126: 177 | M126: INE563J01010
A127: ASTERDM | B127: EQ | C127: 159 | D127: 161.95 | E127: 158 | F127: 160 | G127: 160 | H127: 160 | I127: 72985 | J127: 11685342.4 | K127: 2019-01-03 | L127: 1010 | M127: INE914M01019
A128: ASTRAL | B128: EQ | C128: 1144 | D128: 1149.5 | E128: 1126.8 | F128: 1144.85 | G128: 1138.15 | H128: 1141.05 | I128: 25674 | J128: 29255015.45 | K128: 2019-01-03 | L128: 4044 | M128: INE006I01046
A129: ASTRAMICRO | B129: EQ | C129: 78.9 | D129: 80.85 | E129: 78.9 | F129: 79.95 | G129: 80.05 | H129: 78.9 | I129: 217110 | J129: 17375343.85 | K129: 2019-01-03 | L129: 1872 | M129: INE386C01029
A130: ASTRAZEN | B130: EQ | C130: 1419.55 | D130: 1429.9 | E130: 1397.6 | F130: 1415.55 | G130: 1408 | H130: 1418.75 | I130: 8672 | J130: 12305520.85 | K130: 2019-01-03 | L130: 906 | M130: INE203A01020
A131: ASTRON | B131: EQ | C131: 110.45 | D131: 113.7 | E131: 109.55 | F131: 112.65 | G131: 113 | H131: 109.8 | I131: 189045 | J131: 21182256.95 | K131: 2019-01-03 | L131: 2178 | M131: INE646X01014
A132: ATFL | B132: EQ | C132: 600.9 | D132: 605.55 | E132: 595.2 | F132: 598.3 | G132: 599.6 | H132: 598.4 | I132: 1970 | J132: 1181632.5 | K132: 2019-01-03 | L132: 170 | M132: INE209A01019
A133: ATLANTA | B133: EQ | C133: 22.85 | D133: 23.25 | E133: 22.4 | F133: 22.65 | G133: 22.5 | H133: 23.05 | I133: 76743 | J133: 1744179.1 | K133: 2019-01-03 | L133: 2513 | M133: INE285H01022
A134: ATLASCYCLE | B134: BE | C134: 78 | D134: 79.05 | E134: 78 | F134: 78 | G134: 78 | H134: 78.5 | I134: 632 | J134: 49324.15 | K134: 2019-01-03 | L134: 17 | M134: INE446A01025
A135: ATUL | B135: EQ | C135: 3490 | D135: 3490 | E135: 3435 | F135: 3455.75 | G135: 3446.65 | H135: 3463.1 | I135: 3563 | J135: 12348170.5 | K135: 2019-01-03 | L135: 819 | M135: INE100A01010
A136: ATULAUTO | B136: EQ | C136: 357 | D136: 365 | E136: 335.9 | F136: 357.25 | G136: 350.05 | H136: 357.35 | I136: 335054 | J136: 117430602.9 | K136: 2019-01-03 | L136: 10941 | M136: INE951D01028
A137: AUBANK | B137: EQ | C137: 620.2 | D137: 628.3 | E137: 616.15 | F137: 621.35 | G137: 619.9 | H137: 620.25 | I137: 133626 | J137: 83342373.75 | K137: 2019-01-03 | L137: 9830 | M137: INE949L01017
A138: AURIONPRO | B138: EQ | C138: 130.45 | D138: 133.5 | E138: 128.5 | F138: 132.45 | G138: 132.25 | H138: 129.65 | I138: 14867 | J138: 1965900.95 | K138: 2019-01-03 | L138: 333 | M138: INE132H01018
A139: AUROPHARMA | B139: EQ | C139: 721 | D139: 723.4 | E139: 710.55 | F139: 715.9 | G139: 712.8 | H139: 724.35 | I139: 1357059 | J139: 974500644 | K139: 2019-01-03 | L139: 46619 | M139: INE406A01037
A140: AUSOMENT | B140: EQ | C140: 42 | D140: 48.15 | E140: 41 | F140: 47.25 | G140: 48.15 | H140: 40.15 | I140: 25128 | J140: 1166100.3 | K140: 2019-01-03 | L140: 216 | M140: INE218C01016
A141: AUTOAXLES | B141: EQ | C141: 1353 | D141: 1372.95 | E141: 1325 | F141: 1330.25 | G141: 1326 | H141: 1369.4 | I141: 13468 | J141: 18104002.8 | K141: 2019-01-03 | L141: 1963 | M141: INE449A01011
A142: AUTOIND | B142: EQ | C142: 72.5 | D142: 73 | E142: 67.75 | F142: 68.75 | G142: 67.95 | H142: 70.6 | I142: 114073 | J142: 8077287.15 | K142: 2019-01-03 | L142: 1286 | M142: INE718H01014
A143: AUTOLITIND | B143: EQ | C143: 41.9 | D143: 42.45 | E143: 41.25 | F143: 41.3 | G143: 41.25 | H143: 41.2 | I143: 5594 | J143: 234232.05 | K143: 2019-01-03 | L143: 101 | M143: INE448A01013
A144: AVADHSUGAR | B144: EQ | C144: 378 | D144: 393 | E144: 378 | F144: 389.15 | G144: 391.45 | H144: 375.2 | I144: 67732 | J144: 26196988 | K144: 2019-01-03 | L144: 2637 | M144: INE349W01017
A145: AVANTIFEED | B145: EQ | C145: 382 | D145: 384 | E145: 376.25 | F145: 378.45 | G145: 379.9 | H145: 378.4 | I145: 191222 | J145: 72558159.4 | K145: 2019-01-03 | L145: 5491 | M145: INE871C01038
A146: AVTNPL | B146: EQ | C146: 26.8 | D146: 27.15 | E146: 26.7 | F146: 26.75 | G146: 26.7 | H146: 26.9 | I146: 15223 | J146: 407977.75 | K146: 2019-01-03 | L146: 130 | M146: INE488D01021
A147: AXISBANK | B147: EQ | C147: 621.4 | D147: 622 | E147: 603.65 | F147: 607.95 | G147: 609 | H147: 620.05 | I147: 13228602 | J147: 8092834256 | K147: 2019-01-03 | L147: 212633 | M147: INE238A01034
A148: AXISCADES | B148: EQ | C148: 82.8 | D148: 85.7 | E148: 82 | F148: 83.45 | G148: 83.5 | H148: 82.5 | I148: 52645 | J148: 4419408.8 | K148: 2019-01-03 | L148: 1001 | M148: INE555B01013
A149: AXISGOLD | B149: EQ | C149: 2775 | D149: 2829 | E149: 2775 | F149: 2826 | G149: 2826 | H149: 2789 | I149: 194 | J149: 545956.6 | K149: 2019-01-03 | L149: 32 | M149: INF846K01347
A150: AXISNIFTY | B150: EQ | C150: 1127.99 | D150: 1129.99 | E150: 1070 | F150: 1129 | G150: 1129 | H150: 1104.97 | I150: 153 | J150: 171124.85 | K150: 2019-01-03 | L150: 23 | M150: INF846K01ZL0
A151: AYMSYNTEX | B151: EQ | C151: 40.5 | D151: 41.75 | E151: 40.2 | F151: 41.35 | G151: 41.5 | H151: 40.8 | I151: 1255 | J151: 51311.95 | K151: 2019-01-03 | L151: 34 | M151: INE193B01039
A152: BAFNAPHARM | B152: EQ | C152: 11.7 | D152: 11.8 | E152: 11.35 | F152: 11.4 | G152: 11.4 | H152: 11.65 | I152: 3196 | J152: 36607.3 | K152: 2019-01-03 | L152: 49 | M152: INE878I01014
A153: BAGFILMS | B153: EQ | C153: 4.9 | D153: 5 | E153: 4.85 | F153: 4.85 | G153: 4.9 | H153: 4.9 | I153: 52702 | J153: 259039.65 | K153: 2019-01-03 | L153: 109 | M153: INE116D01028
A154: BAJAJ-AUTO | B154: EQ | C154: 2690.1 | D154: 2723.85 | E154: 2682.1 | F154: 2701.35 | G154: 2695 | H154: 2692 | I154: 310511 | J154: 839530104.7 | K154: 2019-01-03 | L154: 27154 | M154: INE917I01010
A155: BAJAJCORP | B155: EQ | C155: 382.9 | D155: 382.9 | E155: 371.15 | F155: 375.9 | G155: 380.4 | H155: 378.05 | I155: 28528 | J155: 10740233.4 | K155: 2019-01-03 | L155: 2202 | M155: INE933K01021
A156: BAJAJELEC | B156: EQ | C156: 507 | D156: 508.8 | E156: 497 | F156: 497.75 | G156: 498.15 | H156: 506.35 | I156: 83117 | J156: 41659775.3 | K156: 2019-01-03 | L156: 3118 | M156: INE193E01025
A157: BAJAJFINSV | B157: EQ | C157: 6439 | D157: 6479.9 | E157: 6331.65 | F157: 6383.3 | G157: 6390 | H157: 6384 | I157: 215845 | J157: 1382788072 | K157: 2019-01-03 | L157: 24053 | M157: INE918I01018
A158: BAJAJHIND | B158: EQ | C158: 8.9 | D158: 9.25 | E158: 8.85 | F158: 9.15 | G158: 9.1 | H158: 8.9 | I158: 3912783 | J158: 35521113.95 | K158: 2019-01-03 | L158: 3415 | M158: INE306A01021
A159: BAJAJHLDNG | B159: EQ | C159: 2968.3 | D159: 2985 | E159: 2939.95 | F159: 2977.25 | G159: 2984 | H159: 2950.1 | I159: 25184 | J159: 74474615.7 | K159: 2019-01-03 | L159: 2793 | M159: INE118A01012
A160: BAJFINANCE | B160: EQ | C160: 2612 | D160: 2648 | E160: 2575.3 | F160: 2586.2 | G160: 2590 | H160: 2614.05 | I160: 1282478 | J160: 3359123631 | K160: 2019-01-03 | L160: 58136 | M160: INE296A01024
A161: BALAJITELE | B161: EQ | C161: 89.75 | D161: 91.8 | E161: 89 | F161: 89.35 | G161: 89.6 | H161: 89.9 | I161: 28786 | J161: 2589959.95 | K161: 2019-01-03 | L161: 965 | M161: INE794B01026
A162: BALAMINES | B162: EQ | C162: 453.75 | D162: 458.05 | E162: 451 | F162: 452.85 | G162: 452.5 | H162: 454.35 | I162: 5210 | J162: 2364020.85 | K162: 2019-01-03 | L162: 339 | M162: INE050E01027
A163: BALKRISHNA | B163: EQ | C163: 50.85 | D163: 51.1 | E163: 50 | F163: 50.15 | G163: 50.45 | H163: 50.55 | I163: 2006 | J163: 100803.25 | K163: 2019-01-03 | L163: 61 | M163: INE875R01011
A164: BALKRISIND | B164: EQ | C164: 912.9 | D164: 920.95 | E164: 899 | F164: 900.75 | G164: 901 | H164: 912.3 | I164: 406107 | J164: 368855197.5 | K164: 2019-01-03 | L164: 17498 | M164: INE787D01026
A165: BALLARPUR | B165: EQ | C165: 5.6 | D165: 5.6 | E165: 5.45 | F165: 5.45 | G165: 5.5 | H165: 5.5 | I165: 273334 | J165: 1503223.5 | K165: 2019-01-03 | L165: 258 | M165: INE294A01037
A166: BALMLAWRIE | B166: EQ | C166: 199.1 | D166: 201.5 | E166: 196.5 | F166: 197.35 | G166: 197.4 | H166: 198.75 | I166: 38156 | J166: 7572718.95 | K166: 2019-01-03 | L166: 1309 | M166: INE164A01016
A167: BALPHARMA | B167: EQ | C167: 79.9 | D167: 81.45 | E167: 78.5 | F167: 81.35 | G167: 81.35 | H167: 79.2 | I167: 46903 | J167: 3777773.2 | K167: 2019-01-03 | L167: 466 | M167: INE083D01012
A168: BALRAMCHIN | B168: EQ | C168: 104.65 | D168: 108.3 | E168: 104.05 | F168: 107.65 | G168: 108 | H168: 104.5 | I168: 6082142 | J168: 649507512.2 | K168: 2019-01-03 | L168: 35436 | M168: INE119A01028
A169: BANARBEADS | B169: EQ | C169: 46.25 | D169: 47.25 | E169: 45.65 | F169: 47.25 | G169: 47.25 | H169: 47 | I169: 1540 | J169: 72199.85 | K169: 2019-01-03 | L169: 25 | M169: INE655B01011
A170: BANARISUG | B170: EQ | C170: 1511 | D170: 1538.95 | E170: 1500 | F170: 1501.4 | G170: 1502 | H170: 1513.95 | I170: 175 | J170: 264361.8 | K170: 2019-01-03 | L170: 41 | M170: INE459A01010
A171: BANCOINDIA | B171: EQ | C171: 182.25 | D171: 185 | E171: 180.3 | F171: 182.55 | G171: 182 | H171: 182.6 | I171: 15769 | J171: 2883477.3 | K171: 2019-01-03 | L171: 752 | M171: INE213C01025
A172: BANDHANBNK | B172: EQ | C172: 551 | D172: 554 | E172: 530 | F172: 533.8 | G172: 532.05 | H172: 552.15 | I172: 620161 | J172: 335263113.8 | K172: 2019-01-03 | L172: 18616 | M172: INE545U01014
A173: BANG | B173: EQ | C173: 57.5 | D173: 59.8 | E173: 57 | F173: 58.6 | G173: 57.15 | H173: 57.25 | I173: 112724 | J173: 6623553.85 | K173: 2019-01-03 | L173: 730 | M173: INE863I01016
A174: BANKBARODA | B174: EQ | C174: 121.4 | D174: 123.4 | E174: 118.1 | F174: 119.3 | G174: 119.6 | H174: 119.35 | I174: 40246215 | J174: 4861381294 | K174: 2019-01-03 | L174: 138717 | M174: INE028A01039
A175: BANKBEES | B175: EQ | C175: 2771.2 | D175: 2772.17 | E175: 2746.75 | F175: 2749.46 | G175: 2749.05 | H175: 2771.96 | I175: 13429 | J175: 37085934.47 | K175: 2019-01-03 | L175: 245 | M175: INF732E01078
A176: BANKINDIA | B176: EQ | C176: 104.85 | D176: 107.1 | E176: 104 | F176: 105.75 | G176: 105.95 | H176: 104.8 | I176: 12299077 | J176: 1298136885 | K176: 2019-01-03 | L176: 35047 | M176: INE084A01016
A177: BANSWRAS | B177: EQ | C177: 82 | D177: 83.9 | E177: 80.1 | F177: 80.5 | G177: 81 | H177: 82.5 | I177: 990 | J177: 80082.6 | K177: 2019-01-03 | L177: 55 | M177: INE629D01012
A178: BARTRONICS | B178: EQ | C178: 7.25 | D178: 7.4 | E178: 7.2 | F178: 7.25 | G178: 7.4 | H178: 7.25 | I178: 11095 | J178: 80657 | K178: 2019-01-03 | L178: 33 | M178: INE855F01034
A179: BASF | B179: EQ | C179: 1534 | D179: 1564.5 | E179: 1515.1 | F179: 1556.95 | G179: 1545.5 | H179: 1534.4 | I179: 13056 | J179: 20127772.65 | K179: 2019-01-03 | L179: 1613 | M179: INE373A01013
A180: BASML | B180: EQ | C180: 210 | D180: 210 | E180: 203 | F180: 204.95 | G180: 204.05 | H180: 210 | I180: 265 | J180: 54530.2 | K180: 2019-01-03 | L180: 36 | M180: INE186H01014
A181: BATAINDIA | B181: EQ | C181: 1112 | D181: 1128.45 | E181: 1108 | F181: 1113 | G181: 1111.05 | H181: 1112.05 | I181: 573624 | J181: 641665933 | K181: 2019-01-03 | L181: 20702 | M181: INE176A01028
A182: BAYERCROP | B182: EQ | C182: 4219.5 | D182: 4268.85 | E182: 4182.6 | F182: 4214.1 | G182: 4198 | H182: 4199.6 | I182: 9164 | J182: 38681383.45 | K182: 2019-01-03 | L182: 3304 | M182: INE462A01022
A183: BBL | B183: EQ | C183: 1164.6 | D183: 1175.05 | E183: 1145.2 | F183: 1150.65 | G183: 1147 | H183: 1168.4 | I183: 2958 | J183: 3436337.8 | K183: 2019-01-03 | L183: 376 | M183: INE464A01028
A184: BBTC | B184: EQ | C184: 1310 | D184: 1325.5 | E184: 1296 | F184: 1298.65 | G184: 1297.1 | H184: 1305.25 | I184: 43110 | J184: 56433641.15 | K184: 2019-01-03 | L184: 2954 | M184: INE050A01025
A185: BCG | B185: EQ | C185: 2.7 | D185: 2.75 | E185: 2.6 | F185: 2.65 | G185: 2.65 | H185: 2.65 | I185: 1148418 | J185: 3070625.25 | K185: 2019-01-03 | L185: 647 | M185: INE425B01027
A186: BDL | B186: EQ | C186: 280 | D186: 282.7 | E186: 276 | F186: 277.7 | G186: 276 | H186: 281.6 | I186: 22262 | J186: 6191406.9 | K186: 2019-01-03 | L186: 767 | M186: INE171Z01018
A187: BEARDSELL | B187: EQ | C187: 25 | D187: 25 | E187: 23.2 | F187: 23.8 | G187: 24.4 | H187: 24.85 | I187: 8632 | J187: 207988.85 | K187: 2019-01-03 | L187: 54 | M187: INE520H01022
A188: BEDMUTHA | B188: BE | C188: 23.5 | D188: 23.9 | E188: 22.1 | F188: 22.2 | G188: 22.2 | H188: 22.8 | I188: 5656 | J188: 133739.6 | K188: 2019-01-03 | L188: 42 | M188: INE844K01012
A189: BEL | B189: EQ | C189: 90.1 | D189: 90.85 | E189: 88.35 | F189: 88.8 | G189: 88.55 | H189: 89.7 | I189: 13269297 | J189: 1191070938 | K189: 2019-01-03 | L189: 36398 | M189: INE263A01024
A190: BEML | B190: EQ | C190: 927.7 | D190: 930.55 | E190: 880.3 | F190: 886.65 | G190: 885 | H190: 922.9 | I190: 4058323 | J190: 3681798897 | K190: 2019-01-03 | L190: 73732 | M190: INE258A01016
A191: BEPL | B191: EQ | C191: 88.7 | D191: 92 | E191: 88.25 | F191: 89.05 | G191: 88.8 | H191: 89.25 | I191: 449039 | J191: 40242993 | K191: 2019-01-03 | L191: 5240 | M191: INE922A01025
A192: BERGEPAINT | B192: EQ | C192: 327.05 | D192: 330.55 | E192: 323.65 | F192: 325.1 | G192: 325 | H192: 327.3 | I192: 1443999 | J192: 470154437.6 | K192: 2019-01-03 | L192: 12878 | M192: INE463A01038
A193: BFINVEST | B193: EQ | C193: 252.5 | D193: 259.05 | E193: 247.2 | F193: 249.15 | G193: 248 | H193: 254.5 | I193: 107958 | J193: 27424279.25 | K193: 2019-01-03 | L193: 3493 | M193: INE878K01010
A194: BFUTILITIE | B194: EQ | C194: 223.2 | D194: 228.35 | E194: 220.25 | F194: 223 | G194: 222.6 | H194: 223.9 | I194: 479157 | J194: 107653877.7 | K194: 2019-01-03 | L194: 8460 | M194: INE243D01012
A195: BGLOBAL | B195: BE | C195: 2.85 | D195: 3 | E195: 2.85 | F195: 2.9 | G195: 2.9 | H195: 2.95 | I195: 4467 | J195: 13157.4 | K195: 2019-01-03 | L195: 14 | M195: INE224M01013
A196: BGRENERGY | B196: EQ | C196: 60.55 | D196: 61.85 | E196: 59.35 | F196: 59.85 | G196: 59.65 | H196: 60.9 | I196: 36221 | J196: 2195021.5 | K196: 2019-01-03 | L196: 501 | M196: INE661I01014
A197: BHAGERIA | B197: EQ | C197: 283.4 | D197: 286 | E197: 280.2 | F197: 283.45 | G197: 281.95 | H197: 282.75 | I197: 3250 | J197: 921172 | K197: 2019-01-03 | L197: 158 | M197: INE354C01027
A198: BHAGYANGR | B198: EQ | C198: 31.1 | D198: 33 | E198: 31.1 | F198: 32.05 | G198: 32 | H198: 32 | I198: 9057 | J198: 290701.35 | K198: 2019-01-03 | L198: 89 | M198: INE458B01036
A199: BHAGYAPROP | B199: EQ | C199: 29.5 | D199: 29.5 | E199: 28.1 | F199: 28.25 | G199: 28.25 | H199: 28.75 | I199: 1085 | J199: 30622.1 | K199: 2019-01-03 | L199: 16 | M199: INE363W01018
A200: BHANDARI | B200: EQ | C200: 2.05 | D200: 2.1 | E200: 2 | F200: 2.05 | G200: 2.05 | H200: 2 | I200: 63459 | J200: 129890.05 | K200: 2019-01-03 | L200: 73 | M200: INE474E01029
... 1436 more rows

Sheet Sheet1 (hidden)
